Body Name,Service Area,Expenses Type,Invoice Payment Date,Transaction Number,Net Amount,Supplier Name
Manchester City Council,Chief Executives,Agency staff provision,01.04.2011,5100437187,567.16,Aptus Personnel Ltd t/a Jark
Manchester City Council,Environment and Operations,Payments to Sub-Contractors,01.04.2011,5100437311,600.00,Arboricultural Services Treework
Manchester City Council,Chief Executives,Agency staff provision,01.04.2011,5100437267,767.60,Beth Johnson Foundation
Manchester City Council,Childrens Services,Subsistence and Conference Expenses,01.04.2011,5100437304,709.00,Bev Amison Consultancy Ltd
Manchester City Council,Hospitality + Trading Services,Catering Provisions,01.04.2011,1902562905,503.60,Brake Bros Foodservice Ltd
Manchester City Council,Corporate Services,Mobilephone Charges,01.04.2011,1902563397,"20,000.00",Cable & Wireless UK
Manchester City Council,Manchester Leisure,Works and associated costs for Land and Buildings,01.04.2011,5100437222,764.10,Cheshire Nurseries
Manchester City Council,Manchester Leisure,Payments for services,01.04.2011,5100437317,944.15,Chester Clothing Company Ltd
Manchester City Council,Housing General Fund,Building Works,01.04.2011,1902563430,"91,810.00",Clifford Johnston & Co
Manchester City Council,Regeneration Finance,Photocopying,01.04.2011,5100437164,"1,159.40",Computerland Uk Ltd
Manchester City Council,Chief Executives,I T Provision,01.04.2011,5100437160,"10,531.75",Computerland Uk Ltd
Manchester City Council,Housing Revenue Account,Payments to Sub-Contractors,01.04.2011,5100437148,690.00,Daly Drains Ltd
Manchester City Council,Chief Executives,Agency staff provision,01.04.2011,5100437214,"8,475.80",Deekay Technical Recruitment Ltd
Manchester City Council,Hospitality + Trading Services,Vehicle Parts/Spares,01.04.2011,5100437344,671.95,Dennis Eagle Ltd
Manchester City Council,Childrens Services,Equipment,01.04.2011,5100437232,915.00,Egan Reid Stationery Co Ltd
Manchester City Council,Childrens Services,Furniture,01.04.2011,5100437232,"4,202.00",Egan Reid Stationery Co Ltd
Manchester City Council,Childrens Services,Works and associated costs for Land and Buildings,01.04.2011,5100437238,"3,267.75",Egan Reid Stationery Co Ltd
Manchester City Council,Childrens Services,Works and associated costs for Land and Buildings,01.04.2011,5100437218,"2,760.00",Egan Reid Stationery Co Ltd
Manchester City Council,Childrens Services,Works and associated costs for Land and Buildings,01.04.2011,5100437239,"2,760.00",Egan Reid Stationery Co Ltd
Manchester City Council,Childrens Services,Works and associated costs for Land and Buildings,01.04.2011,5100437244,630.00,Egan Reid Stationery Co Ltd
Manchester City Council,Adult Social Care,Home Care ,01.04.2011,1902563431,748.41,Enterprise Care Group Ltd
Manchester City Council,Adult Social Care,Home Care ,01.04.2011,1902563431,"3,378.60",Enterprise Care Group Ltd
Manchester City Council,Adult Social Care,Home Care ,01.04.2011,1902563431,"6,106.01",Enterprise Care Group Ltd
Manchester City Council,Adult Social Care,Home Care ,01.04.2011,1902563431,"2,503.06",Enterprise Care Group Ltd
Manchester City Council,Adult Social Care,Home Care ,01.04.2011,1902563431,"1,908.22",Enterprise Care Group Ltd
Manchester City Council,Adult Social Care,Home Care ,01.04.2011,1902563431,"1,068.73",Enterprise Care Group Ltd
Manchester City Council,Adult Social Care,Home Care ,01.04.2011,1902563431,614.86,Enterprise Care Group Ltd
Manchester City Council,Adult Social Care,Home Care ,01.04.2011,1902563431,"2,130.38",Enterprise Care Group Ltd
Manchester City Council,Adult Social Care,Home Care ,01.04.2011,1902563431,"2,994.62",Enterprise Care Group Ltd
Manchester City Council,Adult Social Care,Home Care ,01.04.2011,1902563431,"3,902.94",Enterprise Care Group Ltd
Manchester City Council,Chief Executives,Agency staff provision,01.04.2011,5100437280,633.86,Enterprise Social Care Ltd
Manchester City Council,Chief Executives,Agency staff provision,01.04.2011,5100437273,913.57,Homecare Support
Manchester City Council,Childrens Services,Grant and subscriptions awarded,01.04.2011,5100437263,"11,225.00",Homestart Manchester North
Manchester City Council,Chief Executives,Payments to Sub-Contractors,01.04.2011,5100437261,"4,280.00",Looking Glass Prints
Manchester City Council,Childrens Services,Student Discretionery Awards,01.04.2011,5100437298,"1,285.00",Manchester Metropolitan University
Manchester City Council,Hospitality + Trading Services,Vehicle Repairs,01.04.2011,5100437255,"10,684.44",Manchester Van Hire Ltd
Manchester City Council,Chief Executives,Agency staff provision,01.04.2011,5100437342,"2,611.08",Morson International
Manchester City Council,Chief Executives,Payments for services,01.04.2011,5100437191,921.00,Priory Healthcare
Manchester City Council,Childrens Services,Equipment,01.04.2011,5100437250,800.00,Progress Care & Education Ltd
Manchester City Council,Highways Services,Legal Fees,01.04.2011,5100437220,540.00,Redacted Personal Information
Manchester City Council,Chief Executives,Agency staff provision,01.04.2011,5100437257,"2,351.95",Semester Recruitment Ltd
Manchester City Council,Manchester Leisure,Proffesional fees,01.04.2011,1902563396,"32,905.56",Swimming Australia Limited
Manchester City Council,Chief Executives,Agency staff provision,01.04.2011,5100437269,932.40,The Synergy Group Ltd
Manchester City Council,Manchester Leisure,Hire of Premises,04.04.2011,5100437596,594.00,4CT Limited
Manchester City Council,Chief Executives,Advertising,04.04.2011,5100437604,"3,400.00",Alt Payee Royal Bank Of Scotland
Manchester City Council,Hospitality + Trading Services,Cleaning Equipment,04.04.2011,5100437673,"1,594.00",Amtoll Ltd
Manchester City Council,Hospitality + Trading Services,Payments to Sub-Contractors,04.04.2011,5100437520,"2,700.00",Arboricultural Services Treework
Manchester City Council,Chief Executives,Stationery,04.04.2011,5100437669,"1,290.00",Banner Business Services Ltd
Manchester City Council,Manchester Leisure,Works and associated costs for Land and Buildings,04.04.2011,5100437470,540.00,BCL
Manchester City Council,Childrens Services,Subsistence and Conference Expenses,04.04.2011,5100437753,"10,276.49",Better Choices Ltd
Manchester City Council,Childrens Services,Third party payments to other Local Authorities,04.04.2011,5100437695,"7,059.36",Bolton Mbc
Manchester City Council,Hospitality + Trading Services,Catering Provisions,04.04.2011,1902564100,639.55,Brake Bros Foodservice Ltd
Manchester City Council,Hospitality + Trading Services,Catering Provisions,04.04.2011,1902564115,582.93,Brake Bros Foodservice Ltd
Manchester City Council,Hospitality + Trading Services,Catering Provisions,04.04.2011,1902564182,667.76,Brake Bros Foodservice Ltd
Manchester City Council,Hospitality + Trading Services,Catering Provisions,04.04.2011,1902564093,930.39,Brake Bros Foodservice Ltd
Manchester City Council,Chief Executives,I T Provision,04.04.2011,5100437756,"5,054.00",Caci Ltd
Manchester City Council,Childrens Services,Grant and subscriptions awarded,04.04.2011,5100437678,"3,322.99",Catholic Childrens Society
Manchester City Council,Highways Services,Proffesional fees,04.04.2011,5100437195,880.00,City Illuminations Ltd
Manchester City Council,Manchester Leisure,Apportioned Expenses,04.04.2011,5100437513,"3,325.00",Clearview Event Services Limited
Manchester City Council,Childrens Services,Transport Coach Hire,04.04.2011,5100437708,"-4,844.00",Coachire Manchester Ltd
Manchester City Council,Regeneration Finance,Grant and subscriptions awarded,04.04.2011,5100437625,"1,274.00",Dance Initiative Greater Manchester
Manchester City Council,Hospitality + Trading Services,Internal Repairs and Maintenance for buildings,04.04.2011,5100437369,"1,168.00",Dante Fire & Security Ltd
Manchester City Council,Corporate Services,General Office expenses,04.04.2011,5100437698,"1,228.05",Data Space Limited
Manchester City Council,Childrens Services,Third party payments to other Local Authorities,04.04.2011,5100437697,"1,421.28",Denbighshire County Council
Manchester City Council,Childrens Services,Third party payments to other Local Authorities,04.04.2011,5100437351,"2,000.00",Edge Hill University
Manchester City Council,Environment and Operations,Proffesional fees,04.04.2011,5100437286,600.00,Emerge Recycling
Manchester City Council,Environment and Operations,Refuse Collection,04.04.2011,5100437235,"887,998.75",Enterprise Manchester Partnership
Manchester City Council,Chief Executives,Agency staff provision,04.04.2011,5100437687,649.52,Enterprise Social Care Ltd
Manchester City Council,Childrens Services,Payments for services,04.04.2011,5100437779,"2,724.72",European Wellcare Education Ltd
Manchester City Council,Childrens Services,Grant and subscriptions awarded,04.04.2011,5100437366,911.60,FC United of Manchester
Manchester City Council,Hospitality + Trading Services,Building Materials for direct delivery,04.04.2011,5100437193,729.60,Freeland Amenity
Manchester City Council,Hospitality + Trading Services,Building Materials for direct delivery,04.04.2011,5100437204,503.10,Freeland Amenity
Manchester City Council,Hospitality + Trading Services,Hire of Equipment,04.04.2011,5100437332,514.35,GHL Liftrucks Ltd
Manchester City Council,Childrens Services,Training and Development,04.04.2011,5100437725,"1,305.00",Granada Learning Ltd
Manchester City Council,Chief Executives,Proffesional fees,04.04.2011,5100437573,"1,500.00",Greener Museums Ltd
Manchester City Council,Housing General Fund,Surplus property Acquisitions,04.04.2011,1902564274,"2,499.00",H M Revenues and Customs
Manchester City Council,Housing General Fund,Surplus property Fees,04.04.2011,1902564272,"23,000.00",H M Revenues and Customs
Manchester City Council,Chief Executives,Printing,04.04.2011,5100437821,957.00,Holdmede Ltd T/A Pelican Press
Manchester City Council,Chief Executives,Proffesional fees,04.04.2011,5100437335,"1,948.27",Ice Aid
Manchester City Council,Adult Social Care,Building Materials for direct delivery,04.04.2011,5100437555,"1,120.00",Illingworth Ingham (M/cR)
Manchester City Council,Regeneration Finance,Catering,04.04.2011,5100437328,940.00,Inner City Music Ltd
Manchester City Council,Hospitality + Trading Services,Purchase of stores for re-distribution,04.04.2011,5100437394,"1,350.00",Instarmac Group Ltd
Manchester City Council,Corporate Services,Works and associated costs for Land and Buildings,04.04.2011,5100437574,"12,025.00",Intrinsic Technology Limited
Manchester City Council,Grtr Manchester Transport Unit,Payments to Sub-Contractors,04.04.2011,5100437447,"1,267.88",Jacobs Engineering UK Ltd
Manchester City Council,Grtr Manchester Transport Unit,Payments to Sub-Contractors,04.04.2011,5100437444,934.38,Jacobs Engineering UK Ltd
Manchester City Council,Grtr Manchester Transport Unit,Payments to Sub-Contractors,04.04.2011,5100437453,646.88,Jacobs Engineering UK Ltd
Manchester City Council,Manchester Leisure,Equipment,04.04.2011,5100437836,925.00,Keep Britain Tidy
Manchester City Council,Grtr Manchester Urban Traffic,Vehicle Hire Costs,04.04.2011,5100437477,"1,585.64",Lex Vehicle Leasing Ltd
Manchester City Council,Grtr Manchester Urban Traffic,Vehicle Hire Costs,04.04.2011,5100437482,"1,585.64",Lex Vehicle Leasing Ltd
Manchester City Council,Grtr Manchester Urban Traffic,Vehicle Hire Costs,04.04.2011,5100437456,"1,237.93",Lex Vehicle Leasing Ltd
Manchester City Council,Grtr Manchester Urban Traffic,Vehicle Hire Costs,04.04.2011,5100437466,"1,237.93",Lex Vehicle Leasing Ltd
Manchester City Council,Grtr Manchester Urban Traffic,Vehicle Hire Costs,04.04.2011,5100437479,"1,237.93",Lex Vehicle Leasing Ltd
Manchester City Council,Hospitality + Trading Services,Vehicle contract hire and leases,04.04.2011,5100437843,743.23,Lombard North Central Plc
Manchester City Council,Environment and Operations,Stationery,04.04.2011,5100437512,995.00,Mail Solutions
Manchester City Council,Childrens Services,Payments for services,04.04.2011,5100437682,"1,720.00",Manchester City Football Club Plc
Manchester City Council,Childrens Services,Payments for services,04.04.2011,5100437691,"1,720.00",Manchester City Football Club Plc
Manchester City Council,Childrens Services,Payments for services,04.04.2011,5100437694,"1,720.00",Manchester City Football Club Plc
Manchester City Council,Regeneration Finance,Grant and subscriptions awarded,04.04.2011,5100437346,"4,400.00",Manchester Metropolitan University
Manchester City Council,Childrens Services,Student Discretionery Awards,04.04.2011,5100437233,"1,310.00",Manchester Metropolitan University
Manchester City Council,Childrens Services,Student Discretionery Awards,04.04.2011,5100437305,"1,310.00",Manchester Metropolitan University
Manchester City Council,Childrens Services,Student Discretionery Awards,04.04.2011,5100437306,"1,310.00",Manchester Metropolitan University
Manchester City Council,Childrens Services,Student Discretionery Awards,04.04.2011,5100437287,"-1,285.00",Manchester Metropolitan University
Manchester City Council,Hospitality + Trading Services,Vehicle Hire Costs,04.04.2011,5100437835,"41,952.34",Manchester Van Hire Ltd
Manchester City Council,Chief Executives,Grant and subscriptions awarded,04.04.2011,5100437781,"4,264.00",Merci Ltd
Manchester City Council,Chief Executives,Agency staff provision,04.04.2011,5100437525,"1,540.00",Michael Page International
Manchester City Council,Libraries and Theatres,I T Provision,04.04.2011,5100437435,798.56,Misco Computer Supplies Ltd
Manchester City Council,Libraries and Theatres,I T Provision,04.04.2011,5100437431,600.23,Misco Computer Supplies Ltd
Manchester City Council,Childrens Services,Works and associated costs for Land and Buildings,04.04.2011,5100437769,"3,300.00",MITIE Property Services (UK) Ltd
Manchester City Council,Chief Executives,Agency staff provision,04.04.2011,5100437445,827.50,Morgan Hunt Public Sector Ltd
Manchester City Council,Chief Executives,Agency staff provision,04.04.2011,5100437866,"2,355.61",Morson International
Manchester City Council,Childrens Services,Training and Development,04.04.2011,5100437531,599.28,Mountain Experience
Manchester City Council,Chief Executives,Paper & Envelopes,04.04.2011,5100437404,773.50,Premier Paper Group Ltd
Manchester City Council,Childrens Services,Building Works,04.04.2011,5100437818,"1,155.00",Prism UK Medical Ltd t/a Carefree
Manchester City Council,Chief Executives,Agency staff provision,04.04.2011,5100437765,"1,383.90",Progressive Recruitment Ltd
Manchester City Council,Regeneration Finance,Proffesional fees,04.04.2011,5100437831,800.00,PushOn limited
Manchester City Council,Corporate Services,Training and Development,04.04.2011,5100437785,978.00,QA Ltd
Manchester City Council,Childrens Services,Agency staff provision,04.04.2011,5100437543,"1,175.00",Randstad Education
Manchester City Council,Childrens Services,Agency staff provision,04.04.2011,5100437537,550.00,Randstad Education
Manchester City Council,Highways Services,Legal Fees,04.04.2011,5100437577,660.00,Redacted Personal Information
Manchester City Council,Highways Services,Legal Fees,04.04.2011,5100437718,582.00,Redacted Personal Information
Manchester City Council,Adult Social Care,Bed & Breakfast Acc,04.04.2011,5100437140,900.97,Redacted Personal Information
Manchester City Council,Childrens Services,Foster Payments,04.04.2011,1902563411,"2,061.18",Redacted Personal Information
Manchester City Council,Childrens Services,Home Care ,04.04.2011,5100437877,"1,750.00",Rhythm and Rhyme Limited
Manchester City Council,Grtr Manchester Urban Traffic,Payments to Sub-Contractors,04.04.2011,5100437871,"1,514.18",Rosgal Ltd
Manchester City Council,Chief Executives,Construction Works,04.04.2011,5100437872,665.00,Rosgal Ltd
Manchester City Council,Chief Executives,Construction Works,04.04.2011,5100437590,525.00,Rosgal Ltd
Manchester City Council,Environment and Operations,Rents,04.04.2011,5100437876,"275,172.13",Savills Commercial Ltd
Manchester City Council,Hospitality + Trading Services,Purchase of stores for re-distribution,04.04.2011,5100437754,633.42,Sebo UK Ltd
Manchester City Council,Childrens Services,Rents,04.04.2011,5100437762,563.20,Serco Manchester (Manchester Commun
Manchester City Council,Childrens Services,Hire of Equipment,04.04.2011,5100437720,520.00,Sibcas Limited
Manchester City Council,Grtr Manchester Urban Traffic,Payments to Sub-Contractors,04.04.2011,5100437701,965.00,Siemens Plc
Manchester City Council,Grtr Manchester Urban Traffic,Payments to Sub-Contractors,04.04.2011,5100437689,738.72,Siemens Plc
Manchester City Council,Manchester Leisure,Grant Payments,04.04.2011,5100437747,"1,100.00",Sign-It-Up
Manchester City Council,Hospitality + Trading Services,Payments to Sub-Contractors,04.04.2011,5100437549,"1,465.60",Sovereign Fencing Ltd
Manchester City Council,Hospitality + Trading Services,Payments to Sub-Contractors,04.04.2011,5100437739,"1,004.00",Sovereign Fencing Ltd
Manchester City Council,Manchester Leisure,Equipment,04.04.2011,5100437726,"1,465.00",Stadia Sports International Ltd
Manchester City Council,Chief Executives,Advertising,04.04.2011,5100437339,720.00,The Big Issue In The North Ltd
Manchester City Council,Childrens Services,Grant and subscriptions awarded,04.04.2011,5100437700,"4,271.66",The Depaul Trust
Manchester City Council,Childrens Services,Works and associated costs for Land and Buildings,04.04.2011,5100437580,"11,905.00",The Lord Group Ltd
Manchester City Council,Childrens Services,Works and associated costs for Land and Buildings,04.04.2011,5100437583,"-11,905.00",The Lord Group Ltd
Manchester City Council,Adult Social Care,Rents,04.04.2011,5100437780,550.00,The Methodist Church Crumpsall
Manchester City Council,Childrens Services,Transport Coach Hire,04.04.2011,5100437564,735.00,Trading Post (NW) Ltd
Manchester City Council,Chief Executives,Advertising,04.04.2011,5100437371,926.10,TSL Education Ltd
Manchester City Council,Chief Executives,Advertising,04.04.2011,5100437359,882.00,TSL Education Ltd
Manchester City Council,Chief Executives,Advertising,04.04.2011,5100437368,712.21,TSL Education Ltd
Manchester City Council,Chief Executives,Advertising,04.04.2011,5100437363,661.50,TSL Education Ltd
Manchester City Council,Chief Executives,Advertising,04.04.2011,5100437377,661.50,TSL Education Ltd
Manchester City Council,Childrens Services,Expenditure re Internal Trading Ordered Externally,04.04.2011,5100437598,"1,060.00",TSL Education Ltd
Manchester City Council,Hospitality + Trading Services,Window Cleaning,04.04.2011,5100437728,"2,250.00",Ultra Cleaning Services
Manchester City Council,Corporate Services,Training and Development,04.04.2011,5100437516,"2,250.00",University Of Salford
Manchester City Council,Chief Executives,Printing,04.04.2011,5100437764,"1,079.50",Wallace Printers Ltd
Manchester City Council,Housing General Fund,Building Works,04.04.2011,1902562898,"1,427.85",Westholme Ltd
Manchester City Council,Hospitality + Trading Services,Building Materials for direct delivery,04.04.2011,5100437809,729.36,Wybone Ltd
Manchester City Council,Hospitality + Trading Services,Payments to Sub-Contractors,05.04.2011,5100438502,"7,395.00",A1 Drainmasters Ltd
Manchester City Council,Hospitality + Trading Services,Payments to Sub-Contractors,05.04.2011,5100438500,"3,780.00",A1 Drainmasters Ltd
Manchester City Council,Hospitality + Trading Services,Payments to Sub-Contractors,05.04.2011,5100438496,"2,275.00",A1 Drainmasters Ltd
Manchester City Council,Hospitality + Trading Services,Payments to Sub-Contractors,05.04.2011,5100438497,"2,110.00",A1 Drainmasters Ltd
Manchester City Council,Hospitality + Trading Services,Payments to Sub-Contractors,05.04.2011,5100438499,"1,725.00",A1 Drainmasters Ltd
Manchester City Council,Hospitality + Trading Services,Payments to Sub-Contractors,05.04.2011,5100438498,"1,530.00",A1 Drainmasters Ltd
Manchester City Council,Hospitality + Trading Services,Payments to Sub-Contractors,05.04.2011,5100438501,"1,000.00",A1 Drainmasters Ltd
Manchester City Council,Environment and Operations,Hire of Machinery,05.04.2011,5100438505,"1,415.00",A1 Drainmasters Ltd
Manchester City Council,Environment and Operations,Hire of Machinery,05.04.2011,5100438510,"1,415.00",A1 Drainmasters Ltd
Manchester City Council,Hospitality + Trading Services,Hire of Machinery,05.04.2011,5100438503,707.50,A1 Drainmasters Ltd
Manchester City Council,Hospitality + Trading Services,Hire of Machinery,05.04.2011,5100438504,707.50,A1 Drainmasters Ltd
Manchester City Council,Hospitality + Trading Services,Hire of Machinery,05.04.2011,5100438509,707.50,A1 Drainmasters Ltd
Manchester City Council,Chief Executives,Proffesional fees,05.04.2011,1902564269,585.00,Aberdeen City Council
Manchester City Council,Adult Social Care,Compensation Payments,05.04.2011,1902560833,660.21,Addlestone Keane
Manchester City Council,Hospitality + Trading Services,Cleaning Equipment and Materials,05.04.2011,5100438018,821.77,Amtoll Ltd
Manchester City Council,Corporate Services,Catering Provisions,05.04.2011,5100437798,"2,806.92",Andersons Wholesale Limited
Manchester City Council,Regeneration Finance,Grant and subscriptions awarded,05.04.2011,5100438085,"1,760.00",Awaaz Manchester
Manchester City Council,Childrens Services,Training and Development,05.04.2011,5100437919,607.25,Axis Education Ltd
Manchester City Council,Adult Social Care,Rents,05.04.2011,1902564421,500.00,B & A Properties
Manchester City Council,Adult Social Care,Rents,05.04.2011,1902564424,500.00,B & A Properties
Manchester City Council,Adult Social Care,Rents,05.04.2011,1902564425,500.00,B & A Properties
Manchester City Council,Adult Social Care,Rents,05.04.2011,1902564427,500.00,B & A Properties
Manchester City Council,Childrens Services,Rents,05.04.2011,1902564266,"4,806.00",Barnardos Manchester Leaving Care S
Manchester City Council,Childrens Services,Rents,05.04.2011,1902564267,"4,806.00",Barnardos Manchester Leaving Care S
Manchester City Council,Childrens Services,Rents,05.04.2011,1902564249,"2,589.41",Barnardos Manchester Leaving Care S
Manchester City Council,Childrens Services,Rents,05.04.2011,1902552186,"1,800.00",Barnardos Manchester Leaving Care S
Manchester City Council,Childrens Services,Fixtures and Fitting,05.04.2011,1902552186,"1,645.00",Barnardos Manchester Leaving Care S
Manchester City Council,Childrens Services,Training and Development,05.04.2011,1902564249,"2,650.80",Barnardos Manchester Leaving Care S
Manchester City Council,Childrens Services,Proffesional fees,05.04.2011,1902564245,"1,385.25",Barnardos Manchester Leaving Care S
Manchester City Council,Childrens Services,Proffesional fees,05.04.2011,1902564249,862.00,Barnardos Manchester Leaving Care S
Manchester City Council,Childrens Services,Proffesional fees,05.04.2011,1902564247,617.70,Barnardos Manchester Leaving Care S
Manchester City Council,Childrens Services,Proffesional fees,05.04.2011,1902552186,"1,301.52",Barnardos Manchester Leaving Care S
Manchester City Council,Childrens Services,Foster Payments,05.04.2011,1902564249,"1,282.80",Barnardos Manchester Leaving Care S
Manchester City Council,Childrens Services,Foster Payments,05.04.2011,1902552186,"2,200.55",Barnardos Manchester Leaving Care S
Manchester City Council,Environment and Operations,Proffesional fees,05.04.2011,5100437150,"3,509.86",Buckley & Rowbotham
Manchester City Council,Hospitality + Trading Services,Purchase of stores for re-distribution,05.04.2011,5100437630,"1,040.40",Buildbase Ltd aka Axon Buildbase
Manchester City Council,Adult Social Care,Compensation Payments,05.04.2011,1902554500,"8,000.00",Burnetts
Manchester City Council,Regeneration Finance,Grant and subscriptions awarded,05.04.2011,5100438061,500.00,Castlefield Gallery Limited
Manchester City Council,Childrens Services,Third party payments to Health Authority,05.04.2011,5100437950,"36,057.50",Central Mcr University Hospitals
Manchester City Council,Childrens Services,I T Provision,05.04.2011,5100437849,"6,717.65",Computerland Uk Ltd
Manchester City Council,Corporate Services,I T Provision,05.04.2011,5100438204,735.21,Computerland Uk Ltd
Manchester City Council,Chief Executives,Licences Purchase,05.04.2011,5100438329,"12,500.00",Computerland Uk Ltd
Manchester City Council,Childrens Services,Home Care ,05.04.2011,5100438108,990.89,Diocese of Salford
Manchester City Council,Childrens Services,Home Care ,05.04.2011,5100438109,990.89,Diocese of Salford
Manchester City Council,Corporate Services,Works and associated costs for Land and Buildings,05.04.2011,5100437776,"3,988.00",EMC Computer Systems UK Ltd
Manchester City Council,Corporate Services,Works and associated costs for Land and Buildings,05.04.2011,5100438314,"168,660.00",F Parkinson Limited
Manchester City Council,Corporate Services,Works and associated costs for Land and Buildings,05.04.2011,5100438314,"49,368.00",F Parkinson Limited
Manchester City Council,Hospitality + Trading Services,Vehicle Parts/Spares,05.04.2011,5100438652,"1,146.10",F T Factors
Manchester City Council,Hospitality + Trading Services,Vehicle Parts/Spares,05.04.2011,5100438653,988.20,F T Factors
Manchester City Council,Childrens Services,Payments for services,05.04.2011,5100437935,"1,360.00",FC United of Manchester
Manchester City Council,Childrens Services,Payments for services,05.04.2011,5100437939,"1,360.00",FC United of Manchester
Manchester City Council,Childrens Services,Payments for services,05.04.2011,5100437941,"1,360.00",FC United of Manchester
Manchester City Council,Regeneration Finance,External repairs and maintenance for buildings,05.04.2011,5100438518,"-1,432.00",Fencelines Ltd
Manchester City Council,Chief Executives,Grant and subscriptions awarded,05.04.2011,5100438307,"4,558.14",Greater Manchester Police
Manchester City Council,Regeneration Finance,Grant and subscriptions awarded,05.04.2011,5100438325,"10,643.80",Greater Manchester Police
Manchester City Council,Regeneration Finance,Grant and subscriptions awarded,05.04.2011,5100438323,"2,300.00",Greater Manchester Police
Manchester City Council,Chief Executives,Payments for services,05.04.2011,5100438149,"10,000.00",Greater Manchester Probation Servic
Manchester City Council,Childrens Services,Grant and subscriptions awarded,05.04.2011,5100438151,"1,935.00",Greater Manchester Youth
Manchester City Council,Chief Executives,Agency staff provision,05.04.2011,5100438253,"6,070.45",Hays Personnel
Manchester City Council,Chief Executives,Agency staff provision,05.04.2011,5100438251,"2,422.72",Hays Personnel
Manchester City Council,Adult Social Care,Carer Support Payments ,05.04.2011,5100438160,"1,440.00",Homecare Support
Manchester City Council,Chief Executives,Training and Development,05.04.2011,5100438073,"3,325.00",ILX Group
Manchester City Council,Chief Executives,Training and Development,05.04.2011,5100438073,"3,325.00",ILX Group
Manchester City Council,Adult Social Care,Rents,05.04.2011,5100438038,"16,205.33",Jones Lang LaSalle Limited
Manchester City Council,Adult Social Care,Rents,05.04.2011,5100438041,"15,720.00",Jones Lang LaSalle Limited
Manchester City Council,Manchester Leisure,Payments for services,05.04.2011,5100438288,700.00,Manchester Climbing Centre Ltd
Manchester City Council,Chief Executives,Payments for services,05.04.2011,5100437719,"3,000.00",Manchester Friends of the Earth
Manchester City Council,Adult Social Care,General Payments not otherwise categorised,05.04.2011,5100438237,"2,262.87",Manchester Mental Health & Social C
Manchester City Council,Adult Social Care,General Payments not otherwise categorised,05.04.2011,5100438279,"2,238.60",Manchester Mental Health & Social C
Manchester City Council,Adult Social Care,General Payments not otherwise categorised,05.04.2011,5100438244,"1,941.62",Manchester Mental Health & Social C
Manchester City Council,Manchester Leisure,Proffesional fees,05.04.2011,5100437946,"2,461.52",Manchester Sports & Leisure Trust
Manchester City Council,Manchester Leisure,Payments for services,05.04.2011,5100437777,"1,350.00",Manchester United Foundation
Manchester City Council,Housing General Fund,Surplus property Fees,05.04.2011,5100438086,"8,750.00",MBLA Ltd
Manchester City Council,Childrens Services,Proffesional fees,05.04.2011,5100437956,"8,239.00",Music Stuff
Manchester City Council,Regeneration Finance,Grant and subscriptions awarded,05.04.2011,5100438155,705.00,Music Stuff
Manchester City Council,Regeneration Finance,Grant and subscriptions awarded,05.04.2011,5100438252,705.00,Music Stuff
Manchester City Council,Regeneration Finance,Grant and subscriptions awarded,05.04.2011,5100438245,-705.00,Music Stuff
Manchester City Council,Childrens Services,Car Parking Expenses,05.04.2011,5100438134,"3,130.42",National Car Parks Ltd Season Ticke
Manchester City Council,Environment and Operations,Rents,05.04.2011,5100437928,"1,175.48",National Car Parks Manchester Ltd
Manchester City Council,Hospitality + Trading Services,Purchase of stores for re-distribution,05.04.2011,5100437998,"3,607.24",PHS Group
Manchester City Council,Grtr Manchester Transport Unit,Payments to Sub-Contractors,05.04.2011,5100437938,535.85,Pluswork Group
Manchester City Council,Manchester Leisure,Payments for services,05.04.2011,5100437899,"1,650.00",Premier Sport Ltd
Manchester City Council,Manchester Leisure,Payments for services,05.04.2011,5100437904,"1,620.00",Premier Sport Ltd
Manchester City Council,Manchester Leisure,Payments for services,05.04.2011,5100437902,"1,500.00",Premier Sport Ltd
Manchester City Council,Hospitality + Trading Services,Hire of Machinery,05.04.2011,5100438131,"1,472.00",R & M Developments Ltd
Manchester City Council,Hospitality + Trading Services,Hire of Machinery,05.04.2011,5100438133,"1,440.00",R & M Developments Ltd
Manchester City Council,Hospitality + Trading Services,Hire of Machinery,05.04.2011,5100438141,"1,145.00",R & M Developments Ltd
Manchester City Council,Hospitality + Trading Services,Hire of Machinery,05.04.2011,5100438138,"1,118.50",R & M Developments Ltd
Manchester City Council,Hospitality + Trading Services,Hire of Machinery,05.04.2011,5100438142,"1,090.00",R & M Developments Ltd
Manchester City Council,Hospitality + Trading Services,Hire of Machinery,05.04.2011,5100438137,"1,010.00",R & M Developments Ltd
Manchester City Council,Hospitality + Trading Services,Hire of Machinery,05.04.2011,5100438140,"1,002.00",R & M Developments Ltd
Manchester City Council,Hospitality + Trading Services,Hire of Machinery,05.04.2011,5100438135,840.00,R & M Developments Ltd
Manchester City Council,Hospitality + Trading Services,Hire of Machinery,05.04.2011,5100438127,606.00,R & M Developments Ltd
Manchester City Council,Hospitality + Trading Services,Hire of Machinery,05.04.2011,5100438144,503.75,R & M Developments Ltd
Manchester City Council,Childrens Services,Agency staff provision,05.04.2011,5100438005,575.00,Randstad Education
Manchester City Council,Childrens Services,Agency staff provision,05.04.2011,5100438007,575.00,Randstad Education
Manchester City Council,Childrens Services,Agency staff provision,05.04.2011,5100438013,575.00,Randstad Education
Manchester City Council,Childrens Services,Agency staff provision,05.04.2011,5100438010,"1,025.00",Randstad Education
Manchester City Council,Childrens Services,Agency staff provision,05.04.2011,5100437909,575.00,Randstad Education
Manchester City Council,Childrens Services,Agency staff provision,05.04.2011,5100438011,575.00,Randstad Education
Manchester City Council,Chief Executives,Funeral and coroner related services,05.04.2011,1700019588,"-1,440.00",Redacted Personal Information
Manchester City Council,Childrens Services,Foster Payments,05.04.2011,1902564592,506.41,Redacted Personal Information
Manchester City Council,Childrens Services,Foster Payments,05.04.2011,1902564597,562.47,Redacted Personal Information
Manchester City Council,Childrens Services,Foster Payments,05.04.2011,1902564587,994.50,Redacted Personal Information
Manchester City Council,Childrens Services,Foster Payments,05.04.2011,1902564598,791.52,Redacted Personal Information
Manchester City Council,Childrens Services,Foster Payments,05.04.2011,1902564600,535.16,Redacted Personal Information
Manchester City Council,Grtr Manchester Urban Traffic,Payments to Sub-Contractors,05.04.2011,5100438044,585.00,Rosgal Ltd
Manchester City Council,Grtr Manchester Urban Traffic,Payments to Sub-Contractors,05.04.2011,5100438298,"7,812.61",Rosgal Ltd
Manchester City Council,Grtr Manchester Urban Traffic,Payments to Sub-Contractors,05.04.2011,5100437966,"1,091.80",Rosgal Ltd
Manchester City Council,Grtr Manchester Urban Traffic,Payments to Sub-Contractors,05.04.2011,5100438040,764.02,Rosgal Ltd
Manchester City Council,Hospitality + Trading Services,Postage,05.04.2011,5100438051,"1,886.70",Royal Mail Group Plc
Manchester City Council,Hospitality + Trading Services,Postage,05.04.2011,5100438053,"1,315.09",Royal Mail Group Plc
Manchester City Council,Hospitality + Trading Services,Postage,05.04.2011,5100438087,"1,284.02",Royal Mail Group Plc
Manchester City Council,Childrens Services,Hire of Premises,05.04.2011,5100438043,534.16,Royal Northern College Of Music
Manchester City Council,Childrens Services,Home Care ,05.04.2011,5100438031,550.00,Safecare Services Ltd
Manchester City Council,Highways Services,Payments to Sub-Contractors,05.04.2011,5100438596,751.42,Salt Union Ltd
Manchester City Council,Highways Services,Payments to Sub-Contractors,05.04.2011,5100438561,-751.42,Salt Union Ltd
Manchester City Council,Grtr Manchester Urban Traffic,Payments to Sub-Contractors,05.04.2011,5100438080,"6,347.30",Siemens Plc
Manchester City Council,Grtr Manchester Urban Traffic,Payments to Sub-Contractors,05.04.2011,5100438120,954.46,Siemens Plc
Manchester City Council,Chief Executives,Construction Works,05.04.2011,5100437954,"1,015.67",Siemens Plc
Manchester City Council,Chief Executives,Construction Works,05.04.2011,5100438102,755.80,Siemens Plc
Manchester City Council,Chief Executives,Construction Works,05.04.2011,5100438119,650.06,Siemens Plc
Manchester City Council,Hospitality + Trading Services,Building Maintenance,05.04.2011,5100437932,878.00,Sovereign Fencing Ltd
Manchester City Council,Chief Executives,Building Works,05.04.2011,5100437894,"9,233.00",Space Kraft Limited
Manchester City Council,Hospitality + Trading Services,Vehicle Hire Costs,05.04.2011,5100437629,"70,900.10",Specialist Vehicle rental
Manchester City Council,Manchester Leisure,Payments for services,05.04.2011,5100437895,"1,000.00",Sports Structures Coaches CIC
Manchester City Council,Hospitality + Trading Services,ClothsUniformLaundry,05.04.2011,5100437155,"2,212.20",Stalbridge Linen Services Ltd
Manchester City Council,Hospitality + Trading Services,ClothsUniformLaundry,05.04.2011,5100437153,705.12,Stalbridge Linen Services Ltd
Manchester City Council,Hospitality + Trading Services,Vehicle Parts/Spares,05.04.2011,5100437387,"7,835.83",Stapletons Tyre Services
Manchester City Council,Adult Social Care,Equipment,05.04.2011,5100438200,"1,377.00",Sunridge Upholstery Ltd
Manchester City Council,Hospitality + Trading Services,Building Materials for direct delivery,05.04.2011,5100438095,501.00,Tarmac Central Ltd
Manchester City Council,Hospitality + Trading Services,Purchase of stores for re-distribution,05.04.2011,5100438096,"1,020.50",Tarmac Central Ltd
Manchester City Council,Hospitality + Trading Services,Purchase of stores for re-distribution,05.04.2011,5100438647,"1,780.00",Tecroc Products Ltd
Manchester City Council,Hospitality + Trading Services,Compensation Payments,05.04.2011,5100438092,631.00,United Utilities Water Plc
Manchester City Council,Chief Executives,Home Care ,05.04.2011,5100437907,"1,123.65",Wythenshawe Community Initiative
Manchester City Council,Chief Executives,Grant and subscriptions awarded,05.04.2011,1700019587,"-2,530.50",Wythenshawe Swimming Club
Manchester City Council,Regeneration Finance,Rents,06.04.2011,5100438511,"7,750.00",Age Concern
Manchester City Council,Chief Executives,Training and Development,06.04.2011,5100438351,800.00,Arc People Development Ltd
Manchester City Council,Childrens Services,Fixtures and Fitting,06.04.2011,1902553512,"1,400.00",Barnardos Manchester Leaving Care S
Manchester City Council,Childrens Services,Proffesional fees,06.04.2011,1902553512,"2,242.93",Barnardos Manchester Leaving Care S
Manchester City Council,Regeneration Finance,Subsistence and Conference Expenses,06.04.2011,5100438590,"1,620.00",Bike Right
Manchester City Council,Regeneration Finance,Payments for services,06.04.2011,5100438586,570.00,Bike Right
Manchester City Council,Childrens Services,Proffesional fees,06.04.2011,5100438576,"1,285.20",Black Health Agency
Manchester City Council,Childrens Services,Home Care ,06.04.2011,5100438375,"1,200.00",Black Health Agency
Manchester City Council,Chief Executives,Payments for services,06.04.2011,5100438508,"2,500.00",Bolton Mbc
Manchester City Council,Hospitality + Trading Services,Catering Provisions,06.04.2011,1902569282,728.62,Brake Bros Foodservice Ltd
Manchester City Council,Chief Executives,Printing,06.04.2011,5100438549,590.00,Browns CTP Ltd
Manchester City Council,Corporate Services,Electricity,06.04.2011,5100438418,940.47,Bruntwood Estates Alpha
Manchester City Council,Corporate Services,Electricity,06.04.2011,5100438415,932.76,Bruntwood Estates Alpha
Manchester City Council,Corporate Services,Electricity,06.04.2011,5100438410,897.43,Bruntwood Estates Alpha
Manchester City Council,Corporate Services,Electricity,06.04.2011,5100438397,881.49,Bruntwood Estates Alpha
Manchester City Council,Corporate Services,Electricity,06.04.2011,5100438405,880.94,Bruntwood Estates Alpha
Manchester City Council,Corporate Services,Electricity,06.04.2011,5100438408,880.58,Bruntwood Estates Alpha
Manchester City Council,Corporate Services,Electricity,06.04.2011,5100438423,792.98,Bruntwood Estates Alpha
Manchester City Council,Chief Executives,Grant and subscriptions awarded,06.04.2011,5100438571,"1,000.00",Burnley Borough Council
Manchester City Council,Chief Executives,Advertising,06.04.2011,5100438601,"3,570.00",CBS Outdoor Ltd
Manchester City Council,Chief Executives,Advertising,06.04.2011,5100438597,"2,677.50",CBS Outdoor Ltd
Manchester City Council,Corporate Services,Building Materials for direct delivery,06.04.2011,5100437830,"1,028.52",City Electrical Factors
Manchester City Council,Chief Executives,Goods purchased for resale in Council outlets,06.04.2011,5100438556,"1,793.00",Cornflower Ltd
Manchester City Council,Chief Executives,Goods purchased for resale in Council outlets,06.04.2011,5100438563,"1,198.20",Cornflower Ltd
Manchester City Council,Adult Social Care,Proffesional fees,06.04.2011,1902513654,"2,808.00",Criminal Records Bureau
Manchester City Council,Highways Services,Compensation Payments,06.04.2011,1902518735,737.00,Department For Work & Pensions
Manchester City Council,Childrens Services,Home Care ,06.04.2011,5100438241,990.89,Diocese of Salford
Manchester City Council,Childrens Services,Home Care ,06.04.2011,5100438239,958.93,Diocese of Salford
Manchester City Council,Housing General Fund,Building Works,06.04.2011,5100438583,"10,000.00",Eaga PLC
Manchester City Council,Hospitality + Trading Services,Security,06.04.2011,5100438698,"2,186.02",Goldrange Limited
Manchester City Council,Hospitality + Trading Services,Catering Provisions,06.04.2011,1902569292,728.97,Grosvenor Fresh Foods Ltd
Manchester City Council,Housing General Fund,Building Works,06.04.2011,5100438651,"4,363.00","Groundwork Manchester, Salford"
Manchester City Council,Chief Executives,Internal Repairs and Maintenance for buildings,06.04.2011,5100438357,"1,464.10",Group 4 Total Security Ltd T/A G4S
Manchester City Council,Chief Executives,Agency staff provision,06.04.2011,5100438437,"1,338.46",Harbex Nursing & Care
Manchester City Council,Chief Executives,Agency staff provision,06.04.2011,5100438440,"1,227.40",Harbex Nursing & Care
Manchester City Council,Chief Executives,Occupational Health services,06.04.2011,5100438426,"4,369.80",Healthwork Ltd
Manchester City Council,Chief Executives,Agency staff provision,06.04.2011,5100438615,820.43,Homecare Support
Manchester City Council,Hospitality + Trading Services,Payments to Sub-Contractors,06.04.2011,5100438650,"16,003.15",Intex Support Services Ltd
Manchester City Council,Adult Social Care,Landline Telephone,06.04.2011,5100438611,"1,481.25",Intrinsic Technology Limited
Manchester City Council,Childrens Services,Landline Telephone,06.04.2011,5100438555,"1,200.00",Intrinsic Technology Limited
Manchester City Council,Childrens Services,Landline Telephone,06.04.2011,5100438587,"1,200.00",Intrinsic Technology Limited
Manchester City Council,Childrens Services,Works and associated costs for Land and Buildings,06.04.2011,5100438568,"5,344.00",Intrinsic Technology Limited
Manchester City Council,Childrens Services,Works and associated costs for Land and Buildings,06.04.2011,5100438569,"4,530.50",Intrinsic Technology Limited
Manchester City Council,Childrens Services,Works and associated costs for Land and Buildings,06.04.2011,5100438551,"3,521.00",Intrinsic Technology Limited
Manchester City Council,Manchester Leisure,Works and associated costs for Land and Buildings,06.04.2011,5100438599,"18,724.00",Intrinsic Technology Limited
Manchester City Council,Manchester Leisure,Works and associated costs for Land and Buildings,06.04.2011,5100438605,"12,247.00",Intrinsic Technology Limited
Manchester City Council,Nuclear Free Zones,Grant and subscriptions awarded,06.04.2011,1902564622,811.00,Kimo International
Manchester City Council,Corporate Services,Legal Fees,06.04.2011,5100438390,"1,233.75",Kings Chambers
Manchester City Council,Chief Executives,Works and associated costs for Land and Buildings,06.04.2011,5100438634,"3,991.00",Lancaster Maloney Ltd
Manchester City Council,Chief Executives,Agency staff provision,06.04.2011,5100438641,"1,908.01",LAW Absolute
Manchester City Council,Manchester Leisure,Payments for services,06.04.2011,5100438341,"3,824.00",Manchester Rugby Union
Manchester City Council,Highways Services,Compensation Payments,06.04.2011,1902564620,"10,000.00",McCool Patterson Hemsi Solicitors
Manchester City Council,Chief Executives,Advertising,06.04.2011,5100438636,"14,674.84",MEN Media Ltd
Manchester City Council,Chief Executives,Funeral and coroner related services,06.04.2011,5100438621,552.76,Michael Kennedy Funeral Service
Manchester City Council,Adult Social Care,Funeral and coroner related services,06.04.2011,5100438506,598.00,Michael Kennedy Funeral Service
Manchester City Council,Adult Social Care,Funeral and coroner related services,06.04.2011,5100438507,"2,197.00",Michael Kennedy Funeral Service
Manchester City Council,Regeneration Finance,Grant and subscriptions awarded,06.04.2011,5100438154,"9,343.00",Music Stuff
Manchester City Council,Regeneration Finance,Grant and subscriptions awarded,06.04.2011,5100438139,"8,396.00",Music Stuff
Manchester City Council,Chief Executives,Car Parking Permits,06.04.2011,5100438411,"1,047.49",National Car Parks Manchester Ltd
Manchester City Council,Highways Services,Compensation Payments,06.04.2011,1902564644,"6,173.70",National Grid plc
Manchester City Council,Chief Executives,Advertising,06.04.2011,5100438716,500.00,North West Media Ltd
Manchester City Council,Housing Revenue Account,Proffesional fees,06.04.2011,5100438544,"-48,077.30",Northwards Housing Limited
Manchester City Council,Housing Revenue Account,Supporting People Payments,06.04.2011,5100438454,"2,484.48",Northwards Housing Limited
Manchester City Council,Housing Revenue Account,Council Dwelling Adaptations,06.04.2011,5100438628,"101,462.13",Northwards Housing Limited
Manchester City Council,Housing Revenue Account,Council Dwelling Adaptations,06.04.2011,5100438702,"26,923.43",Northwards Housing Limited
Manchester City Council,Housing Revenue Account,Council Dwelling Adaptations,06.04.2011,5100438638,"10,737.44",Northwards Housing Limited
Manchester City Council,Housing Revenue Account,Council Dwelling Adaptations,06.04.2011,5100438626,"1,170.59",Northwards Housing Limited
Manchester City Council,Housing Revenue Account,Council Dwelling Adaptations,06.04.2011,5100438633,837.00,Northwards Housing Limited
Manchester City Council,Housing Revenue Account,Council Dwelling Adaptations,06.04.2011,5100438635,535.00,Northwards Housing Limited
Manchester City Council,Housing Revenue Account,Council Dwelling Adaptations,06.04.2011,5100438625,527.44,Northwards Housing Limited
Manchester City Council,Childrens Services,"CD-ROM, Software...",06.04.2011,1902564437,"1,680.00",Open Objects Software Ltd
Manchester City Council,Childrens Services,"CD-ROM, Software...",06.04.2011,1902564438,"11,301.00",Open Objects Software Ltd
Manchester City Council,Learning Disabilities PB,Residential Care Homes Payments,06.04.2011,5100438691,"1,081.36",Ormerod Home Trust Ltd
Manchester City Council,Regeneration Finance,Grant and subscriptions awarded,06.04.2011,5100438629,"8,000.00",Peoples History Museum
Manchester City Council,Manchester Leisure,Licences Purchase,06.04.2011,5100438463,"5,918.93",Performing Rights Society
Manchester City Council,Chief Executives,Grant and subscriptions awarded,06.04.2011,1902564560,"1,800.00",POW WOW
Manchester City Council,Grtr Manchester Urban Traffic,Payments to Sub-Contractors,06.04.2011,5100438442,716.43,Rachelfield Ltd
Manchester City Council,Childrens Services,Grant and subscriptions awarded,06.04.2011,5100438486,"2,000.00",RECLAIM Project Ltd
Manchester City Council,Childrens Services,Grant and subscriptions awarded,06.04.2011,5100438487,"2,000.00",RECLAIM Project Ltd
Manchester City Council,Childrens Services,Grant and subscriptions awarded,06.04.2011,5100438488,"2,000.00",RECLAIM Project Ltd
Manchester City Council,Childrens Services,Py lieu not 2011 sch,06.04.2011,1902569156,"8,439.12",Redacted Personal Information
Manchester City Council,Childrens Services,Vol Svernce 2011 sch,06.04.2011,1902569156,"28,206.76",Redacted Personal Information
Manchester City Council,Childrens Services,Internal Repairs and Maintenance for buildings,06.04.2011,5100438443,"3,400.00",Redacted Personal Information
Manchester City Council,Childrens Services,Transport Coach Hire,06.04.2011,5100438645,"4,181.50",Redacted Personal Information
Manchester City Council,Highways Services,Legal Fees,06.04.2011,5100438762,"1,035.00",Redacted Personal Information
Manchester City Council,Highways Services,Compensation Payments,06.04.2011,5100438758,828.00,Redacted Personal Information
Manchester City Council,Highways Services,Compensation Payments,06.04.2011,1902564394,"2,400.00",Redacted Personal Information
Manchester City Council,Childrens Services,Foster Payments,06.04.2011,1902569157,660.00,Redacted Personal Information
Manchester City Council,Manchester Leisure,Recharge Between Dep,06.04.2011,5100438459,500.00,Redacted Personal Information
Manchester City Council,Childrens Services,Proffesional fees,06.04.2011,5100438368,"1,950.00",Rochdale MBC
Manchester City Council,Corporate Services,Postage,06.04.2011,5100438528,"1,678.42",Royal Mail
Manchester City Council,Childrens Services,Proffesional fees,06.04.2011,5100438606,578.66,Safehands Network Ltd
Manchester City Council,Highways Services,Payments to Sub-Contractors,06.04.2011,5100438706,"3,007.84",Salt Union Ltd
Manchester City Council,Highways Services,Payments to Sub-Contractors,06.04.2011,5100438701,"2,262.90",Salt Union Ltd
Manchester City Council,Highways Services,Payments to Sub-Contractors,06.04.2011,5100438704,"2,249.39",Salt Union Ltd
Manchester City Council,Highways Services,Payments to Sub-Contractors,06.04.2011,5100438700,"1,502.84",Salt Union Ltd
Manchester City Council,Highways Services,Payments to Sub-Contractors,06.04.2011,5100438598,751.42,Salt Union Ltd
Manchester City Council,Childrens Services,Transport Coach Hire,06.04.2011,5100438431,"2,315.00",Saltax Ltd
Manchester City Council,Chief Executives,Agency staff provision,06.04.2011,5100438491,"2,127.20",Sellick Partnership (Legal) Ltd
Manchester City Council,Chief Executives,Agency staff provision,06.04.2011,5100438755,"1,099.84",Sellick Partnership (Legal) Ltd
Manchester City Council,Manchester Leisure,Hire of Premises,06.04.2011,5100438345,640.00,Serco Manchester Leisure Ltd Wythen
Manchester City Council,Chief Executives,Proffesional fees,06.04.2011,1902551259,682.69,Sheni Ravji-Smith
Manchester City Council,Childrens Services,Fencing,06.04.2011,5100438719,521.30,Sibcas Limited
Manchester City Council,Childrens Services,Hire of Equipment,06.04.2011,5100438482,702.00,Sibcas Limited
Manchester City Council,Childrens Services,Hire of Equipment,06.04.2011,5100438485,702.00,Sibcas Limited
Manchester City Council,Childrens Services,Hire of Equipment,06.04.2011,5100438483,520.00,Sibcas Limited
Manchester City Council,Grtr Manchester Urban Traffic,Payments to Sub-Contractors,06.04.2011,5100438565,"3,624.72",Siemens Plc
Manchester City Council,Regeneration Finance,Payments for services,06.04.2011,5100438541,730.00,Simpson Dancers
Manchester City Council,Regeneration Finance,Postage,06.04.2011,5100438718,618.27,SOG Ltd
Manchester City Council,Chief Executives,Proffesional fees,06.04.2011,1902564566,"2,000.00",Southbank Centre
Manchester City Council,Chief Executives,Proffesional fees,06.04.2011,1902564566,"10,000.00",Southbank Centre
Manchester City Council,Manchester Leisure,Equipment,06.04.2011,5100438439,"2,500.00",Sport 4 Life Ltd
Manchester City Council,Environment and Operations,Testing Fees,06.04.2011,5100438543,"14,788.00",Staffordshire County Council
Manchester City Council,Environment and Operations,Testing Fees,06.04.2011,5100438539,"1,405.00",Staffordshire County Council
Manchester City Council,Regeneration Finance,Third party payments to other Local Authorities,06.04.2011,5100438689,600.00,Step Enterprise Limited
Manchester City Council,Childrens Services,Payments for services,06.04.2011,5100438495,"1,274.14",Stockdales
Manchester City Council,Childrens Services,Student Discretionery Awards,06.04.2011,5100437763,"1,456.00",Stockport College
Manchester City Council,Manchester Leisure,Rents,06.04.2011,5100438579,960.00,Te-Sheng-Do
Manchester City Council,Manchester Leisure,Payments for services,06.04.2011,5100438413,"1,800.00",Te-Sheng-Do
Manchester City Council,Manchester Leisure,Payments for services,06.04.2011,5100438354,"1,290.00",Te-Sheng-Do
Manchester City Council,Grtr Manchester Transport Unit,Payments to Sub-Contractors,06.04.2011,5100438530,"2,268.10",The Care Company (Sussex) Ltd
Manchester City Council,Chief Executives,Grant and subscriptions awarded,06.04.2011,5100438455,"4,500.00",The Kindling Trust
Manchester City Council,Regeneration Finance,Agency staff provision,06.04.2011,5100438445,"3,977.27",The Manchester College
Manchester City Council,Regeneration Finance,Grant and subscriptions awarded,06.04.2011,5100438733,"6,000.00",The nXt generation Youth
Manchester City Council,Manchester Leisure,Payments for services,06.04.2011,5100438438,642.24,Tobar
Manchester City Council,Manchester Leisure,Rents,06.04.2011,5100438731,720.00,Trinity House Community Resource
Manchester City Council,Chief Executives,Advertising,06.04.2011,5100438355,"2,293.20",TSL Education Ltd
Manchester City Council,Chief Executives,Advertising,06.04.2011,5100438367,"1,102.50",TSL Education Ltd
Manchester City Council,Chief Executives,Advertising,06.04.2011,5100438361,882.00,TSL Education Ltd
Manchester City Council,Chief Executives,Advertising,06.04.2011,5100438358,661.50,TSL Education Ltd
Manchester City Council,Chief Executives,Advertising,06.04.2011,5100438749,661.50,TSL Education Ltd
Manchester City Council,Chief Executives,General Office expenses,06.04.2011,5100438589,986.00,Tuckers Solicitors
Manchester City Council,Adult Social Care,Carer Support Payments ,06.04.2011,5100438476,840.00,Tunstall Telecom Ltd
Manchester City Council,Corporate Services,Works and associated costs for Land and Buildings,06.04.2011,5100438619,"1,170.00",Turnaround Research and Consultancy
Manchester City Council,Corporate Services,Works and associated costs for Land and Buildings,06.04.2011,5100438619,"1,170.00",Turnaround Research and Consultancy
Manchester City Council,Adult Social Care,Water - Metered,06.04.2011,1902564569,578.73,United Utilities Water Plc
Manchester City Council,Chief Executives,Proffesional fees,06.04.2011,1902564579,500.00,Vital Pictures Ltd
Manchester City Council,Manchester Leisure,Payments for services,06.04.2011,5100438319,625.00,W S Education
Manchester City Council,Regeneration Finance,General Office expenses,06.04.2011,5100438466,592.20,Wild about Water
Manchester City Council,Childrens Services,Agency staff provision,06.04.2011,5100438465,"1,405.82",Wythenshawe Community Initiative
Manchester City Council,Childrens Services,Agency staff provision,06.04.2011,5100438464,"1,168.20",Wythenshawe Community Initiative
Manchester City Council,Childrens Services,Agency staff provision,06.04.2011,5100438462,831.60,Wythenshawe Community Initiative
Manchester City Council,Hospitality + Trading Services,Transport Coach Hire,07.04.2011,5100438522,"2,274.70",AAB Travel
Manchester City Council,Childrens Services,Transport Coach Hire,07.04.2011,5100439516,"1,380.00",Abacus Travel Services
Manchester City Council,Childrens Services,Transport Coach Hire,07.04.2011,5100439510,810.00,Abacus Travel Services
Manchester City Council,Housing General Fund,Building Works,07.04.2011,1902564279,"3,213.88",ABV Rhoades (Surveyors)
Manchester City Council,Childrens Services,Security,07.04.2011,5100438886,873.98,Adt Fire & Security Plc
Manchester City Council,Childrens Services,Security,07.04.2011,5100438894,578.50,Adt Fire & Security Plc
Manchester City Council,Hospitality + Trading Services,Vehicle Repairs,07.04.2011,5100439023,"1,168.32",Advanced Vehicle Technicians Ltd
Manchester City Council,Childrens Services,Equipment,07.04.2011,5100439530,"1,468.60",Aiguille Alpine Equipment
Manchester City Council,Section 48,Grant and subscriptions awarded,07.04.2011,5100439337,"4,175.00",AllAboutAudiences
Manchester City Council,Childrens Services,Training and Development,07.04.2011,1902555577,"1,869.00",Barnardos Manchester Leaving Care S
Manchester City Council,Childrens Services,Proffesional fees,07.04.2011,1902555577,"1,117.40",Barnardos Manchester Leaving Care S
Manchester City Council,Chief Executives,Agency staff provision,07.04.2011,5100438803,"1,306.15",Bennett Staff Bureau
Manchester City Council,Housing General Fund,Surplus property Acquisitions,07.04.2011,1902570827,"3,881.25",Betesh Partnership
Manchester City Council,Regeneration Finance,Subsistence and Conference Expenses,07.04.2011,5100437281,798.00,Bike Right
Manchester City Council,Hospitality + Trading Services,Purchase of stores for re-distribution,07.04.2011,5100439367,"2,090.00",Bpi Recycled Products Plc
Manchester City Council,Hospitality + Trading Services,Purchase of stores for re-distribution,07.04.2011,5100439366,"1,197.00",Bpi Recycled Products Plc
Manchester City Council,Hospitality + Trading Services,Catering Provisions,07.04.2011,1902570565,665.26,Brake Bros Foodservice Ltd
Manchester City Council,Hospitality + Trading Services,Catering Provisions,07.04.2011,1902570450,626.18,Brake Bros Foodservice Ltd
Manchester City Council,Hospitality + Trading Services,Catering Provisions,07.04.2011,1902569891,807.01,Brake Bros Foodservice Ltd
Manchester City Council,Hospitality + Trading Services,Catering Provisions,07.04.2011,1902569730,573.20,Brake Bros Foodservice Ltd
Manchester City Council,Hospitality + Trading Services,Catering Provisions,07.04.2011,1902569743,532.38,Brake Bros Foodservice Ltd
Manchester City Council,Chief Executives,Payments for services,07.04.2011,5100437723,"3,000.00",British Cycling Federation
Manchester City Council,Adult Social Care,Landline Telephone,07.04.2011,1902562405,"1,425.57",BT PLC
Manchester City Council,Adult Social Care,Landline Telephone,07.04.2011,1902564445,513.47,BT PLC
Manchester City Council,Section 48,Grant and subscriptions awarded,07.04.2011,5100439040,"8,700.00",Business in the arts: North West
Manchester City Council,Childrens Services,Heating Oil,07.04.2011,5100439507,642.68,Calor Gas Ltd
Manchester City Council,Section 48,Grant and subscriptions awarded,07.04.2011,5100439041,"3,300.00",Cancer Aid & Listening Line
Manchester City Council,Chief Executives,I T Provision,07.04.2011,5100438737,"1,000.00",Capita Business Services Ltd
Manchester City Council,Chief Executives,Agency staff provision,07.04.2011,5100438765,745.92,Carepath Recruitment
Manchester City Council,Section 48,Grant and subscriptions awarded,07.04.2011,5100439044,"2,575.00",Chinese Arts Centre
Manchester City Council,Section 48,Grant and subscriptions awarded,07.04.2011,5100439045,"8,900.00",Commonword Ltd
Manchester City Council,Section 48,Grant and subscriptions awarded,07.04.2011,5100439043,"3,750.00",Community Arts North West
Manchester City Council,Chief Executives,Agency staff provision,07.04.2011,5100439351,"2,000.00",Consult R Us Ltd
Manchester City Council,Section 48,Grant and subscriptions awarded,07.04.2011,5100439046,"33,375.00",Contact Theatre Company
Manchester City Council,Hospitality + Trading Services,Purchase of stores for re-distribution,07.04.2011,5100439069,950.60,Cooper Clarke Group Ltd
Manchester City Council,Section 48,Grant and subscriptions awarded,07.04.2011,5100439047,"17,625.00",Cornerhouse
Manchester City Council,Chief Executives,Goods purchased for resale in Council outlets,07.04.2011,5100438532,"1,931.00",Cornflower Ltd
Manchester City Council,Chief Executives,Goods purchased for resale in Council outlets,07.04.2011,5100438526,749.60,Cornflower Ltd
Manchester City Council,Childrens Services,Supported Accommodation,07.04.2011,5100438995,552.80,Creative Support Limited
Manchester City Council,Childrens Services,Building Works,07.04.2011,5100438854,690.00,D & D Building
Manchester City Council,Housing General Fund,Building Works,07.04.2011,1902569159,"10,000.00",D Jackson Builders & Plasterers
Manchester City Council,Section 48,Grant and subscriptions awarded,07.04.2011,5100439048,"13,625.00",Dance Initiative Greater Manchester
Manchester City Council,Libraries and Theatres,Vehicle Plant Furniture and Equipment,07.04.2011,5100439035,"1,149.99",Demco Worldwide Ltd
Manchester City Council,Insurance Fund,Insurance,07.04.2011,1902552823,547.00,Department For Work & Pensions
Manchester City Council,Insurance Fund,Insurance,07.04.2011,1902564312,547.00,Department For Work & Pensions
Manchester City Council,Insurance Fund,Compensation Payments,07.04.2011,1902564311,"2,181.00",Department For Work & Pensions
Manchester City Council,Hospitality + Trading Services,Equipment,07.04.2011,5100439466,847.00,E Jordon (Refrigeration) Ltd
Manchester City Council,Adult Social Care,Electricity,07.04.2011,1902570247,754.85,E-On
Manchester City Council,Adult Social Care,Electricity,07.04.2011,1902570246,601.30,E-On
Manchester City Council,Childrens Services,Building Works,07.04.2011,5100437982,"4,442.00",F Parkinson Limited
Manchester City Council,Hospitality + Trading Services,Building Materials for direct delivery,07.04.2011,5100437208,578.55,Fairway Landscapes Ltd
Manchester City Council,Childrens Services,Grant and subscriptions awarded,07.04.2011,5100439392,"11,860.00",Family Action
Manchester City Council,Childrens Services,Grant and subscriptions awarded,07.04.2011,5100439387,"3,880.00",Family Action
Manchester City Council,Highways Services,Compensation Payments,07.04.2011,1902562412,"7,978.50",Fentons Solicitors
Manchester City Council,Chief Executives,I T Provision,07.04.2011,5100438732,"2,700.00",Footprint Solutions Ltd
Manchester City Council,Section 48,Grant and subscriptions awarded,07.04.2011,5100438872,"2,975.00",Full Circle Arts
Manchester City Council,Hospitality + Trading Services,Purchase of stores for re-distribution,07.04.2011,5100439314,936.00,GB Chemicals
Manchester City Council,Section 48,Grant and subscriptions awarded,07.04.2011,5100438868,"57,100.00",GMCVO
Manchester City Council,Section 48,Grant and subscriptions awarded,07.04.2011,5100438853,"5,100.00",Greater M/Cr Hazards Centre
Manchester City Council,Section 48,Grant and subscriptions awarded,07.04.2011,5100438857,"20,275.00",Greater Manchester Coalition Of Dis
Manchester City Council,Section 48,Grant and subscriptions awarded,07.04.2011,5100438898,"35,400.00",Greater Manchester Pay & employment
Manchester City Council,Chief Executives,Grant and subscriptions awarded,07.04.2011,5100439347,"1,653.91",Greater Manchester Police
Manchester City Council,Regeneration Finance,Grant and subscriptions awarded,07.04.2011,5100438788,"4,897.50",Greater Manchester Police
Manchester City Council,Regeneration Finance,Grant and subscriptions awarded,07.04.2011,5100438770,"3,751.87",Greater Manchester Police
Manchester City Council,Regeneration Finance,Grant and subscriptions awarded,07.04.2011,5100439378,"3,551.47",Greater Manchester Police
Manchester City Council,Section 48,Grant and subscriptions awarded,07.04.2011,5100438899,"46,025.00",Greater Manchester Sports
Manchester City Council,Section 48,Grant and subscriptions awarded,07.04.2011,5100438900,"7,525.00",Green Room
Manchester City Council,Environment and Operations,Payments to Sub-Contractors,07.04.2011,5100438852,"56,032.00","Groundwork Manchester, Salford"
Manchester City Council,Highways Services,Equipment,07.04.2011,5100438972,"1,265.18",Harry Hall Cycles
Manchester City Council,Chief Executives,Grant and subscriptions awarded,07.04.2011,1902562385,"5,100.00",Healthy Ardwick
Manchester City Council,Chief Executives,Grant and subscriptions awarded,07.04.2011,1902562383,"1,590.83",Healthy Ardwick
Manchester City Council,Environment and Operations,Data Registration,07.04.2011,1902552608,"1,310.00",Hm Court Service
Manchester City Council,Childrens Services,Rents,07.04.2011,5100439169,"1,697.01",House Of Grumpy Ltd
Manchester City Council,Childrens Services,Hire of Premises,07.04.2011,5100439168,"3,270.00",House Of Grumpy Ltd
Manchester City Council,Chief Executives,Agency staff provision,07.04.2011,5100438791,"3,234.33",HR Care (Manchester) Ltd
Manchester City Council,Chief Executives,Agency staff provision,07.04.2011,5100438796,"2,781.26",HR Care (Manchester) Ltd
Manchester City Council,Chief Executives,Agency staff provision,07.04.2011,5100438793,"2,653.27",HR Care (Manchester) Ltd
Manchester City Council,Childrens Services,Equipment,07.04.2011,5100438973,890.00,Inclusive Technology Ltd
Manchester City Council,Section 48,Grant and subscriptions awarded,07.04.2011,5100438901,"8,200.00",Independent Choices - Manchester Li
Manchester City Council,Hospitality + Trading Services,Courier Costs,07.04.2011,5100438967,533.00,James Burns & Co
Manchester City Council,Chief Executives,Personal Injury Comp,07.04.2011,1902569161,"20,000.00",John Pickering & Partners
Manchester City Council,Adult Social Care,Legal Fees,07.04.2011,5100439399,892.50,Kings Chambers
Manchester City Council,Adult Social Care,Rents,07.04.2011,1902569034,539.24,M & Q Estates Ltd
Manchester City Council,Adult Social Care,Rents,07.04.2011,1902569036,"1,580.06",M & Q Estates Ltd
Manchester City Council,Section 48,Grant and subscriptions awarded,07.04.2011,5100438902,"5,900.00",M6 Theatre Company
Manchester City Council,Childrens Services,Transport Coach Hire,07.04.2011,5100437350,"1,882.55",Mallons Minibuses
Manchester City Council,Section 48,Grant and subscriptions awarded,07.04.2011,5100439042,"13,700.00",Manchester Camerata
Manchester City Council,Section 48,Grant and subscriptions awarded,07.04.2011,5100438905,"2,825.00",Manchester Metropolitan University
Manchester City Council,Manchester Leisure,Hire of Premises,07.04.2011,5100438885,869.72,Manchester Sports & Leisure Trust
Manchester City Council,Manchester Leisure,Other Grants Reimb,07.04.2011,1902555557,"10,000.00",Manchester Swimming Dev Group
Manchester City Council,Regeneration Finance,Rents,07.04.2011,1902564319,"7,645.50",Mars Pension Trustees Limited
Manchester City Council,Regeneration Finance,Rents,07.04.2011,1902564321,"6,570.88",Mars Pension Trustees Limited
Manchester City Council,Adult Social Care,Third party payments relating to Voluntary Organisations,07.04.2011,5100439373,"1,273.67",MCCR
Manchester City Council,Chief Executives,Communications,07.04.2011,5100439332,500.00,MEN Media Ltd
Manchester City Council,Adult Social Care,Funeral and coroner related services,07.04.2011,5100439386,"3,163.00",Michael Kennedy Funeral Service
Manchester City Council,Adult Social Care,Funeral and coroner related services,07.04.2011,5100439372,683.00,Michael Kennedy Funeral Service
Manchester City Council,Adult Social Care,Funeral and coroner related services,07.04.2011,5100439389,995.00,Michael Kennedy Funeral Service
Manchester City Council,Environment and Operations,I T Provision,07.04.2011,5100439448,650.00,MobileWorks Ltd
Manchester City Council,Learning Disabilities PB,Supported Accommodation,07.04.2011,1902562390,"5,000.00",Moore Care Ltd
Manchester City Council,Corporate Services,#N/A,07.04.2011,5100439073,"-2,270.40",Museum of Science & Industry
Manchester City Council,Regeneration Finance,Grant and subscriptions awarded,07.04.2011,5100437589,"4,590.00",Music Stuff
Manchester City Council,Regeneration Finance,Grant and subscriptions awarded,07.04.2011,5100437591,"4,230.00",Music Stuff
Manchester City Council,Regeneration Finance,Car Parking Permits,07.04.2011,5100439298,"2,465.21",National Car Parks Ltd Season Ticke
Manchester City Council,Section 48,Grant and subscriptions awarded,07.04.2011,5100438896,"3,700.00",North West Playwrights
Manchester City Council,Section 48,Grant and subscriptions awarded,07.04.2011,5100438892,"4,900.00",North West Sound Archive
Manchester City Council,Section 48,Grant and subscriptions awarded,07.04.2011,5100438889,"6,950.00",North West Vision and Media
Manchester City Council,Regeneration Finance,Hire of Premises,07.04.2011,5100439456,"3,802.30",Northmoor Community Association
Manchester City Council,Housing Revenue Account,Gas,07.04.2011,5100438566,"52,717.24",Northwards Housing Limited
Manchester City Council,Housing Revenue Account,Council Dwelling Adaptations,07.04.2011,5100439398,"100,578.50",Northwards Housing Limited
Manchester City Council,Housing Revenue Account,Council Dwelling Adaptations,07.04.2011,5100439402,"13,689.82",Northwards Housing Limited
Manchester City Council,Housing Revenue Account,Council Dwelling Adaptations,07.04.2011,5100439472,507.25,Northwards Housing Limited
Manchester City Council,Environment and Operations,Refuse Collection,07.04.2011,1902569044,576.58,Novus Environmental
Manchester City Council,Section 48,Grant and subscriptions awarded,07.04.2011,5100438876,"27,075.00",Octagon Theatre Bolton
Manchester City Council,Childrens Services,Home Care ,07.04.2011,5100439537,"4,250.00",Old Moat Youth Outreach Project
Manchester City Council,Section 48,Grant and subscriptions awarded,07.04.2011,5100438848,"25,675.00",Oldham Coliseum Theatre
Manchester City Council,Regeneration Finance,Proffesional fees,07.04.2011,5100438152,"4,500.00",Oxford Economic Forecasting
Manchester City Council,Chief Executives,Payments to Sub-Contractors,07.04.2011,5100438783,"17,730.60",P Mcguinness & Co Ltd
Manchester City Council,Chief Executives,Payments to Sub-Contractors,07.04.2011,5100438780,"1,300.64",P Mcguinness & Co Ltd
Manchester City Council,Corporate Services,External repairs and maintenance for buildings,07.04.2011,5100438920,"3,375.00",P N Daly
Manchester City Council,Hospitality + Trading Services,Vehicle Hire Costs,07.04.2011,5100439134,"1,050.00",Phoenix Vehicle Hire Ltd
Manchester City Council,Hospitality + Trading Services,Vehicle Hire Costs,07.04.2011,5100439133,525.00,Phoenix Vehicle Hire Ltd
Manchester City Council,Hospitality + Trading Services,Vehicle Hire Costs,07.04.2011,5100439135,525.00,Phoenix Vehicle Hire Ltd
Manchester City Council,Hospitality + Trading Services,Vehicle Hire Costs,07.04.2011,5100439136,525.00,Phoenix Vehicle Hire Ltd
Manchester City Council,Chief Executives,Hire of Equipment,07.04.2011,5100438961,"1,327.92",Piccadilly AV Ltd
Manchester City Council,Chief Executives,Hire of Premises,07.04.2011,5100438980,680.00,Preston City Council
Manchester City Council,Chief Executives,Payments for services,07.04.2011,5100438162,"4,770.00",Prime Care Ambulance Service
Manchester City Council,Chief Executives,Agency staff provision,07.04.2011,5100438915,"1,383.90",Progressive Recruitment Ltd
Manchester City Council,Chief Executives,Proffesional fees,07.04.2011,5100439014,"1,250.00",PushOn limited
Manchester City Council,Chief Executives,Proffesional fees,07.04.2011,5100439014,"1,250.00",PushOn limited
Manchester City Council,Chief Executives,Proffesional fees,07.04.2011,5100439014,500.00,PushOn limited
Manchester City Council,Childrens Services,Agency staff provision,07.04.2011,5100439549,"1,146.65",Randstad Education
Manchester City Council,Childrens Services,Agency staff provision,07.04.2011,5100439556,"1,146.65",Randstad Education
Manchester City Council,Childrens Services,Agency staff provision,07.04.2011,5100439555,"1,046.16",Randstad Education
Manchester City Council,Childrens Services,Agency staff provision,07.04.2011,5100439550,"1,025.00",Randstad Education
Manchester City Council,Childrens Services,Agency staff provision,07.04.2011,5100439558,"1,025.00",Randstad Education
Manchester City Council,Childrens Services,Agency staff provision,07.04.2011,5100439561,"1,025.00",Randstad Education
Manchester City Council,Childrens Services,Agency staff provision,07.04.2011,5100439554,631.01,Randstad Education
Manchester City Council,Childrens Services,Agency staff provision,07.04.2011,5100439559,612.50,Randstad Education
Manchester City Council,Childrens Services,Foster Payments,07.04.2011,1902570828,536.10,Redacted Personal Information
Manchester City Council,Section 48,Grant and subscriptions awarded,07.04.2011,5100439264,"3,200.00",Relate Manchester
Manchester City Council,Childrens Services,Home Care ,07.04.2011,5100438722,"1,000.00",Rhythm and Rhyme Limited
Manchester City Council,Corporate Services,Postage,07.04.2011,5100438911,"6,189.54",Royal Mail Group Plc
Manchester City Council,Environment and Operations,Postage,07.04.2011,5100438913,"1,261.44",Royal Mail Group Plc
Manchester City Council,Chief Executives,Agency staff provision,07.04.2011,5100438922,"2,262.54",Rullion Engineering Personnel Limit
Manchester City Council,Insurance Fund,Insurance,07.04.2011,1902562387,"6,850.00",Russell & Russell
Manchester City Council,Housing Revenue Account,Grounds Maintenance,07.04.2011,5100439529,"-1,350.00",Safe Estates Services Ltd
Manchester City Council,Adult Social Care,Equipment,07.04.2011,5100438862,"1,147.00",Safe Partnership Ltd
Manchester City Council,Chief Executives,Payments for services,07.04.2011,5100439563,"5,000.00",Salford City Council
Manchester City Council,Childrens Services,Proffesional fees,07.04.2011,5100439428,"9,053.74",Scope
Manchester City Council,Adult Social Care,Electricity,07.04.2011,1902570282,"1,795.34",Scottish & Southern Energy Plc
Manchester City Council,Adult Social Care,Electricity,07.04.2011,1902570265,"1,226.07",Scottish & Southern Energy Plc
Manchester City Council,Chief Executives,Electricity,07.04.2011,1902570267,"18,034.36",Scottish & Southern Energy Plc
Manchester City Council,Chief Executives,Electricity,07.04.2011,1902570274,"12,536.20",Scottish & Southern Energy Plc
Manchester City Council,Childrens Services,Electricity,07.04.2011,1902570283,"3,858.60",Scottish & Southern Energy Plc
Manchester City Council,Childrens Services,Electricity,07.04.2011,1902570284,"3,138.19",Scottish & Southern Energy Plc
Manchester City Council,Childrens Services,Electricity,07.04.2011,1902570255,"2,461.04",Scottish & Southern Energy Plc
Manchester City Council,Corporate Services,Electricity,07.04.2011,1902570260,"10,439.02",Scottish & Southern Energy Plc
Manchester City Council,Corporate Services,Electricity,07.04.2011,1902570261,"5,219.78",Scottish & Southern Energy Plc
Manchester City Council,Corporate Services,Electricity,07.04.2011,1902570262,"4,114.75",Scottish & Southern Energy Plc
Manchester City Council,Corporate Services,Electricity,07.04.2011,1902570264,"11,256.25",Scottish & Southern Energy Plc
Manchester City Council,Corporate Services,Electricity,07.04.2011,1902570270,"11,213.07",Scottish & Southern Energy Plc
Manchester City Council,Corporate Services,Electricity,07.04.2011,1902570271,"10,222.69",Scottish & Southern Energy Plc
Manchester City Council,Corporate Services,Electricity,07.04.2011,1902570273,"4,159.58",Scottish & Southern Energy Plc
Manchester City Council,Environment and Operations,Electricity,07.04.2011,1902570258,"1,541.35",Scottish & Southern Energy Plc
Manchester City Council,Environment and Operations,Electricity,07.04.2011,1902570259,573.35,Scottish & Southern Energy Plc
Manchester City Council,Environment and Operations,Electricity,07.04.2011,1902570256,"1,640.93",Scottish & Southern Energy Plc
Manchester City Council,Environment and Operations,Electricity,07.04.2011,1902570279,"4,279.81",Scottish & Southern Energy Plc
Manchester City Council,Environment and Operations,Electricity,07.04.2011,1902570280,"3,780.99",Scottish & Southern Energy Plc
Manchester City Council,Environment and Operations,Electricity,07.04.2011,1902570251,"2,526.35",Scottish & Southern Energy Plc
Manchester City Council,Environment and Operations,Electricity,07.04.2011,1902570252,"2,072.62",Scottish & Southern Energy Plc
Manchester City Council,Environment and Operations,Electricity,07.04.2011,1902570272,"6,525.50",Scottish & Southern Energy Plc
Manchester City Council,Hospitality + Trading Services,Electricity,07.04.2011,1902570250,"2,465.18",Scottish & Southern Energy Plc
Manchester City Council,Hospitality + Trading Services,Electricity,07.04.2011,1902570275,"1,478.15",Scottish & Southern Energy Plc
Manchester City Council,Hospitality + Trading Services,Electricity,07.04.2011,1902570254,"3,821.72",Scottish & Southern Energy Plc
Manchester City Council,Hospitality + Trading Services,Electricity,07.04.2011,1902570248,"1,683.50",Scottish & Southern Energy Plc
Manchester City Council,Hospitality + Trading Services,Electricity,07.04.2011,1902570257,"9,218.03",Scottish & Southern Energy Plc
Manchester City Council,Hospitality + Trading Services,Electricity,07.04.2011,1902570249,"20,183.97",Scottish & Southern Energy Plc
Manchester City Council,Hospitality + Trading Services,Electricity,07.04.2011,1902570278,"10,213.04",Scottish & Southern Energy Plc
Manchester City Council,Hospitality + Trading Services,Electricity,07.04.2011,1902570263,"10,195.83",Scottish & Southern Energy Plc
Manchester City Council,Libraries and Theatres,Electricity,07.04.2011,1902570253,"1,150.94",Scottish & Southern Energy Plc
Manchester City Council,Manchester Leisure,Electricity,07.04.2011,1902570281,"7,064.79",Scottish & Southern Energy Plc
Manchester City Council,Manchester Leisure,Electricity,07.04.2011,1902570269,"3,960.72",Scottish & Southern Energy Plc
Manchester City Council,Manchester Leisure,Electricity,07.04.2011,1902570266,"1,142.01",Scottish & Southern Energy Plc
Manchester City Council,Regeneration Finance,Electricity,07.04.2011,1902570276,"6,555.39",Scottish & Southern Energy Plc
Manchester City Council,Regeneration Finance,Electricity,07.04.2011,1902570277,"6,314.28",Scottish & Southern Energy Plc
Manchester City Council,Chief Executives,Agency staff provision,07.04.2011,5100439090,"7,711.69",Semester Recruitment Ltd
Manchester City Council,Manchester Leisure,Payments for services,07.04.2011,5100439079,986.06,Serco Manchester (Manchester Commun
Manchester City Council,Childrens Services,Third party payments to other Local Authorities,07.04.2011,5100438884,"2,237.20",Shropshire County Council
Manchester City Council,Regeneration Finance,Equipment,07.04.2011,5100439568,656.63,Siemens Financial Services Ltd
Manchester City Council,Regeneration Finance,Equipment,07.04.2011,5100439570,656.63,Siemens Financial Services Ltd
Manchester City Council,Regeneration Finance,Equipment,07.04.2011,5100439572,656.63,Siemens Financial Services Ltd
Manchester City Council,Regeneration Finance,Postage,07.04.2011,5100438968,733.38,SOG Ltd
Manchester City Council,Insurance Fund,Insurance,07.04.2011,1902562397,"3,648.36",Sph Costing Services Ltd
Manchester City Council,Childrens Services,Subsistence and Conference Expenses,07.04.2011,5100438960,"1,400.00",Stockport College
Manchester City Council,Highways Services,Proffesional fees,07.04.2011,5100438921,828.00,Tep-The Environment Partnership
Manchester City Council,Manchester Leisure,Payments for services,07.04.2011,5100439070,"1,560.00",Te-Sheng-Do
Manchester City Council,Adult Social Care,Furniture,07.04.2011,5100439201,700.00,The Furnishing Service Ltd
Manchester City Council,Adult Social Care,Furniture,07.04.2011,5100439190,"1,004.61",The Furnishing Service Ltd
Manchester City Council,Adult Social Care,Furniture,07.04.2011,5100439213,643.45,The Furnishing Service Ltd
Manchester City Council,Adult Social Care,"Consumable items eg Toilet rolls, soap etc",07.04.2011,5100439230,645.90,The Furnishing Service Ltd
Manchester City Council,Childrens Services,Training and Development,07.04.2011,5100439185,"1,150.43",The Furnishing Service Ltd
Manchester City Council,Chief Executives,Works and associated costs for Land and Buildings,07.04.2011,5100438828,"27,541.10",The Lord Group Ltd
Manchester City Council,Chief Executives,#N/A,07.04.2011,5100438828,"6,407.45",The Lord Group Ltd
Manchester City Council,Regeneration Finance,Hire of Premises,07.04.2011,5100438890,"3,318.24",The Manchester College
Manchester City Council,Regeneration Finance,Grant and subscriptions awarded,07.04.2011,1902560883,"12,500.00",The Monastery Of St.Francis And Gor
Manchester City Council,Regeneration Finance,Grant and subscriptions awarded,07.04.2011,5100439020,"6,674.00",The Princes Trust
Manchester City Council,Chief Executives,Agency staff provision,07.04.2011,5100439049,"1,148.93",The Synergy Group Ltd
Manchester City Council,Chief Executives,Agency staff provision,07.04.2011,5100439050,932.40,The Synergy Group Ltd
Manchester City Council,Housing Revenue Account,Third party payments to other Local Authorities,07.04.2011,5100438919,659.00,The University Of Bolton
Manchester City Council,Insurance Fund,Insurance,07.04.2011,1902556985,"1,250.00",Thompsons Solicitors
Manchester City Council,Childrens Services,Transport Taxis,07.04.2011,5100439266,"2,439.00",Trading Post (NW) Ltd
Manchester City Council,Chief Executives,Advertising,07.04.2011,5100438764,926.10,TSL Education Ltd
Manchester City Council,Chief Executives,Advertising,07.04.2011,5100438759,562.27,TSL Education Ltd
Manchester City Council,Manchester Leisure,Works and associated costs for Land and Buildings,07.04.2011,5100438432,577.50,Turner & Townsend Project
Manchester City Council,Manchester Leisure,Subsistence and Conference Expenses,07.04.2011,5100439318,691.87,Uniglobe Diamond Travel Limited
Manchester City Council,Adult Social Care,Water - Metered,07.04.2011,1902570070,563.94,United Utilities Water Plc
Manchester City Council,Adult Social Care,Water - Metered,07.04.2011,1902570169,"1,257.84",United Utilities Water Plc
Manchester City Council,Adult Social Care,Water - Metered,07.04.2011,1902570102,518.16,United Utilities Water Plc
Manchester City Council,Adult Social Care,Water - Metered,07.04.2011,1902570133,563.94,United Utilities Water Plc
Manchester City Council,Adult Social Care,Water - Metered,07.04.2011,1902570222,692.56,United Utilities Water Plc
Manchester City Council,Adult Social Care,Water - Metered,07.04.2011,1902570168,"1,257.84",United Utilities Water Plc
Manchester City Council,Adult Social Care,Water - Metered,07.04.2011,1902570177,555.88,United Utilities Water Plc
Manchester City Council,Adult Social Care,Water - Metered,07.04.2011,1902570030,"2,017.23",United Utilities Water Plc
Manchester City Council,Adult Social Care,Water - Metered,07.04.2011,1902570179,555.88,United Utilities Water Plc
Manchester City Council,Adult Social Care,Water - Metered,07.04.2011,1902570050,725.81,United Utilities Water Plc
Manchester City Council,Adult Social Care,Water - Metered,07.04.2011,1902570032,"2,639.66",United Utilities Water Plc
Manchester City Council,Adult Social Care,Water - Metered,07.04.2011,1902570038,551.62,United Utilities Water Plc
Manchester City Council,Adult Social Care,Water - Metered,07.04.2011,1902570146,"1,257.84",United Utilities Water Plc
Manchester City Council,Adult Social Care,Water - Metered,07.04.2011,1902570131,672.94,United Utilities Water Plc
Manchester City Council,Adult Social Care,Water - Metered,07.04.2011,1902570136,801.56,United Utilities Water Plc
Manchester City Council,Adult Social Care,Water - Metered,07.04.2011,1902570117,590.11,United Utilities Water Plc
Manchester City Council,Adult Social Care,Water - Metered,07.04.2011,1902570119,884.40,United Utilities Water Plc
Manchester City Council,Adult Social Care,Water - Metered,07.04.2011,1902570106,884.40,United Utilities Water Plc
Manchester City Council,Adult Social Care,Water - Metered,07.04.2011,1902570116,590.11,United Utilities Water Plc
Manchester City Council,Adult Social Care,Water - Metered,07.04.2011,1902570107,590.11,United Utilities Water Plc
Manchester City Council,Adult Social Care,Water - Metered,07.04.2011,1902570148,544.32,United Utilities Water Plc
Manchester City Council,Adult Social Care,Water - Metered,07.04.2011,1902570147,544.32,United Utilities Water Plc
Manchester City Council,Adult Social Care,Water - Metered,07.04.2011,1902570123,590.11,United Utilities Water Plc
Manchester City Council,Adult Social Care,Water - Metered,07.04.2011,1902570077,801.56,United Utilities Water Plc
Manchester City Council,Adult Social Care,Water - Metered,07.04.2011,1902570088,542.14,United Utilities Water Plc
Manchester City Council,Adult Social Care,Water - Metered,07.04.2011,1902570139,542.14,United Utilities Water Plc
Manchester City Council,Adult Social Care,Water - Metered,07.04.2011,1902570093,585.74,United Utilities Water Plc
Manchester City Council,Adult Social Care,Water - Metered,07.04.2011,1902570075,553.04,United Utilities Water Plc
Manchester City Council,Adult Social Care,Water - Metered,07.04.2011,1902570096,509.44,United Utilities Water Plc
Manchester City Council,Adult Social Care,Water - Metered,07.04.2011,1902570089,703.46,United Utilities Water Plc
Manchester City Council,Adult Social Care,Water - Metered,07.04.2011,1902570221,542.14,United Utilities Water Plc
Manchester City Council,Chief Executives,Water - Metered,07.04.2011,1902570196,901.84,United Utilities Water Plc
Manchester City Council,Chief Executives,Water - Metered,07.04.2011,1902570173,662.04,United Utilities Water Plc
Manchester City Council,Chief Executives,Water - Metered,07.04.2011,1902570194,"2,631.26",United Utilities Water Plc
Manchester City Council,Chief Executives,Water - Metered,07.04.2011,1902570105,"1,257.84",United Utilities Water Plc
Manchester City Council,Chief Executives,Water - Metered,07.04.2011,1902570118,"5,849.88",United Utilities Water Plc
Manchester City Council,Childrens Services,Water - Metered,07.04.2011,1902570122,"2,631.26",United Utilities Water Plc
Manchester City Council,Childrens Services,Water - Metered,07.04.2011,1902570002,"2,615.92",United Utilities Water Plc
Manchester City Council,Childrens Services,Water - Metered,07.04.2011,1902570034,807.52,United Utilities Water Plc
Manchester City Council,Childrens Services,Water - Metered,07.04.2011,1902570046,755.46,United Utilities Water Plc
Manchester City Council,Childrens Services,Water - Metered,07.04.2011,1902570200,555.88,United Utilities Water Plc
Manchester City Council,Childrens Services,Water - Metered,07.04.2011,1902570160,555.88,United Utilities Water Plc
Manchester City Council,Childrens Services,Water - Metered,07.04.2011,1902570011,977.04,United Utilities Water Plc
Manchester City Council,Childrens Services,Water - Metered,07.04.2011,1902570165,"1,257.84",United Utilities Water Plc
Manchester City Council,Childrens Services,Water - Metered,07.04.2011,1902570161,555.88,United Utilities Water Plc
Manchester City Council,Childrens Services,Water - Metered,07.04.2011,1902570176,555.88,United Utilities Water Plc
Manchester City Council,Childrens Services,Water - Metered,07.04.2011,1902570172,"1,257.84",United Utilities Water Plc
Manchester City Council,Childrens Services,Water - Metered,07.04.2011,1902570049,505.16,United Utilities Water Plc
Manchester City Council,Childrens Services,Water - Metered,07.04.2011,1902570163,"2,631.26",United Utilities Water Plc
Manchester City Council,Childrens Services,Water - Metered,07.04.2011,1902570153,555.88,United Utilities Water Plc
Manchester City Council,Childrens Services,Water - Metered,07.04.2011,1902570152,"1,257.84",United Utilities Water Plc
Manchester City Council,Childrens Services,Water - Metered,07.04.2011,1902570192,"1,257.84",United Utilities Water Plc
Manchester City Council,Childrens Services,Water - Metered,07.04.2011,1902570003,"1,500.75",United Utilities Water Plc
Manchester City Council,Childrens Services,Water - Metered,07.04.2011,1902570208,"2,631.26",United Utilities Water Plc
Manchester City Council,Childrens Services,Water - Metered,07.04.2011,1902570092,812.46,United Utilities Water Plc
Manchester City Council,Childrens Services,Water - Metered,07.04.2011,1902570166,"1,257.84",United Utilities Water Plc
Manchester City Council,Childrens Services,Water - Metered,07.04.2011,1902570054,859.07,United Utilities Water Plc
Manchester City Council,Childrens Services,Water - Metered,07.04.2011,1902570175,"1,257.84",United Utilities Water Plc
Manchester City Council,Childrens Services,Water - Metered,07.04.2011,1902570164,"1,257.84",United Utilities Water Plc
Manchester City Council,Childrens Services,Water - Metered,07.04.2011,1902570174,"1,257.84",United Utilities Water Plc
Manchester City Council,Childrens Services,Water - Metered,07.04.2011,1902570006,"1,204.14",United Utilities Water Plc
Manchester City Council,Childrens Services,Water - Metered,07.04.2011,1902570180,"1,257.84",United Utilities Water Plc
Manchester City Council,Childrens Services,Water - Metered,07.04.2011,1902570019,588.36,United Utilities Water Plc
Manchester City Council,Childrens Services,Water - Metered,07.04.2011,1902570028,"2,726.72",United Utilities Water Plc
Manchester City Council,Corporate Services,Water - Metered,07.04.2011,1902570004,"1,675.42",United Utilities Water Plc
Manchester City Council,Corporate Services,Water - Metered,07.04.2011,1902570007,751.94,United Utilities Water Plc
Manchester City Council,Corporate Services,Water - Metered,07.04.2011,1902570199,"5,849.88",United Utilities Water Plc
Manchester City Council,Corporate Services,Water - Metered,07.04.2011,1902570104,757.96,United Utilities Water Plc
Manchester City Council,Corporate Services,Water - Metered,07.04.2011,1902569994,"1,350.64",United Utilities Water Plc
Manchester City Council,Environment and Operations,Water - Metered,07.04.2011,1902570048,"1,193.69",United Utilities Water Plc
Manchester City Council,Hospitality + Trading Services,Water - Metered,07.04.2011,1902570014,510.90,United Utilities Water Plc
Manchester City Council,Hospitality + Trading Services,Water - Metered,07.04.2011,1902570193,"1,257.84",United Utilities Water Plc
Manchester City Council,Hospitality + Trading Services,Water - Metered,07.04.2011,1902570026,"10,414.82",United Utilities Water Plc
Manchester City Council,Learning Disabilities PB,Water - Metered,07.04.2011,1902570073,590.11,United Utilities Water Plc
Manchester City Council,Learning Disabilities PB,Water - Metered,07.04.2011,1902570158,533.42,United Utilities Water Plc
Manchester City Council,Libraries and Theatres,Water - Metered,07.04.2011,1902570090,"1,257.84",United Utilities Water Plc
Manchester City Council,Manchester Leisure,Water - Metered,07.04.2011,1902570036,"1,608.70",United Utilities Water Plc
Manchester City Council,Manchester Leisure,Water - Metered,07.04.2011,1902570000,512.65,United Utilities Water Plc
Manchester City Council,Manchester Leisure,Water - Metered,07.04.2011,1902570134,"5,849.88",United Utilities Water Plc
Manchester City Council,Manchester Leisure,Water - Metered,07.04.2011,1902570187,555.88,United Utilities Water Plc
Manchester City Council,Manchester Leisure,Water - Metered,07.04.2011,1700019929,"-1,152.14",United Utilities Water Plc
Manchester City Council,Manchester Leisure,Water - Metered,07.04.2011,1902570124,"5,849.88",United Utilities Water Plc
Manchester City Council,Manchester Leisure,Water - Metered,07.04.2011,1902570223,"1,257.84",United Utilities Water Plc
Manchester City Council,Manchester Leisure,Water - Metered,07.04.2011,1902570023,957.54,United Utilities Water Plc
Manchester City Council,Manchester Leisure,Water - Metered,07.04.2011,1902570100,"2,631.26",United Utilities Water Plc
Manchester City Council,Manchester Leisure,Water - Metered,07.04.2011,1902570170,"1,257.84",United Utilities Water Plc
Manchester City Council,Manchester Leisure,Water - Metered,07.04.2011,1902570171,502.91,United Utilities Water Plc
Manchester City Council,Manchester Leisure,Water - Metered,07.04.2011,1902570207,555.88,United Utilities Water Plc
Manchester City Council,Manchester Leisure,Water - Metered,07.04.2011,1700019928,"-1,171.60",United Utilities Water Plc
Manchester City Council,Manchester Leisure,Water - Metered,07.04.2011,1902570037,"1,452.83",United Utilities Water Plc
Manchester City Council,Manchester Leisure,Water - Metered,07.04.2011,1902570057,"1,258.70",United Utilities Water Plc
Manchester City Council,Manchester Leisure,Water - Metered,07.04.2011,1902570151,"1,257.84",United Utilities Water Plc
Manchester City Council,Manchester Leisure,Water - Metered,07.04.2011,1902570062,"1,296.16",United Utilities Water Plc
Manchester City Council,Mental Health Pooled Budget,Water - Metered,07.04.2011,1902570101,555.88,United Utilities Water Plc
Manchester City Council,Regeneration Finance,Water - Metered,07.04.2011,1902570065,"1,428.42",United Utilities Water Plc
Manchester City Council,Regeneration Finance,Water - Metered,07.04.2011,1902570191,"1,257.84",United Utilities Water Plc
Manchester City Council,Chief Executives,Catering,07.04.2011,5100439013,698.00,University Of Manchester
Manchester City Council,Childrens Services,I T Provision,07.04.2011,5100439022,645.60,University Of Manchester
Manchester City Council,Chief Executives,Grant and subscriptions awarded,07.04.2011,5100439011,"2,350.00",University Of Manchester
Manchester City Council,Corporate Services,Proffesional fees,07.04.2011,5100438984,"3,930.00",Victoria Baths Trust
Manchester City Council,Regeneration Finance,Proffesional fees,07.04.2011,5100439019,"17,000.00",Vizzihome Ltd
Manchester City Council,Adult Social Care,Rents,07.04.2011,1902569154,"6,661.72",Willow Park Housing Trust
Manchester City Council,Regeneration Finance,Proffesional fees,07.04.2011,5100438962,"6,275.82",Young People Support Foundation
Manchester City Council,Childrens Services,Grant and subscriptions awarded,07.04.2011,5100438867,"6,041.17",Young People Support Foundation
Manchester City Council,Childrens Services,Grant and subscriptions awarded,07.04.2011,5100438871,"6,041.17",Young People Support Foundation
Manchester City Council,Childrens Services,Grant and subscriptions awarded,07.04.2011,5100439453,"6,041.17",Young People Support Foundation
Manchester City Council,Corporate Services,Rents,07.04.2011,5100439059,"1,979.54",Zion Arts Centre Ltd
Manchester City Council,Adult Social Care,Legal Fees,08.04.2011,5100439746,"1,200.00",2-3 Grays Inn Square Chambers
Manchester City Council,Childrens Services,Transport Coach Hire,08.04.2011,5100439895,"-7,171.10",A J Travel
Manchester City Council,Childrens Services,Security,08.04.2011,5100439810,840.20,Adt Fire & Security
Manchester City Council,Hospitality + Trading Services,Vehicle Repairs,08.04.2011,5100439669,"1,249.33",Advanced Vehicle Technicians Ltd
Manchester City Council,Hospitality + Trading Services,Vehicle Repairs,08.04.2011,5100439689,"1,234.99",Advanced Vehicle Technicians Ltd
Manchester City Council,Hospitality + Trading Services,Vehicle Repairs,08.04.2011,5100439687,"1,188.99",Advanced Vehicle Technicians Ltd
Manchester City Council,Hospitality + Trading Services,Vehicle Repairs,08.04.2011,5100439676,"1,123.03",Advanced Vehicle Technicians Ltd
Manchester City Council,Hospitality + Trading Services,Vehicle Repairs,08.04.2011,5100439677,978.41,Advanced Vehicle Technicians Ltd
Manchester City Council,Hospitality + Trading Services,Vehicle Repairs,08.04.2011,5100439673,862.41,Advanced Vehicle Technicians Ltd
Manchester City Council,Corporate Services,Training and Development,08.04.2011,5100439913,800.00,Affirm 4
Manchester City Council,Environment and Operations,Construction Works,08.04.2011,5100440062,"-7,860.64",Amey LG Ltd
Manchester City Council,Chief Executives,Hire of Equipment,08.04.2011,5100438202,800.00,Ap Digital
Manchester City Council,Chief Executives,Equipment,08.04.2011,5100438595,"2,500.00",Apple Display & Shopfitting Ltd
Manchester City Council,Corporate Services,Building Materials for direct delivery,08.04.2011,5100439592,588.00,Applied Cooling Systems Ltd
Manchester City Council,Chief Executives,Agency staff provision,08.04.2011,5100439585,914.70,Badenoch & Clark
Manchester City Council,Manchester Leisure,Works and associated costs for Land and Buildings,08.04.2011,5100439792,863.83,BCL
Manchester City Council,Manchester Leisure,Equipment,08.04.2011,5100439657,"1,285.85",Bishop Sports And Leisure Ltd
Manchester City Council,Hospitality + Trading Services,Catering Provisions,08.04.2011,1902570961,792.37,Brake Bros Foodservice Ltd
Manchester City Council,Hospitality + Trading Services,Catering Provisions,08.04.2011,1902571017,577.37,Brake Bros Foodservice Ltd
Manchester City Council,Manchester Leisure,Grant and subscriptions awarded,08.04.2011,5100439588,"100,000.00",British Cycling Federation
Manchester City Council,Adult Social Care,Rehabilitation Payments,08.04.2011,5100439609,570.00,Cais Ltd
Manchester City Council,Regeneration Finance,Grant and subscriptions awarded,08.04.2011,5100439649,552.00,Carisma
Manchester City Council,Adult Social Care,Rents,08.04.2011,5100438557,"28,059.87",Cascade Homes Ltd
Manchester City Council,Chief Executives,Advertising,08.04.2011,5100439867,"1,615.00",CBS Outdoor Ltd
Manchester City Council,Hospitality + Trading Services,Building Materials for direct delivery,08.04.2011,5100439976,669.34,Cemex (Uk) Shared Service Centre
Manchester City Council,Hospitality + Trading Services,Building Materials for direct delivery,08.04.2011,5100439973,667.51,Cemex (Uk) Shared Service Centre
Manchester City Council,Hospitality + Trading Services,Building Materials for direct delivery,08.04.2011,5100439972,654.75,Cemex (Uk) Shared Service Centre
Manchester City Council,Hospitality + Trading Services,Building Materials for direct delivery,08.04.2011,5100439978,646.56,Cemex (Uk) Shared Service Centre
Manchester City Council,Hospitality + Trading Services,Building Materials for direct delivery,08.04.2011,5100439952,622.52,Cemex (Uk) Shared Service Centre
Manchester City Council,Hospitality + Trading Services,Building Materials for direct delivery,08.04.2011,5100439950,611.38,Cemex (Uk) Shared Service Centre
Manchester City Council,Hospitality + Trading Services,Building Materials for direct delivery,08.04.2011,5100439945,577.28,Cemex (Uk) Shared Service Centre
Manchester City Council,Hospitality + Trading Services,Building Materials for direct delivery,08.04.2011,5100439974,500.52,Cemex (Uk) Shared Service Centre
Manchester City Council,Regeneration Finance,Grounds Maintenance,08.04.2011,5100439839,676.00,Clearview Event Services Limited
Manchester City Council,Environment and Operations,Payments to Sub-Contractors,08.04.2011,5100439873,"1,900.00",Community Forests Northwest Ltd
Manchester City Council,Chief Executives,I T Provision,08.04.2011,5100439761,834.23,Computerland Uk Ltd
Manchester City Council,Environment and Operations,Advertising,08.04.2011,5100439744,"1,145.10",Creative Concern
Manchester City Council,Adult Social Care,ClothsUniformLaundry,08.04.2011,5100440051,"4,002.00",E & E Workwear
Manchester City Council,Hospitality + Trading Services,Equipment,08.04.2011,5100437221,"2,321.00",Egan Reid Stationery Co Ltd
Manchester City Council,Hospitality + Trading Services,Refuse Collection,08.04.2011,5100439787,"9,190.32",Enterprise Manchester Partnership
Manchester City Council,Hospitality + Trading Services,Refuse Collection,08.04.2011,5100439788,"7,557.18",Enterprise Manchester Partnership
Manchester City Council,Hospitality + Trading Services,Refuse Collection,08.04.2011,5100439796,"7,394.91",Enterprise Manchester Partnership
Manchester City Council,Environment and Operations,Equipment,08.04.2011,5100439688,"104,657.15",Enterprise Manchester Partnership
Manchester City Council,Environment and Operations,Equipment,08.04.2011,5100439692,"3,243.83",Enterprise Manchester Partnership
Manchester City Council,Manchester Leisure,Tipping - Tonnage,08.04.2011,5100439573,"1,315.12",Enterprise Manchester Partnership
Manchester City Council,Childrens Services,Supported Accommodation,08.04.2011,5100439733,750.00,First step Accomadation Ltd
Manchester City Council,Childrens Services,Supported Accommodation,08.04.2011,5100439905,750.00,First step Accomadation Ltd
Manchester City Council,Chief Executives,Proffesional fees,08.04.2011,5100438838,600.00,Forsyth Management Contracts Ltd
Manchester City Council,Environment and Operations,Internal Repairs and Maintenance for buildings,08.04.2011,5100439824,"1,316.05",G.A.Nicholas Ltd
Manchester City Council,Childrens Services,Works and associated costs for Land and Buildings,08.04.2011,5100439284,"58,976.00",GB Building Solutions Ltd
Manchester City Council,Manchester Leisure,Works and associated costs for Land and Buildings,08.04.2011,5100439461,"14,833.00",GB Building Solutions Ltd
Manchester City Council,Libraries and Theatres,I T Provision,08.04.2011,5100439615,"1,660.00",GBM Digital Technologies Ltd
Manchester City Council,Learning Disabilities PB,Rents,08.04.2011,5100439785,"7,734.92",Great Places Housing Association
Manchester City Council,Chief Executives,Payments for services,08.04.2011,5100439671,"5,200.00",Greater Manchester Youth Justice Tr
Manchester City Council,Hospitality + Trading Services,Security,08.04.2011,5100439149,"286,183.37",Group 4 Total Security Ltd T/A G4S
Manchester City Council,Adult Social Care,Rents,08.04.2011,1902564577,"12,833.00",Happy Homes Uk Ltd
Manchester City Council,Chief Executives,Agency staff provision,08.04.2011,5100439782,"1,778.41",Harbex Nursing & Care
Manchester City Council,Chief Executives,Agency staff provision,08.04.2011,5100439794,"1,494.33",Harbex Nursing & Care
Manchester City Council,Chief Executives,Printing,08.04.2011,5100438918,901.00,Holdmede Ltd T/A Pelican Press
Manchester City Council,Section 48,Grant and subscriptions awarded,08.04.2011,5100440049,"10,225.00",House Of Grumpy Ltd
Manchester City Council,Regeneration Finance,Subsistence and Conference Expenses,08.04.2011,5100437504,"1,082.50",Inspired Sisters Ltd
Manchester City Council,Chief Executives,Works and associated costs for Land and Buildings,08.04.2011,5100439583,"65,255.00",Intrinsic Technology Limited
Manchester City Council,Manchester Leisure,Works and associated costs for Land and Buildings,08.04.2011,5100439590,"17,385.90",Intrinsic Technology Limited
Manchester City Council,Manchester Leisure,Works and associated costs for Land and Buildings,08.04.2011,5100439594,"12,974.78",Intrinsic Technology Limited
Manchester City Council,Hospitality + Trading Services,Payments to Sub-Contractors,08.04.2011,5100439798,"20,659.41",Kenny Bros (Civil Eng) Ltd
Manchester City Council,Hospitality + Trading Services,Payments to Sub-Contractors,08.04.2011,5100439811,"-20,659.41",Kenny Bros (Civil Eng) Ltd
Manchester City Council,Manchester Leisure,Rents,08.04.2011,5100437925,720.00,Ladybarn Community Association
Manchester City Council,Corporate Services,Proffesional fees,08.04.2011,5100437569,"5,000.00",LaSande Ltd
Manchester City Council,Hospitality + Trading Services,Vehicle Costs,08.04.2011,5100439901,572.24,LDS Motor Bodies Ltd
Manchester City Council,Housing General Fund,Building Works,08.04.2011,1902555515,"4,139.00",Lift Able Ltd
Manchester City Council,Childrens Services,Grant and subscriptions awarded,08.04.2011,5100439445,"2,651.00",Marion Scott Playgroup
Manchester City Council,Chief Executives,Agency staff provision,08.04.2011,5100439803,"1,039.70",Medicare First
Manchester City Council,Chief Executives,Agency staff provision,08.04.2011,5100439808,870.00,Medicare First
Manchester City Council,Chief Executives,Proffesional fees,08.04.2011,1902571136,"2,902.00",Millenium Quarter Trust Admin Acct
Manchester City Council,Chief Executives,Proffesional fees,08.04.2011,1902571139,"10,000.00",Millenium Quarter Trust Admin Acct
Manchester City Council,Hospitality + Trading Services,Subsistence and Conference Expenses,08.04.2011,5100439795,"4,320.00",Myerscough College
Manchester City Council,Hospitality + Trading Services,Building Materials for direct delivery,08.04.2011,5100439612,"1,100.00",N. A. Brown Limited
Manchester City Council,Adult Social Care,Hire of Equipment,08.04.2011,5100439072,"1,012.50",North West Time Recording Co
Manchester City Council,Adult Social Care,Works and associated costs for Land and Buildings,08.04.2011,5100438923,"5,205.00",Northwards Housing Limited
Manchester City Council,Chief Executives,Building Works,08.04.2011,1902571202,"2,000,000.00",Northwest Development Agency
Manchester City Council,Childrens Services,Transport Coach Hire,08.04.2011,5100437991,"2,875.00",Oak Leaf Travel
Manchester City Council,Childrens Services,Transport Coach Hire,08.04.2011,5100437989,"1,186.00",Oak Leaf Travel
Manchester City Council,Chief Executives,Grant and subscriptions awarded,08.04.2011,5100439847,"3,900.00",Oldham Borough Council
Manchester City Council,Environment and Operations,Grant and subscriptions awarded,08.04.2011,1902569584,"5,000.00",Oldham Metropolitan Borough Corpora
Manchester City Council,Childrens Services,Hire of Premises,08.04.2011,5100439849,640.00,One Central Park Ltd
Manchester City Council,Chief Executives,Agency staff provision,08.04.2011,5100438751,830.12,P S Care
Manchester City Council,Environment and Operations,Proffesional fees,08.04.2011,5100439627,"18,642.04",Parsons Brinckerhoff Ltd
Manchester City Council,Childrens Services,Compensation Payments,08.04.2011,1902571045,"5,400.00",Peasegoods
Manchester City Council,Grtr Manchester Urban Traffic,Payments to Sub-Contractors,08.04.2011,5100439903,"4,353.19",Peek Traffic Ltd
Manchester City Council,Grtr Manchester Urban Traffic,Payments to Sub-Contractors,08.04.2011,5100439624,"1,412.59",Peek Traffic Ltd
Manchester City Council,Chief Executives,Construction Works,08.04.2011,5100439701,"14,709.34",Peek Traffic Ltd
Manchester City Council,Chief Executives,Construction Works,08.04.2011,5100439910,"3,601.29",Peek Traffic Ltd
Manchester City Council,Chief Executives,Construction Works,08.04.2011,5100439912,"1,938.50",Peek Traffic Ltd
Manchester City Council,Chief Executives,Construction Works,08.04.2011,5100439917,"1,861.07",Peek Traffic Ltd
Manchester City Council,Chief Executives,Construction Works,08.04.2011,5100439910,"1,254.31",Peek Traffic Ltd
Manchester City Council,Hospitality + Trading Services,Hire of Equipment,08.04.2011,5100439285,"1,974.34",Pennine Services
Manchester City Council,Childrens Services,Works and associated costs for Land and Buildings,08.04.2011,5100438986,888.85,Pentel Contracts Limited
Manchester City Council,Learning Disabilities PB,Contributions from Manchester PCT,08.04.2011,1902570873,"3,000.00",PERCY WESTHEAD & CO
Manchester City Council,Chief Executives,Hire of Equipment,08.04.2011,5100438963,"1,248.00",Piccadilly AV Ltd
Manchester City Council,Chief Executives,Payments for services,08.04.2011,5100437744,"7,550.00",Protek SFE Ltd t/a Shelter Solution
Manchester City Council,Chief Executives,Payments for services,08.04.2011,5100437742,"7,750.00",Protek SFE Ltd t/a Shelter Solution
Manchester City Council,Hospitality + Trading Services,Hire of Machinery,08.04.2011,5100439709,780.00,R & M Developments Ltd
Manchester City Council,Hospitality + Trading Services,Hire of Machinery,08.04.2011,5100439707,609.00,R & M Developments Ltd
Manchester City Council,Hospitality + Trading Services,Hire of Machinery,08.04.2011,5100439705,607.00,R & M Developments Ltd
Manchester City Council,Hospitality + Trading Services,Hire of Machinery,08.04.2011,5100439703,598.00,R & M Developments Ltd
Manchester City Council,Hospitality + Trading Services,Hire of Machinery,08.04.2011,5100439702,556.00,R & M Developments Ltd
Manchester City Council,Hospitality + Trading Services,Compensation Payments,08.04.2011,1902566474,"3,250.00",Redacted Personal Information
Manchester City Council,Highways Services,Compensation Payments,08.04.2011,1902571082,"3,600.00",Redacted Personal Information
Manchester City Council,Hospitality + Trading Services,Compensation Payments,08.04.2011,1902571080,"4,000.00",Redacted Personal Information
Manchester City Council,Manchester Leisure,Compensation Payments,08.04.2011,5100439393,828.00,Redacted Personal Information
Manchester City Council,Adult Social Care,Bed & Breakfast Acc,08.04.2011,5100439058,900.97,Redacted Personal Information
Manchester City Council,Childrens Services,Foster Payments,08.04.2011,1902571135,654.76,Redacted Personal Information
Manchester City Council,Hospitality + Trading Services,Hire of Machinery,08.04.2011,5100439667,"1,725.50",Robert Horne Group
Manchester City Council,Chief Executives,Construction Works,08.04.2011,5100439899,"5,900.26",Rosgal Ltd
Manchester City Council,Childrens Services,Payments for services,08.04.2011,5100439780,600.00,Royal Oak & Baguley Residents Assoc
Manchester City Council,Housing Revenue Account,Grounds Maintenance,08.04.2011,5100439911,"1,350.00",Safe Estates Services Ltd
Manchester City Council,Chief Executives,Agency staff provision,08.04.2011,5100439753,"1,815.11",Semester Recruitment Ltd
Manchester City Council,Hospitality + Trading Services,Hire of Equipment,08.04.2011,5100439729,"1,392.00",SGM (Uk) Limited
Manchester City Council,Regeneration Finance,Equipment,08.04.2011,5100439578,656.63,Siemens Financial Services Ltd
Manchester City Council,Grtr Manchester Urban Traffic,Payments to Sub-Contractors,08.04.2011,5100439704,"9,151.94",Siemens Plc
Manchester City Council,Grtr Manchester Urban Traffic,Payments to Sub-Contractors,08.04.2011,5100439713,"6,019.23",Siemens Plc
Manchester City Council,Grtr Manchester Urban Traffic,Payments to Sub-Contractors,08.04.2011,5100439706,"5,916.35",Siemens Plc
Manchester City Council,Grtr Manchester Urban Traffic,Payments to Sub-Contractors,08.04.2011,5100439711,"4,525.08",Siemens Plc
Manchester City Council,Grtr Manchester Urban Traffic,Payments to Sub-Contractors,08.04.2011,5100439889,"1,284.44",Siemens Plc
Manchester City Council,Hospitality + Trading Services,Compensation Payments,08.04.2011,1902571077,"6,750.00",Simpsons Solicitors
Manchester City Council,Housing General Fund,Building Works,08.04.2011,1902555492,"4,316.00",Stannah Lift Services Ltd
Manchester City Council,Chief Executives,Advertising,08.04.2011,5100439857,900.00,Student Direct
Manchester City Council,Hospitality + Trading Services,Purchase of stores for re-distribution,08.04.2011,5100439698,"1,250.00",Technical Diamond Products LLP
Manchester City Council,Adult Social Care,Furniture,08.04.2011,5100439764,552.41,The Furnishing Service Ltd
Manchester City Council,Environment and Operations,Personal needs of client,08.04.2011,5100439593,"2,504.84",The Trafford Centre Ltd
Manchester City Council,Housing General Fund,Surplus property Acquisitions,08.04.2011,1902570839,"51,199.95",TLT SOLICITORS
Manchester City Council,Childrens Services,Publications,08.04.2011,5100439544,523.50,University Of Bristol
Manchester City Council,Chief Executives,Third party payments to other Local Authorities,08.04.2011,5100439586,"1,645.00",University Of Salford
Manchester City Council,Childrens Services,Supported Accommodation,08.04.2011,5100438996,623.00,Victoria Park Independence Proj Ltd
Manchester City Council,Chief Executives,Proffesional fees,08.04.2011,5100439016,541.00,Walk The Plank Ltd
Manchester City Council,Hospitality + Trading Services,Vehicle Parts/Spares,08.04.2011,5100438585,595.00,Warrington Truck Parts Ltd
Manchester City Council,Childrens Services,Payments for services,08.04.2011,5100439695,"2,800.00",Wright Robinson Sports College
Manchester City Council,Chief Executives,Construction Works,11.04.2011,5100439430,500.00,A & D Fabrications UK Ltd
Manchester City Council,Childrens Services,Compensation Payments,11.04.2011,1902571866,"33,266.51",Abney Garsden Mcdonald
Manchester City Council,Adult Social Care,Rents,11.04.2011,1902571078,"1,144.57",Accommodation Links Ltd
Manchester City Council,Adult Social Care,Rents,11.04.2011,1902571076,"1,192.00",Accommodation Links Ltd
Manchester City Council,Childrens Services,Rents,11.04.2011,1902571075,"20,317.74",Accommodation Links Ltd
Manchester City Council,Childrens Services,Rents,11.04.2011,1902571066,"17,912.50",Adactus Housing Group Ltd
Manchester City Council,Childrens Services,Rents,11.04.2011,1902571069,"17,912.50",Adactus Housing Group Ltd
Manchester City Council,Chief Executives,Construction Works,11.04.2011,5100439772,"2,700.17",Aggregate Industries T/A Kennedy As
Manchester City Council,Chief Executives,Construction Works,11.04.2011,5100439781,"2,332.92",Aggregate Industries T/A Kennedy As
Manchester City Council,Chief Executives,Construction Works,11.04.2011,5100439745,"1,306.67",Aggregate Industries T/A Kennedy As
Manchester City Council,Adult Social Care,Equipment,11.04.2011,5100440056,727.60,Aidapt Bathrooms Ltd
Manchester City Council,Chief Executives,Coroners witness sum,11.04.2011,1902571129,670.00,Anglo European Private Detectives L
Manchester City Council,Hospitality + Trading Services,Payments to Sub-Contractors,11.04.2011,5100439369,"11,328.00",Arboricultural Services Treework
Manchester City Council,Hospitality + Trading Services,Payments to Sub-Contractors,11.04.2011,5100439411,"6,530.00",Arboricultural Services Treework
Manchester City Council,Hospitality + Trading Services,Payments to Sub-Contractors,11.04.2011,5100439408,"3,006.47",Arboricultural Services Treework
Manchester City Council,Hospitality + Trading Services,Payments to Sub-Contractors,11.04.2011,5100439401,"1,606.00",Arboricultural Services Treework
Manchester City Council,Adult Social Care,Rents,11.04.2011,1902564433,500.00,B & A Properties
Manchester City Council,Adult Social Care,Rents,11.04.2011,1902564434,500.00,B & A Properties
Manchester City Council,Hospitality + Trading Services,Transport Coach Hire,11.04.2011,5100438524,"2,082.00",B Curbishley Ltd
Manchester City Council,Childrens Services,Rents,11.04.2011,1902571109,625.03,Barnardos Manchester Leaving Care S
Manchester City Council,Childrens Services,Fixtures and Fitting,11.04.2011,1902571109,650.00,Barnardos Manchester Leaving Care S
Manchester City Council,Childrens Services,Foster Payments,11.04.2011,1902571109,"4,223.00",Barnardos Manchester Leaving Care S
Manchester City Council,Environment and Operations,Renoval and Storage of Furniture,11.04.2011,5100439820,863.73,BCL
Manchester City Council,Manchester Leisure,Works and associated costs for Land and Buildings,11.04.2011,5100439784,"1,249.74",BCL
Manchester City Council,Regeneration Finance,Payments for services,11.04.2011,5100437608,"6,750.00",Bike Right
Manchester City Council,Chief Executives,Payments to Sub-Contractors,11.04.2011,5100440265,"1,770.00",Bradford Talking Magazines Ltd
Manchester City Council,Corporate Services,Proffesional fees,11.04.2011,5100440267,900.25,Bruntwood 2000 Alpha Portfolio Ltd
Manchester City Council,Corporate Services,Rents,11.04.2011,1902564419,"4,257.77",Bruntwood Estates Alpha
Manchester City Council,Hospitality + Trading Services,Building Materials for direct delivery,11.04.2011,5100440489,536.59,Buildbase Ltd aka Axon Buildbase
Manchester City Council,Hospitality + Trading Services,Purchase of stores for re-distribution,11.04.2011,5100440217,"4,616.20",Burdens Ltd
Manchester City Council,Hospitality + Trading Services,Purchase of stores for re-distribution,11.04.2011,5100440216,"1,130.00",Burdens Ltd
Manchester City Council,Chief Executives,Agency staff provision,11.04.2011,5100439747,745.92,Carepath Recruitment
Manchester City Council,Housing Revenue Account,Rent Refund,11.04.2011,1902571319,"5,414.53",City South Manchester Housing Trust
Manchester City Council,Childrens Services,Third party payments relating to Voluntary Organisations,11.04.2011,5100438277,"4,899.60",CMAS
Manchester City Council,Childrens Services,Transport Coach Hire,11.04.2011,5100439305,"8,016.00",Coachire Manchester Ltd
Manchester City Council,Manchester Leisure,Building Materials for direct delivery,11.04.2011,5100438275,893.33,Community Forests Northwest Ltd
Manchester City Council,Childrens Services,I T Provision,11.04.2011,5100439934,"1,125.50",Computing Help Limited
Manchester City Council,Childrens Services,Equipment,11.04.2011,5100440255,724.00,Daleswear Ltd
Manchester City Council,Childrens Services,Training and Development,11.04.2011,1902570633,834.40,Dave Packwood Consultancy Ltd
Manchester City Council,Chief Executives,Building Works,11.04.2011,5100439777,"3,789.80",Davis Langdon
Manchester City Council,Childrens Services,Home Care ,11.04.2011,5100439769,"9,268.75",Daycare Trust
Manchester City Council,Chief Executives,Printing,11.04.2011,5100439320,"2,200.00",Deanprint Limited
Manchester City Council,Environment and Operations,Compensation Payments,11.04.2011,1902571086,505.00,Department For Work & Pensions
Manchester City Council,Highways Services,Compensation Payments,11.04.2011,1902571132,566.00,Department For Work & Pensions
Manchester City Council,Chief Executives,Testing Fees,11.04.2011,5100439273,"5,180.00",Dotmailer.com
Manchester City Council,Adult Social Care,Equipment,11.04.2011,5100439946,846.00,Drive Medical Limited
Manchester City Council,Hospitality + Trading Services,Building Materials for direct delivery,11.04.2011,5100439962,708.00,Ecomix Concrete Ltd
Manchester City Council,Hospitality + Trading Services,Hire of Equipment,11.04.2011,5100440023,855.60,Edgar J Browning Ltd
Manchester City Council,Hospitality + Trading Services,Hire of Equipment,11.04.2011,5100440024,855.60,Edgar J Browning Ltd
Manchester City Council,Hospitality + Trading Services,Hire of Equipment,11.04.2011,5100440026,855.60,Edgar J Browning Ltd
Manchester City Council,Hospitality + Trading Services,Hire of Equipment,11.04.2011,5100440028,855.60,Edgar J Browning Ltd
Manchester City Council,Hospitality + Trading Services,Hire of Equipment,11.04.2011,5100440030,855.60,Edgar J Browning Ltd
Manchester City Council,Corporate Services,Proffesional fees,11.04.2011,5100437571,835.00,Edmond Shipway
Manchester City Council,Adult Social Care,Home Care ,11.04.2011,1902571870,748.41,Enterprise Care Group Ltd
Manchester City Council,Adult Social Care,Home Care ,11.04.2011,1902571870,"5,322.02",Enterprise Care Group Ltd
Manchester City Council,Adult Social Care,Home Care ,11.04.2011,1902571870,"6,106.01",Enterprise Care Group Ltd
Manchester City Council,Adult Social Care,Home Care ,11.04.2011,1902571870,"2,503.06",Enterprise Care Group Ltd
Manchester City Council,Adult Social Care,Home Care ,11.04.2011,1902571870,"1,908.22",Enterprise Care Group Ltd
Manchester City Council,Adult Social Care,Home Care ,11.04.2011,1902571870,"1,068.73",Enterprise Care Group Ltd
Manchester City Council,Adult Social Care,Home Care ,11.04.2011,1902571870,614.86,Enterprise Care Group Ltd
Manchester City Council,Adult Social Care,Home Care ,11.04.2011,1902571870,"2,130.38",Enterprise Care Group Ltd
Manchester City Council,Adult Social Care,Home Care ,11.04.2011,1902571870,"2,994.62",Enterprise Care Group Ltd
Manchester City Council,Adult Social Care,Home Care ,11.04.2011,1902571870,"3,902.94",Enterprise Care Group Ltd
Manchester City Council,Corporate Services,Refuse Collection,11.04.2011,5100440099,"1,364.00",Enterprise Manchester Partnership
Manchester City Council,Hospitality + Trading Services,Tipping - Skips,11.04.2011,5100440087,636.00,Enterprise Manchester Partnership
Manchester City Council,Corporate Services,Electricity,11.04.2011,1902571131,559.35,E-On
Manchester City Council,Childrens Services,Transport Coach Hire,11.04.2011,5100437336,540.00,Executive Travell
Manchester City Council,Chief Executives,Works and associated costs for Land and Buildings,11.04.2011,5100438321,"141,246.00",F Parkinson Limited
Manchester City Council,Hospitality + Trading Services,Hire of Equipment,11.04.2011,5100440210,"3,858.43",F.R.Sharrock Ltd
Manchester City Council,Childrens Services,Third party payments relating to Voluntary Organisations,11.04.2011,5100440017,"14,775.00",Family Action
Manchester City Council,Hospitality + Trading Services,Payments to Sub-Contractors,11.04.2011,5100440090,580.00,Frankland Tree Services Ltd
Manchester City Council,Chief Executives,Agency staff provision,11.04.2011,5100438640,"6,567.24",Gatenby Sanderson
Manchester City Council,Housing General Fund,Building Works,11.04.2011,5100439275,"45,093.00",GB Building Solutions Ltd
Manchester City Council,Manchester Leisure,Grounds Maintenance,11.04.2011,5100438950,"76,966.04",Glendale Managed Services
Manchester City Council,Manchester Leisure,Grounds Maintenance,11.04.2011,5100438958,562.69,Glendale Managed Services
Manchester City Council,Manchester Leisure,Grounds Maintenance,11.04.2011,5100438948,"9,848.48",Glendale Managed Services
Manchester City Council,Manchester Leisure,Grounds Maintenance,11.04.2011,5100438952,"5,858.58",Glendale Managed Services
Manchester City Council,Grtr Manchester Transport Unit,Payments to Sub-Contractors,11.04.2011,5100439631,"9,474.00",Greater Manchester P.T.E.
Manchester City Council,Chief Executives,Grant and subscriptions awarded,11.04.2011,5100439606,"4,507.80",Greater Manchester Police
Manchester City Council,Regeneration Finance,Grant and subscriptions awarded,11.04.2011,5100439606,"3,099.48",Greater Manchester Police
Manchester City Council,Adult Social Care,Agency staff provision,11.04.2011,5100439639,"62,843.03",Greater Manchester Probation Board
Manchester City Council,Chief Executives,Payments for services,11.04.2011,5100439579,"91,680.96",Greater Manchester Probation Board
Manchester City Council,Manchester Leisure,Payments to Sub-Contractors,11.04.2011,5100440185,"1,400.00",Groundwork Landscapes Ltd
Manchester City Council,Manchester Leisure,Payments to Sub-Contractors,11.04.2011,5100437898,"2,908.76","Groundwork Manchester, Salford"
Manchester City Council,Manchester Leisure,Payments to Sub-Contractors,11.04.2011,5100437847,"2,775.85","Groundwork Manchester, Salford"
Manchester City Council,Environment and Operations,Proffesional fees,11.04.2011,5100437903,500.00,"Groundwork Manchester, Salford"
Manchester City Council,Housing General Fund,Building Works,11.04.2011,5100437576,"11,584.00","Groundwork Manchester, Salford"
Manchester City Council,Housing General Fund,Building Works,11.04.2011,5100440040,"6,078.90","Groundwork Manchester, Salford"
Manchester City Council,Housing General Fund,Building Works,11.04.2011,5100440040,"5,505.10","Groundwork Manchester, Salford"
Manchester City Council,Housing General Fund,Building Works,11.04.2011,5100440038,"-11,584.00","Groundwork Manchester, Salford"
Manchester City Council,Corporate Services,Equipment,11.04.2011,5100439858,"2,736.36",Group 4 Technology
Manchester City Council,Hospitality + Trading Services,Vehicle Hire Costs,11.04.2011,5100438656,"4,830.00",Gullivers Truck Hire Ltd
Manchester City Council,Hospitality + Trading Services,Vehicle Hire Costs,11.04.2011,5100439030,"4,830.00",Gullivers Truck Hire Ltd
Manchester City Council,Hospitality + Trading Services,Vehicle Hire Costs,11.04.2011,5100439953,"-4,830.00",Gullivers Truck Hire Ltd
Manchester City Council,Regeneration Finance,Consultants Fees,11.04.2011,5100439959,"24,983.75",GVA Grimley Ltd
Manchester City Council,Childrens Services,Works and associated costs for Land and Buildings,11.04.2011,5100438798,"13,551.00",Harry Fairclough Construction Ltd
Manchester City Council,Chief Executives,Equipment,11.04.2011,5100439319,"1,300.00",Hemisphere Design
Manchester City Council,Corporate Services,Works and associated costs for Land and Buildings,11.04.2011,5100439343,"6,483.49",HOK International Limited
Manchester City Council,Corporate Services,Works and associated costs for Land and Buildings,11.04.2011,5100437587,988.17,HOK International Limited
Manchester City Council,Corporate Services,Works and associated costs for Land and Buildings,11.04.2011,5100439312,"7,623.00",HOK International Limited
Manchester City Council,Corporate Services,Works and associated costs for Land and Buildings,11.04.2011,5100439343,"6,469.01",HOK International Limited
Manchester City Council,Corporate Services,Works and associated costs for Land and Buildings,11.04.2011,5100439317,"4,362.50",HOK International Limited
Manchester City Council,Chief Executives,Grant and subscriptions awarded,11.04.2011,1902564446,"8,000.00",Inspired Sisters Ltd
Manchester City Council,Chief Executives,Grant and subscriptions awarded,11.04.2011,1902564554,"7,500.00",Inspired Sisters Ltd
Manchester City Council,Childrens Services,Landline Telephone,11.04.2011,5100439633,"1,105.16",Intrinsic Technology Limited
Manchester City Council,Childrens Services,Furniture,11.04.2011,5100438600,"1,415.00",Jenx Ltd
Manchester City Council,Hospitality + Trading Services,Payments to Sub-Contractors,11.04.2011,5100437933,"3,295.00",John Martin Painting Contractors
Manchester City Council,Adult Social Care,Equipment,11.04.2011,5100438906,520.00,Kapitex Healthcare Ltd
Manchester City Council,Hospitality + Trading Services,Payments to Sub-Contractors,11.04.2011,5100437936,"20,659.41",Kenny Bros (Civil Eng) Ltd
Manchester City Council,Hospitality + Trading Services,Payments to Sub-Contractors,11.04.2011,5100439541,"11,180.80",Kenny Bros (Civil Eng) Ltd
Manchester City Council,Hospitality + Trading Services,Payments to Sub-Contractors,11.04.2011,5100439800,"11,022.48",Kenny Bros (Civil Eng) Ltd
Manchester City Council,Hospitality + Trading Services,Payments to Sub-Contractors,11.04.2011,5100439542,"8,817.48",Kenny Bros (Civil Eng) Ltd
Manchester City Council,Hospitality + Trading Services,Payments to Sub-Contractors,11.04.2011,5100439539,"7,000.00",Kenny Bros (Civil Eng) Ltd
Manchester City Council,Hospitality + Trading Services,Payments to Sub-Contractors,11.04.2011,5100439548,"5,428.79",Kenny Bros (Civil Eng) Ltd
Manchester City Council,Hospitality + Trading Services,Payments to Sub-Contractors,11.04.2011,5100439806,"2,493.37",Kenny Bros (Civil Eng) Ltd
Manchester City Council,Chief Executives,Agency staff provision,11.04.2011,5100437319,"2,025.00",Key People Ltd
Manchester City Council,Chief Executives,Agency staff provision,11.04.2011,5100437251,"1,440.00",Key People Ltd
Manchester City Council,Environment and Operations,Taxi Vehicle Materia,11.04.2011,5100440309,"6,405.00",Lalpac Ltd
Manchester City Council,Environment and Operations,#N/A,11.04.2011,5100440309,-640.50,Lalpac Ltd
Manchester City Council,Chief Executives,Agency staff provision,11.04.2011,5100438724,"1,736.40",Liquid Personnel Ltd
Manchester City Council,Chief Executives,Goods purchased for resale in Council outlets,11.04.2011,5100440206,"1,287.74",Littlehampton Book Services Ltd
Manchester City Council,Adult Social Care,Rents,11.04.2011,1902564606,510.97,M & Q Estates Ltd
Manchester City Council,Childrens Services,Rents,11.04.2011,1902569032,"4,207.48",M & Q Estates Ltd
Manchester City Council,Childrens Services,Payments for services,11.04.2011,1902569037,"2,012.45",M & Q Estates Ltd
Manchester City Council,Childrens Services,Payments for services,11.04.2011,1902568323,"2,142.91",M & Q Estates Ltd
Manchester City Council,Childrens Services,Payments for services,11.04.2011,1902568792,"4,985.94",M & Q Estates Ltd
Manchester City Council,Corporate Services,Consultants Fees,11.04.2011,5100440012,"2,650.00",Mace Ltd
Manchester City Council,Chief Executives,Cleaning Equipment and Materials,11.04.2011,5100440280,616.80,Manchester Airport Plc
Manchester City Council,Chief Executives,Grant and subscriptions awarded,11.04.2011,5100438654,"1,250.00",Manchester Black Health Forum
Manchester City Council,Regeneration Finance,Grant and subscriptions awarded,11.04.2011,5100440323,"26,899.84",Manchester First Consortium
Manchester City Council,Childrens Services,Grant and subscriptions awarded,11.04.2011,5100439341,"27,801.67",Manchester Metropolitan University
Manchester City Council,Adult Social Care,Expenditure re Internal Trading Ordered Externally,11.04.2011,5100439371,"1,150.00",Manchester People First
Manchester City Council,Manchester Leisure,Hire of Premises,11.04.2011,5100440126,734.40,Manchester Sports & Leisure Trust
Manchester City Council,Regeneration Finance,Proffesional fees,11.04.2011,5100439948,"4,000.00",Marketing Manchester
Manchester City Council,Regeneration Finance,Grant and subscriptions awarded,11.04.2011,5100439951,"800,000.00",Marketing Manchester
Manchester City Council,Chief Executives,Advertising,11.04.2011,5100439608,"1,726.73",Mediability Ltd
Manchester City Council,Chief Executives,Proffesional fees,11.04.2011,5100438928,"1,753.61",MK Illuminations UK Ltd
Manchester City Council,Chief Executives,Works and associated costs for Land and Buildings,11.04.2011,5100440186,"2,267.96",Mpulse Ltd
Manchester City Council,Corporate Services,Works and associated costs for Land and Buildings,11.04.2011,5100437586,"10,560.00",Mpulse Ltd
Manchester City Council,Chief Executives,Building Works,11.04.2011,5100440186,"2,017.02",Mpulse Ltd
Manchester City Council,Chief Executives,Building Works,11.04.2011,5100440183,"-4,284.98",Mpulse Ltd
Manchester City Council,Environment and Operations,Rents,11.04.2011,5100439471,"1,934.74",National Car Parks Manchester Ltd
Manchester City Council,Chief Executives,Agency staff provision,11.04.2011,5100439328,"11,239.46",Nes International Ltd
Manchester City Council,Childrens Services,Training and Development,11.04.2011,5100437279,"2,700.00",NHS Manchester Primary Care Trust
Manchester City Council,Childrens Services,Proffesional fees,11.04.2011,5100437947,"3,854.00",NHS Manchester Primary Care Trust
Manchester City Council,Childrens Services,Proffesional fees,11.04.2011,5100438994,"404,953.79",NHS Manchester Primary Care Trust
Manchester City Council,Childrens Services,Proffesional fees,11.04.2011,5100439075,"321,855.16",NHS Manchester Primary Care Trust
Manchester City Council,Corporate Services,Rents,11.04.2011,1902513212,"9,675.22",Northern Way Properties Limited
Manchester City Council,Housing Revenue Account,I T Provision,11.04.2011,1700019923,"-7,642.18",Northgate Information Solutions Ltd
Manchester City Council,Environment and Operations,I T Provision,11.04.2011,5100440226,"10,450.00",Northgate Information Solutions Ltd
Manchester City Council,Hospitality + Trading Services,Equipment,11.04.2011,5100439642,"17,656.00",Oakenclough Buildings Ltd
Manchester City Council,Hospitality + Trading Services,Contract Cleaning External,11.04.2011,5100440235,591.36,Ocean Contract Cleaning Ltd
Manchester City Council,Hospitality + Trading Services,Contract Cleaning External,11.04.2011,5100440229,849.75,Ocean Contract Cleaning Ltd
Manchester City Council,Regeneration Finance,Third party payments to other Local Authorities,11.04.2011,5100439890,500.00,Ocr
Manchester City Council,Chief Executives,Subsistence and Conference Expenses,11.04.2011,5100440264,525.00,Open University
Manchester City Council,Hospitality + Trading Services,Transport Coach Hire,11.04.2011,5100439616,"3,927.18",Orion Travel
Manchester City Council,Hospitality + Trading Services,Transport Coach Hire,11.04.2011,5100439617,"15,375.04",Orion Travel
Manchester City Council,Hospitality + Trading Services,Cleaning Equipment,11.04.2011,5100440263,864.60,Panztel (Uk) Limited
Manchester City Council,Environment and Operations,Car Parking Permits,11.04.2011,5100440043,"14,767.03",PATROL
Manchester City Council,Grtr Manchester Urban Traffic,Payments to Sub-Contractors,11.04.2011,5100439956,"1,204.18",Peek Traffic Ltd
Manchester City Council,Chief Executives,Construction Works,11.04.2011,5100439941,"6,095.42",Peek Traffic Ltd
Manchester City Council,Chief Executives,Construction Works,11.04.2011,5100439927,"2,410.19",Peek Traffic Ltd
Manchester City Council,Chief Executives,Construction Works,11.04.2011,5100439949,"1,704.12",Peek Traffic Ltd
Manchester City Council,Chief Executives,Construction Works,11.04.2011,5100439944,"1,604.18",Peek Traffic Ltd
Manchester City Council,Chief Executives,Construction Works,11.04.2011,5100439941,"1,124.77",Peek Traffic Ltd
Manchester City Council,Regeneration Finance,Grant and subscriptions awarded,11.04.2011,5100438630,"4,000.00",Peoples History Museum
Manchester City Council,Adult Social Care,Compensation Payments,11.04.2011,5100440292,673.00,Personal Care Consultants Ltd
Manchester City Council,Section 48,Grant and subscriptions awarded,11.04.2011,5100440137,"9,900.00",Peshkar Productions
Manchester City Council,Chief Executives,Hire of Equipment,11.04.2011,5100439719,"1,946.00",Piccadilly AV Ltd
Manchester City Council,Chief Executives,Hire of Equipment,11.04.2011,5100439718,"1,143.12",Piccadilly AV Ltd
Manchester City Council,Chief Executives,Hire of Equipment,11.04.2011,5100439717,"1,007.65",Piccadilly AV Ltd
Manchester City Council,Hospitality + Trading Services,Building Materials for direct delivery,11.04.2011,5100440120,"1,409.00",Playdale Playgrounds
Manchester City Council,Regeneration Finance,Consultants Fees,11.04.2011,5100440154,"7,500.00",PushOn limited
Manchester City Council,Regeneration Finance,Consultants Fees,11.04.2011,5100440157,500.00,PushOn limited
Manchester City Council,Hospitality + Trading Services,Building Materials for direct delivery,11.04.2011,5100440285,"2,760.00",R S Clare Ltd
Manchester City Council,Childrens Services,Agency staff provision,11.04.2011,5100440160,"1,175.00",Randstad Education
Manchester City Council,Childrens Services,Agency staff provision,11.04.2011,5100440147,"1,053.03",Randstad Education
Manchester City Council,Childrens Services,Agency staff provision,11.04.2011,5100440150,"1,053.03",Randstad Education
Manchester City Council,Childrens Services,Agency staff provision,11.04.2011,5100440153,"1,025.00",Randstad Education
Manchester City Council,Childrens Services,Agency staff provision,11.04.2011,5100440164,"1,025.00",Randstad Education
Manchester City Council,Childrens Services,Agency staff provision,11.04.2011,5100440155,575.00,Randstad Education
Manchester City Council,Childrens Services,Agency staff provision,11.04.2011,5100440168,575.00,Randstad Education
Manchester City Council,Childrens Services,Agency staff provision,11.04.2011,5100440166,550.00,Randstad Education
Manchester City Council,Childrens Services,Transport Coach Hire,11.04.2011,5100437502,994.00,Redacted Personal Information
Manchester City Council,Highways Services,Legal Fees,11.04.2011,5100440291,690.00,Redacted Personal Information
Manchester City Council,Libraries and Theatres,Legal Fees,11.04.2011,5100440178,"10,000.00",Redacted Personal Information
Manchester City Council,Childrens Services,Foster Payments,11.04.2011,1902571874,500.00,Redacted Personal Information
Manchester City Council,Environment and Operations,Tipping - Tonnage,11.04.2011,5100440105,"29,076.51",Redgate Holdings Ltd
Manchester City Council,Environment and Operations,Tipping - Tonnage,11.04.2011,5100440108,"25,616.93",Redgate Holdings Ltd
Manchester City Council,Environment and Operations,Tipping - Tonnage,11.04.2011,5100440101,"24,510.72",Redgate Holdings Ltd
Manchester City Council,Childrens Services,Rents,11.04.2011,1902571153,"12,938.63",Redman Heenan Properties Limited
Manchester City Council,Hospitality + Trading Services,Transport Coach Hire,11.04.2011,5100440325,"1,815.15",Rio Mini Bus
Manchester City Council,Hospitality + Trading Services,Transport Coach Hire,11.04.2011,5100440328,"1,802.45",Rio Mini Bus
Manchester City Council,Hospitality + Trading Services,Transport Coach Hire,11.04.2011,5100440322,"1,468.53",Rio Mini Bus
Manchester City Council,Hospitality + Trading Services,Vehicle contract hire and leases,11.04.2011,5100440287,825.00,S G Equipment Finance Ltd
Manchester City Council,Chief Executives,Agency staff provision,11.04.2011,5100440077,"1,732.50",Sacco Mann Ltd
Manchester City Council,Chief Executives,Communications,11.04.2011,5100438831,620.90,Salford City Council
Manchester City Council,Corporate Services,Grant and subscriptions awarded,11.04.2011,5100439720,"3,000.00",Sheffield Hallam University
Manchester City Council,Hospitality + Trading Services,Security,11.04.2011,5100439636,564.48,Showsec International Ltd
Manchester City Council,Grtr Manchester Urban Traffic,Payments to Sub-Contractors,11.04.2011,5100440104,"4,054.03",Siemens Plc
Manchester City Council,Grtr Manchester Urban Traffic,Payments to Sub-Contractors,11.04.2011,5100440102,"2,585.64",Siemens Plc
Manchester City Council,Manchester Leisure,Legal Fees,11.04.2011,5100440294,"9,199.50",Slaughter & May
Manchester City Council,Housing General Fund,Surplus property Acquisitions,11.04.2011,1902564448,"38,275.00","Sleigh, Son & Booth Solicitors"
Manchester City Council,Chief Executives,Agency staff provision,11.04.2011,5100439196,"6,726.36",SRA Cover Staff Ltd
Manchester City Council,Adult Social Care,General Payments not otherwise categorised,11.04.2011,5100440146,"3,158.98",Stockport Metropolitan Borough
Manchester City Council,Chief Executives,I T Provision,11.04.2011,5100439546,500.00,Strand Electoral Managemnet Srvcs
Manchester City Council,Chief Executives,Construction Works,11.04.2011,5100439710,"14,963.29",Tarmac Central Ltd
Manchester City Council,Chief Executives,Construction Works,11.04.2011,5100439690,"37,794.21",Tarmac Central Ltd
Manchester City Council,Hospitality + Trading Services,Purchase of stores for re-distribution,11.04.2011,5100440370,"1,446.50",Tecroc Products Ltd
Manchester City Council,Childrens Services,Third party payments relating to Voluntary Organisations,11.04.2011,5100440270,"11,314.19",The Big Life Company
Manchester City Council,Childrens Services,Third party payments relating to Voluntary Organisations,11.04.2011,5100440275,"16,157.50",The Big Life Company
Manchester City Council,Childrens Services,Third party payments relating to Voluntary Organisations,11.04.2011,5100440281,"15,579.99",The Big Life Company
Manchester City Council,Childrens Services,Third party payments relating to Voluntary Organisations,11.04.2011,5100440274,"42,623.76",The Big Life Company
Manchester City Council,Childrens Services,Third party payments relating to Voluntary Organisations,11.04.2011,5100440279,"32,510.23",The Big Life Company
Manchester City Council,Childrens Services,Third party payments relating to Voluntary Organisations,11.04.2011,5100440278,"11,314.19",The Big Life Company
Manchester City Council,Childrens Services,Third party payments relating to Voluntary Organisations,11.04.2011,5100440277,"8,595.00",The Big Life Company
Manchester City Council,Childrens Services,Third party payments relating to Voluntary Organisations,11.04.2011,5100440272,"7,187.48",The Big Life Company
Manchester City Council,Chief Executives,Communications,11.04.2011,5100439955,600.00,The Boot Room
Manchester City Council,Grtr Manchester Transport Unit,Payments to Sub-Contractors,11.04.2011,5100439410,"2,336.50",The Care Company (Sussex) Ltd
Manchester City Council,Corporate Services,Training and Development,11.04.2011,5100439988,995.00,The Manchester College
Manchester City Council,Chief Executives,Hire of Equipment,11.04.2011,5100439958,"4,000.00",The Manchester Light & Stage
Manchester City Council,Childrens Services,Proffesional fees,11.04.2011,5100440151,"56,925.00",The Pennine Acute Hospital Nhs Trus
Manchester City Council,Adult Social Care,Stationery,11.04.2011,5100439964,553.75,The Stationery Office Ltd
Manchester City Council,Chief Executives,Agency staff provision,11.04.2011,5100440182,971.04,The Synergy Group Ltd
Manchester City Council,Manchester City Galleries,Vehicle Plant Furniture and Equipment,11.04.2011,5100437986,"1,496.53",The Technology Business Ltd
Manchester City Council,Regeneration Finance,Training and Development,11.04.2011,5100437804,"1,020.00",Trinity College London
Manchester City Council,Chief Executives,Works and associated costs for Land and Buildings,11.04.2011,5100440003,"5,700.00",Turner & Townsend Cost
Manchester City Council,Libraries and Theatres,Water - Metered,11.04.2011,5100440261,628.92,United Utilities Water Plc
Manchester City Council,Environment and Operations,Payments to Sub-Contractors,11.04.2011,5100439658,"6,495.00",Verdant Solutions Ltd
Manchester City Council,Environment and Operations,Payments to Sub-Contractors,11.04.2011,5100439661,"5,460.00",Verdant Solutions Ltd
Manchester City Council,Environment and Operations,Payments to Sub-Contractors,11.04.2011,5100439662,"4,715.00",Verdant Solutions Ltd
Manchester City Council,Environment and Operations,Payments to Sub-Contractors,11.04.2011,5100439664,"1,205.00",Verdant Solutions Ltd
Manchester City Council,Manchester Leisure,Works and associated costs for Land and Buildings,11.04.2011,5100439809,"1,040.10",Weasdale Nurseries Ltd
Manchester City Council,Childrens Services,I T Provision,11.04.2011,5100440148,"20,000.00",Welfare Call (LAC) Ltd
Manchester City Council,Chief Executives,Works and associated costs for Land and Buildings,11.04.2011,5100440230,"6,407.45",Wilfrid Lord Ltd
Manchester City Council,Hospitality + Trading Services,Vehicle Hire Costs,11.04.2011,5100439786,"37,238.88",Winners Contract Hire Ltd
Manchester City Council,Libraries and Theatres,Rents,11.04.2011,5100440156,"7,138.50",Wythenshawe Forum Trust Ltd
Manchester City Council,Libraries and Theatres,Rents,11.04.2011,5100440165,"5,164.26",Wythenshawe Forum Trust Ltd
Manchester City Council,Libraries and Theatres,Rents,11.04.2011,5100440159,547.21,Wythenshawe Forum Trust Ltd
Manchester City Council,Childrens Services,Compensation Payments,12.04.2011,1902571120,"11,500.00",Abney Garsden Mcdonald
Manchester City Council,Childrens Services,Compensation Payments,12.04.2011,1902561897,"7,500.00",Abney Garsden Mcdonald
Manchester City Council,Childrens Services,Compensation Payments,12.04.2011,1902571134,"2,050.00",Abney Garsden Mcdonald
Manchester City Council,Childrens Services,Compensation Payments,12.04.2011,1902571116,"2,000.00",Abney Garsden Mcdonald
Manchester City Council,Childrens Services,Compensation Payments,12.04.2011,1902571118,"2,750.00",Abney Garsden Mcdonald
Manchester City Council,Chief Executives,Payments for services,12.04.2011,5100440652,"2,625.00",Aim Project
Manchester City Council,Adult Social Care,Grant and subscriptions awarded,12.04.2011,5100440366,"6,505.00",Al Hilal Mens Group
Manchester City Council,Hospitality + Trading Services,Purchase of stores for re-distribution,12.04.2011,5100440570,"1,105.00",Asd Metal Services
Manchester City Council,Chief Executives,Agency staff provision,12.04.2011,5100440586,"1,904.76",Bluegroup International Ltd
Manchester City Council,Environment and Operations,Payments to Sub-Contractors,12.04.2011,1902562372,"5,729.56",British Waterways
Manchester City Council,Chief Executives,Payments for services,12.04.2011,5100440607,650.00,Business & Decision Ltd
Manchester City Council,Hospitality + Trading Services,Security,12.04.2011,5100440575,568.82,Carillion Services Solutions
Manchester City Council,Manchester Leisure,Payments for services,12.04.2011,5100440603,864.00,Cheetham Hill Squash Club -
Manchester City Council,Adult Social Care,Grant and subscriptions awarded,12.04.2011,5100440396,"1,504.00",Citizens Advice - North Region
Manchester City Council,Chief Executives,Proffesional fees,12.04.2011,5100440569,"7,000.00",Cityco
Manchester City Council,Chief Executives,External repairs and maintenance for buildings,12.04.2011,5100440601,512.76,Cofely Ltd
Manchester City Council,Chief Executives,Grant and subscriptions awarded,12.04.2011,1902571310,755.00,Debdale &Woodland Community Assoc.
Manchester City Council,Environment and Operations,Compensation Payments,12.04.2011,1700019946,-505.00,Department For Work & Pensions Only
Manchester City Council,Hospitality + Trading Services,Building Materials for direct delivery,12.04.2011,5100440647,"1,063.00",Ecomix Concrete Ltd
Manchester City Council,Environment and Operations,Equipment,12.04.2011,5100439489,"2,435.00",Egbert H Taylor & Company Ltd
Manchester City Council,Manchester Leisure,Equipment,12.04.2011,5100440615,856.10,Evans Of Longton Ltd
Manchester City Council,Hospitality + Trading Services,Vehicle Parts/Spares,12.04.2011,5100440560,"1,366.40",F T Factors
Manchester City Council,Hospitality + Trading Services,Vehicle Parts/Spares,12.04.2011,5100440559,651.10,F T Factors
Manchester City Council,Insurance Fund,Insurance,12.04.2011,1902571142,"15,500.00",Fentons Solicitors LLP
Manchester City Council,Housing General Fund,Building Works,12.04.2011,5100438767,"78,040.00","Groundwork Manchester, Salford"
Manchester City Council,Environment and Operations,Data Registration,12.04.2011,1902571831,"1,855.00",Hm Court Service
Manchester City Council,Highways Services,Proffesional fees,12.04.2011,5100439682,"1,819.96",Lock It Safe Ltd
Manchester City Council,Hospitality + Trading Services,Vehicle contract hire and leases,12.04.2011,5100440521,730.51,Lombard North Central Plc
Manchester City Council,Chief Executives,Equipment,12.04.2011,1902572031,500.00,MCC Lord Mayor's Office FAD 009422
Manchester City Council,Chief Executives,Payments to Sub-Contractors,12.04.2011,5100440519,"12,216.00",Mortons Print Ltd
Manchester City Council,Regeneration Finance,I T Provision,12.04.2011,5100438327,"1,683.86",NWIX Group Ltd
Manchester City Council,Housing Revenue Account,Compensation Payments,12.04.2011,1902572040,900.00,Platt Halpern
Manchester City Council,Hospitality + Trading Services,Payments to Sub-Contractors,12.04.2011,5100440573,"1,100.00",Rainford Contract Services Ltd
Manchester City Council,Childrens Services,Agency staff provision,12.04.2011,5100440632,575.00,Randstad Education
Manchester City Council,Childrens Services,Agency staff provision,12.04.2011,5100440630,"1,175.00",Randstad Education
Manchester City Council,Childrens Services,Agency staff provision,12.04.2011,5100440629,"1,053.03",Randstad Education
Manchester City Council,Childrens Services,Agency staff provision,12.04.2011,5100440625,550.00,Randstad Education
Manchester City Council,Childrens Services,Agency staff provision,12.04.2011,5100440614,"1,025.00",Randstad Education
Manchester City Council,Childrens Services,Agency staff provision,12.04.2011,5100440626,650.00,Randstad Education
Manchester City Council,Childrens Services,Agency staff provision,12.04.2011,5100440606,575.00,Randstad Education
Manchester City Council,Childrens Services,Agency staff provision,12.04.2011,5100440609,575.00,Randstad Education
Manchester City Council,Childrens Services,Agency staff provision,12.04.2011,5100440616,575.00,Randstad Education
Manchester City Council,Adult Social Care,Catering Provisions,12.04.2011,1902571363,715.42,Redacted Personal Information
Manchester City Council,Chief Executives,Legal Fees,12.04.2011,5100439265,"4,200.00",Redacted Personal Information
Manchester City Council,Chief Executives,Legal Fees,12.04.2011,5100439271,900.00,Redacted Personal Information
Manchester City Council,Childrens Services,Compensation Payments,12.04.2011,1902564275,720.00,Redacted Personal Information
Manchester City Council,Highways Services,Compensation Payments,12.04.2011,1700019944,"-1,750.00",Redacted Personal Information
Manchester City Council,Manchester Leisure,Rodent &Pest Control,12.04.2011,5100440534,876.67,Rentokil Pest Control UK
Manchester City Council,Childrens Services,Proffesional fees,12.04.2011,1902560882,"1,383.25",Rowlands Field Cunningham
Manchester City Council,Highways Services,Compensation Payments,12.04.2011,1902572045,"7,530.90",Russell & Russell
Manchester City Council,Hospitality + Trading Services,Vehicle contract hire and leases,12.04.2011,5100440531,"3,249.50",S G Equipment Finance Ltd
Manchester City Council,Hospitality + Trading Services,Vehicle contract hire and leases,12.04.2011,5100440530,"1,875.00",S G Equipment Finance Ltd
Manchester City Council,Childrens Services,Proffesional fees,12.04.2011,1902554971,"2,127.81",S.M.Mccoll
Manchester City Council,Chief Executives,Agency staff provision,12.04.2011,5100440622,"1,655.50",Sacco Mann Ltd
Manchester City Council,Chief Executives,Agency staff provision,12.04.2011,5100440525,875.20,Sellick Partnership (Legal) Ltd
Manchester City Council,Grtr Manchester Urban Traffic,Payments to Sub-Contractors,12.04.2011,5100440555,"14,133.11",Siemens Plc
Manchester City Council,Grtr Manchester Urban Traffic,Payments to Sub-Contractors,12.04.2011,5100440567,"4,818.97",Siemens Plc
Manchester City Council,Grtr Manchester Urban Traffic,Payments to Sub-Contractors,12.04.2011,5100440556,"2,949.19",Siemens Plc
Manchester City Council,Grtr Manchester Urban Traffic,Payments to Sub-Contractors,12.04.2011,5100440554,"1,438.23",Siemens Plc
Manchester City Council,Environment and Operations,Security,12.04.2011,5100440635,848.64,Sitewatch Fire & Surveillance Ltd
Manchester City Council,Regeneration Finance,Legal Fees,12.04.2011,5100440464,"23,000.00",Slaughter & May
Manchester City Council,Regeneration Finance,Legal Fees,12.04.2011,5100440465,"-23,000.00",Slaughter & May
Manchester City Council,Childrens Services,Proffesional fees,12.04.2011,1902569777,608.25,Sonya Stephens-Parker
Manchester City Council,Childrens Services,Proffesional fees,12.04.2011,1902569668,"1,168.47",Stephensons Solicitors
Manchester City Council,Childrens Services,Third party payments relating to Voluntary Organisations,12.04.2011,5100440528,928.33,Talbot House Support Centre
Manchester City Council,Learning Disabilities PB,Third party payments relating to Voluntary Organisations,12.04.2011,5100440527,"3,713.33",Talbot House Support Centre
Manchester City Council,Childrens Services,Student Discretionery Awards,12.04.2011,5100440636,"7,144.00",The Manchester College
Manchester City Council,Chief Executives,Works and associated costs for Land and Buildings,12.04.2011,5100440010,"4,562.50",Turner & Townsend Project
Manchester City Council,Childrens Services,Vehicle Plant Furniture and Equipment,12.04.2011,5100440634,"125,887.76",UniServity Ltd
Manchester City Council,Highways Services,Payments to Sub-Contractors,12.04.2011,5100440369,"1,963.44",Virgin Media Limited
Manchester City Council,Childrens Services,Home Care ,12.04.2011,5100440545,510.00,Volunteer Reading Help
Manchester City Council,Childrens Services,Home Care ,12.04.2011,5100440548,510.00,Volunteer Reading Help
Manchester City Council,Childrens Services,Home Care ,12.04.2011,5100440550,510.00,Volunteer Reading Help
Manchester City Council,Childrens Services,Home Care ,12.04.2011,5100440551,510.00,Volunteer Reading Help
Manchester City Council,Childrens Services,Home Care ,12.04.2011,5100440552,510.00,Volunteer Reading Help
Manchester City Council,Childrens Services,Home Care ,12.04.2011,5100440553,510.00,Volunteer Reading Help
Manchester City Council,Adult Social Care,Third party payments relating to Voluntary Organisations,12.04.2011,5100440535,"3,213.25",Wai Yin Chinese Women Society
Manchester City Council,Childrens Services,Supported Accommodation,12.04.2011,5100440513,622.40,Woodlands Children'S Development Ct
Manchester City Council,Manchester Leisure,Subsistence and Conference Expenses,12.04.2011,5100440320,530.67,World Academy of Sport
Manchester City Council,Chief Executives,Proffesional fees,13.04.2011,5100440842,500.00,24 Design
Manchester City Council,Hospitality + Trading Services,Vehicle Repairs,13.04.2011,5100440944,974.97,Advanced Vehicle Technicians Ltd
Manchester City Council,Hospitality + Trading Services,Vehicle Repairs,13.04.2011,5100440949,907.64,Advanced Vehicle Technicians Ltd
Manchester City Council,Hospitality + Trading Services,Vehicle Repairs,13.04.2011,5100440418,535.31,Advanced Vehicle Technicians Ltd
Manchester City Council,Highways Services,Proffesional fees,13.04.2011,5100440432,"16,084.36",AECOM Limited
Manchester City Council,Corporate Services,Proffesional fees,13.04.2011,5100441037,"11,334.00",Airborne Environmental Consultants
Manchester City Council,Corporate Services,Proffesional fees,13.04.2011,5100441035,"7,040.00",Airborne Environmental Consultants
Manchester City Council,Childrens Services,Proffesional fees,13.04.2011,1902571304,930.30,Alison Wales Associates
Manchester City Council,Regeneration Finance,Grant and subscriptions awarded,13.04.2011,5100440392,"5,000.00",AllAboutAudiences
Manchester City Council,Environment and Operations,Proffesional fees,13.04.2011,5100440831,"8,679.58",AMEC Earth & Environmental (UK) Ltd
Manchester City Council,Libraries and Theatres,Publicity,13.04.2011,5100440413,600.00,Arts Marketing Association
Manchester City Council,Hospitality + Trading Services,Proffesional fees,13.04.2011,5100440441,"1,400.00",Bank of Scotland
Manchester City Council,Adult Social Care,Stationery,13.04.2011,5100441264,513.75,Banner Business Services Ltd
Manchester City Council,Childrens Services,Home Care ,13.04.2011,5100440898,660.75,Barlow Moor Community Association.
Manchester City Council,Insurance Fund,Insurance,13.04.2011,1902571842,"203,491.05",Barlow Robbins LLP Solicitors
Manchester City Council,Regeneration Finance,Proffesional fees,13.04.2011,5100440429,"3,655.00",Bell Pottinger
Manchester City Council,Chief Executives,Agency staff provision,13.04.2011,5100440974,"1,771.59",Bennett Staff Bureau
Manchester City Council,Chief Executives,Grant and subscriptions awarded,13.04.2011,1902571362,"1,051.66",Bickerdike Residents Group
Manchester City Council,Hospitality + Trading Services,Courier Costs,13.04.2011,5100440854,508.00,Bicycle Messenger Service
Manchester City Council,Regeneration Finance,Payments for services,13.04.2011,5100440356,"5,427.70",Bike Right
Manchester City Council,Corporate Services,Training and Development,13.04.2011,5100440901,"1,863.02",Bpp Accountancy Courses
Manchester City Council,Hospitality + Trading Services,Catering Provisions,13.04.2011,1902579041,682.28,Brake Bros Foodservice Ltd
Manchester City Council,Hospitality + Trading Services,Catering Provisions,13.04.2011,1902579097,611.24,Brake Bros Foodservice Ltd
Manchester City Council,Hospitality + Trading Services,Catering Provisions,13.04.2011,1902580089,659.43,Brake Bros Foodservice Ltd
Manchester City Council,Hospitality + Trading Services,Catering Provisions,13.04.2011,1902580131,721.61,Brake Bros Foodservice Ltd
Manchester City Council,Hospitality + Trading Services,Catering Provisions,13.04.2011,1902579028,844.99,Brake Bros Foodservice Ltd
Manchester City Council,Hospitality + Trading Services,Catering Provisions,13.04.2011,1902580059,753.37,Brake Bros Foodservice Ltd
Manchester City Council,Hospitality + Trading Services,Catering Provisions,13.04.2011,1902578548,754.75,Brake Bros Foodservice Ltd
Manchester City Council,Hospitality + Trading Services,Catering Provisions,13.04.2011,1902580080,561.96,Brake Bros Foodservice Ltd
Manchester City Council,Hospitality + Trading Services,Catering Provisions,13.04.2011,1902580050,732.15,Brake Bros Foodservice Ltd
Manchester City Council,Childrens Services,Works and associated costs for Land and Buildings,13.04.2011,5100440361,"1,648.00",Bramall Construction Ltd
Manchester City Council,Learning Disabilities PB,Day Care Payments,13.04.2011,5100441054,654.48,Brothers Of Charity Services
Manchester City Council,Learning Disabilities PB,Supported Accommodation,13.04.2011,5100441029,"4,007.80",Brothers Of Charity Services
Manchester City Council,Learning Disabilities PB,Supported Accommodation,13.04.2011,5100441033,"3,092.28",Brothers Of Charity Services
Manchester City Council,Learning Disabilities PB,Supported Accommodation,13.04.2011,5100441047,"2,281.48",Brothers Of Charity Services
Manchester City Council,Learning Disabilities PB,Supported Accommodation,13.04.2011,5100441040,"2,162.12",Brothers Of Charity Services
Manchester City Council,Learning Disabilities PB,Supported Accommodation,13.04.2011,5100441031,702.76,Brothers Of Charity Services
Manchester City Council,Regeneration Finance,Rents,13.04.2011,5100440856,"26,501.36",Bruntwood Estates Alpha
Manchester City Council,Chief Executives,Landline Telephone,13.04.2011,1902544244,"8,556.16",BT PLC
Manchester City Council,Regeneration Finance,Landline Telephone,13.04.2011,1902562492,"2,612.66",BT PLC
Manchester City Council,Hospitality + Trading Services,Purchase of stores for re-distribution,13.04.2011,5100441099,"1,366.42",Buildbase Ltd aka Axon Buildbase
Manchester City Council,Hospitality + Trading Services,Catering Provisions,13.04.2011,1902580058,554.30,Bunzl Catering Supplies
Manchester City Council,Childrens Services,Photocopying,13.04.2011,5100440468,854.77,C F Asset Finance Ltd
Manchester City Council,Childrens Services,Building Works,13.04.2011,5100441216,"249,000.00",Capita IT Services (BSF) Limited
Manchester City Council,Chief Executives,Grant and subscriptions awarded,13.04.2011,1902562353,"19,494.00",Castlefield Forum
Manchester City Council,Childrens Services,Proffesional fees,13.04.2011,1700019937,-699.98,Central Mcr University Hospitals
Manchester City Council,Childrens Services,Grant and subscriptions awarded,13.04.2011,5100440442,"14,195.85",Central Mcr University Hospitals
Manchester City Council,Childrens Services,Grant and subscriptions awarded,13.04.2011,5100440446,"13,650.10",Central Mcr University Hospitals
Manchester City Council,Childrens Services,Grant and subscriptions awarded,13.04.2011,5100440443,"13,608.36",Central Mcr University Hospitals
Manchester City Council,Environment and Operations,Proffesional fees,13.04.2011,5100440853,"1,450.00",Charles Beresford + Co Ltd
Manchester City Council,Housing Revenue Account,Grant and subscriptions awarded,13.04.2011,5100440431,"1,985.00",CIPFA Business Ltd
Manchester City Council,Childrens Services,Payments for services,13.04.2011,5100440666,"1,400.32",City Care Partnership Ltd
Manchester City Council,Hospitality + Trading Services,Hire of Machinery,13.04.2011,5100440484,"12,000.00",Colas Limited
Manchester City Council,Hospitality + Trading Services,Hire of Machinery,13.04.2011,5100440476,"6,567.90",Colas Limited
Manchester City Council,Hospitality + Trading Services,Funeral and coroner related services,13.04.2011,5100440493,"22,194.00",Colas Limited
Manchester City Council,Hospitality + Trading Services,Funeral and coroner related services,13.04.2011,5100440494,"6,998.00",Colas Limited
Manchester City Council,Corporate Services,I T Provision,13.04.2011,5100441109,"1,343.66",Computerland Uk Ltd
Manchester City Council,Childrens Services,Transport Coach Hire,13.04.2011,5100440453,"2,250.00",Connect Cars Ltd
Manchester City Council,Childrens Services,Transport Coach Hire,13.04.2011,5100440461,"1,610.00",Connect Cars Ltd
Manchester City Council,Childrens Services,Transport Coach Hire,13.04.2011,5100440458,"1,380.00",Connect Cars Ltd
Manchester City Council,Childrens Services,Transport Coach Hire,13.04.2011,5100440454,"1,053.00",Connect Cars Ltd
Manchester City Council,Childrens Services,Transport Coach Hire,13.04.2011,5100440460,989.00,Connect Cars Ltd
Manchester City Council,Childrens Services,Transport Coach Hire,13.04.2011,5100440452,735.00,Connect Cars Ltd
Manchester City Council,Chief Executives,Agency staff provision,13.04.2011,5100440896,"2,000.00",Consult R Us Ltd
Manchester City Council,Corporate Services,Grounds Maintenance,13.04.2011,5100440794,663.00,Countrywide Grounds Maintenance Ltd
Manchester City Council,Childrens Services,Supported Accommodation,13.04.2011,5100440940,552.80,Creative Support Ltd
Manchester City Council,Childrens Services,Transport Taxis,13.04.2011,5100440873,"1,538.90",Cresta Car Hire
Manchester City Council,Childrens Services,Transport Taxis,13.04.2011,5100440868,985.60,Cresta Car Hire
Manchester City Council,Childrens Services,Transport Taxis,13.04.2011,5100440391,949.30,Cresta Car Hire
Manchester City Council,Adult Social Care,Proffesional fees,13.04.2011,1902571806,"1,970.00",Criminal Records Bureau
Manchester City Council,Corporate Services,Responsive Repairs Work,13.04.2011,5100440433,"20,000.00",Cruden Group Ltd
Manchester City Council,Housing Revenue Account,Building Works,13.04.2011,5100440859,"466,536.69",Cruden Group Ltd
Manchester City Council,Hospitality + Trading Services,Catering Provisions,13.04.2011,5100440238,"60,761.12",Dairy Crest
Manchester City Council,Environment and Operations,Proffesional fees,13.04.2011,5100440317,"1,017.90",Daly Drains Ltd
Manchester City Council,Regeneration Finance,Grant and subscriptions awarded,13.04.2011,5100440344,"2,476.00",Dance Initiative Greater Manchester
Manchester City Council,Chief Executives,Storage Costs,13.04.2011,5100440682,590.67,Data Space Limited
Manchester City Council,Chief Executives,Storage Costs,13.04.2011,5100440692,536.91,Data Space Limited
Manchester City Council,Adult Social Care,Compensation Payments,13.04.2011,1902571879,566.00,Department For Work & Pensions
Manchester City Council,Highways Services,Compensation Payments,13.04.2011,1902571869,566.00,Department For Work & Pensions
Manchester City Council,Housing General Fund,Building Works,13.04.2011,5100440380,"50,000.00",Eaga PLC
Manchester City Council,Hospitality + Trading Services,Building Materials for direct delivery,13.04.2011,5100440664,801.00,Ecomix Concrete Ltd
Manchester City Council,Regeneration Finance,Consultants Fees,13.04.2011,5100441046,"5,800.00",Ekos Consulting (Uk) Ltd
Manchester City Council,Regeneration Finance,Consultants Fees,13.04.2011,5100440394,"4,144.00",Ekos Consulting (Uk) Ltd
Manchester City Council,Housing Revenue Account,Proffesional fees,13.04.2011,5100440971,720.00,Electoral Reform Services Ltd
Manchester City Council,Chief Executives,Grant and subscriptions awarded,13.04.2011,1902571804,665.00,Elgar Farrant Northmoor Residents
Manchester City Council,Corporate Services,Works and associated costs for Land and Buildings,13.04.2011,5100440439,"2,256.50",Eversheds Llp
Manchester City Council,Corporate Services,Works and associated costs for Land and Buildings,13.04.2011,5100440444,734.00,Eversheds Llp
Manchester City Council,Chief Executives,Window Cleaning,13.04.2011,5100440345,659.87,Ferguson Cleaning Services LLP
Manchester City Council,Chief Executives,Window Cleaning,13.04.2011,5100440347,659.87,Ferguson Cleaning Services LLP
Manchester City Council,Chief Executives,Window Cleaning,13.04.2011,5100440362,659.87,Ferguson Cleaning Services LLP
Manchester City Council,Chief Executives,Window Cleaning,13.04.2011,5100440364,659.87,Ferguson Cleaning Services LLP
Manchester City Council,Chief Executives,Window Cleaning,13.04.2011,5100440352,659.78,Ferguson Cleaning Services LLP
Manchester City Council,Chief Executives,Window Cleaning,13.04.2011,5100440357,618.00,Ferguson Cleaning Services LLP
Manchester City Council,Chief Executives,Agency staff provision,13.04.2011,5100440875,591.50,Fresh 123 Ltd t/a Pin Point
Manchester City Council,Chief Executives,Grant and subscriptions awarded,13.04.2011,1902571902,"1,130.03",Friends of Connections
Manchester City Council,Chief Executives,Grant and subscriptions awarded,13.04.2011,1902571913,500.00,Friends Of Crowcroft Park
Manchester City Council,Hospitality + Trading Services,Refuse Collection,13.04.2011,5100440661,567.67,G.G. Rentals Ltd
Manchester City Council,Regeneration Finance,I T Provision,13.04.2011,1902552657,"3,088.95",Go Education PLC
Manchester City Council,Hospitality + Trading Services,Vehicle Hire Costs,13.04.2011,5100440911,"7,875.62",Go Plant Ltd
Manchester City Council,Hospitality + Trading Services,Hire of Machinery,13.04.2011,5100440917,"11,600.00",Go Plant Ltd
Manchester City Council,Chief Executives,Council Dwelling Fees,13.04.2011,1902569035,"3,000.00",Gollifer Langston Architects
Manchester City Council,Hospitality + Trading Services,Hire of Machinery,13.04.2011,5100441005,"37,171.40",H & C Plant Hire Ltd
Manchester City Council,Manchester Leisure,Hire of Premises,13.04.2011,5100440399,620.00,Holy Trinity Parish Hall
Manchester City Council,Regeneration Finance,Hire of Premises,13.04.2011,5100440791,515.00,Inner City Music Ltd
Manchester City Council,Chief Executives,Licences Purchase,13.04.2011,5100440341,"11,188.98",Intec For Business Ltd
Manchester City Council,Chief Executives,Grant and subscriptions awarded,13.04.2011,1902571898,500.00,Irk Valley Tennants and Residents
Manchester City Council,Hospitality + Trading Services,Transport Coach Hire,13.04.2011,5100440668,"1,925.79",Jeffries Cars
Manchester City Council,Hospitality + Trading Services,Transport Coach Hire,13.04.2011,5100440669,"1,889.00",Jeffries Cars
Manchester City Council,Regeneration Finance,Training and Development,13.04.2011,5100440202,702.00,Kaplan Financial - Manchester
Manchester City Council,Chief Executives,Grant and subscriptions awarded,13.04.2011,1902572109,"1,377.00",Ladybarn Veterans Bowling &
Manchester City Council,Childrens Services,Catering Provisions,13.04.2011,5100441095,771.54,Le Mange Tout
Manchester City Council,Grtr Manchester Urban Traffic,Vehicle Hire Costs,13.04.2011,5100437474,"1,585.64",Lex Vehicle Leasing Ltd
Manchester City Council,Childrens Services,Stationery,13.04.2011,5100440707,"4,647.00",Madeleine Lindley Ltd
Manchester City Council,Regeneration Finance,Agency staff provision,13.04.2011,5100440690,"4,310.55",Manchester Airport Plc
Manchester City Council,Regeneration Finance,Agency staff provision,13.04.2011,5100440690,"1,986.98",Manchester Airport Plc
Manchester City Council,Chief Executives,Grant and subscriptions awarded,13.04.2011,1902571871,"2,105.76",Manchester Roller Hockey Club
Manchester City Council,Hospitality + Trading Services,Building Materials for direct delivery,13.04.2011,5100441210,"7,358.04",Marshalls Mono Ltd
Manchester City Council,Hospitality + Trading Services,Building Materials for direct delivery,13.04.2011,5100441207,"5,393.53",Marshalls Mono Ltd
Manchester City Council,Hospitality + Trading Services,Building Materials for direct delivery,13.04.2011,5100441083,"3,849.44",Marshalls Mono Ltd
Manchester City Council,Hospitality + Trading Services,Building Materials for direct delivery,13.04.2011,5100441203,"3,009.60",Marshalls Mono Ltd
Manchester City Council,Hospitality + Trading Services,Building Materials for direct delivery,13.04.2011,5100441222,"3,009.60",Marshalls Mono Ltd
Manchester City Council,Hospitality + Trading Services,Building Materials for direct delivery,13.04.2011,5100441225,"3,009.60",Marshalls Mono Ltd
Manchester City Council,Hospitality + Trading Services,Building Materials for direct delivery,13.04.2011,5100441227,"2,574.04",Marshalls Mono Ltd
Manchester City Council,Hospitality + Trading Services,Building Materials for direct delivery,13.04.2011,5100441221,"1,374.80",Marshalls Mono Ltd
Manchester City Council,Hospitality + Trading Services,Purchase of stores for re-distribution,13.04.2011,5100441230,"8,812.32",Marshalls Mono Ltd
Manchester City Council,Hospitality + Trading Services,Purchase of stores for re-distribution,13.04.2011,5100441130,"1,878.24",Marshalls Mono Ltd
Manchester City Council,Chief Executives,Proffesional fees,13.04.2011,5100440674,"6,654.50",Mather & Co Limited
Manchester City Council,Chief Executives,Grant and subscriptions awarded,13.04.2011,1902569246,"60,000.00",MQT (Trading as Urbis)
Manchester City Council,Childrens Services,Public Transport,13.04.2011,5100440934,"1,288.00",New Horizon Centre Ltd
Manchester City Council,Chief Executives,Grant and subscriptions awarded,13.04.2011,1902571962,"1,445.00",North M/cr Older Peoples Grp
Manchester City Council,Chief Executives,Grant and subscriptions awarded,13.04.2011,1902562396,"3,683.00",Northern Quarter Community Group
Manchester City Council,Corporate Services,Works and associated costs for Land and Buildings,13.04.2011,5100440680,"6,798.00",O'Shea Business Consulting Ltd
Manchester City Council,Corporate Services,Works and associated costs for Land and Buildings,13.04.2011,5100441193,"3,407.00",Ove Arup & Partners Ltd
Manchester City Council,Corporate Services,Compensation Payments,13.04.2011,5100441214,"4,127.05",Pannone & Partners Solicitors
Manchester City Council,Corporate Services,Compensation Payments,13.04.2011,5100441232,"4,127.05",Pannone & Partners Solicitors
Manchester City Council,Corporate Services,Compensation Payments,13.04.2011,5100441217,"-4,127.05",Pannone & Partners Solicitors
Manchester City Council,Hospitality + Trading Services,Rodent &Pest Control,13.04.2011,5100440336,900.00,Pestproof Ltd
Manchester City Council,Grtr Manchester Transport Unit,Payments to Sub-Contractors,13.04.2011,5100440972,"3,430.96",Pluswork Group
Manchester City Council,Grtr Manchester Transport Unit,Payments to Sub-Contractors,13.04.2011,5100440996,535.85,Pluswork Group
Manchester City Council,Manchester Leisure,Payments for services,13.04.2011,5100440740,910.00,Premier Sport Ltd
Manchester City Council,Adult Social Care,Equipment,13.04.2011,5100440507,"8,181.12",Prism UK Medical Ltd t/a Carefree
Manchester City Council,Chief Executives,Agency staff provision,13.04.2011,5100440467,"1,383.90",Progressive Recruitment Ltd
Manchester City Council,Environment and Operations,Payments to Sub-Contractors,13.04.2011,5100440512,"8,875.00",R & M Developments Ltd
Manchester City Council,Childrens Services,Agency staff provision,13.04.2011,5100440667,575.00,Randstad Education
Manchester City Council,Childrens Services,Agency staff provision,13.04.2011,5100440671,575.00,Randstad Education
Manchester City Council,Childrens Services,Agency staff provision,13.04.2011,5100440672,575.00,Randstad Education
Manchester City Council,Childrens Services,Training and Development,13.04.2011,1902571303,"1,412.22",Redacted Personal Information
Manchester City Council,Childrens Services,Transport Coach Hire,13.04.2011,5100440420,"2,560.00",Redacted Personal Information
Manchester City Council,Manchester Leisure,Refuse Collection,13.04.2011,5100440684,547.76,Redgate Holdings Ltd
Manchester City Council,Environment and Operations,Tipping - Tonnage,13.04.2011,5100440675,"24,787.34",Redgate Holdings Ltd
Manchester City Council,Chief Executives,Agency staff provision,13.04.2011,5100440470,653.10,Reed Employment Plc
Manchester City Council,Corporate Services,Proffesional fees,13.04.2011,5100440735,"6,439.43",Rider Levett Bucknall UK Ltd
Manchester City Council,Chief Executives,Agency staff provision,13.04.2011,5100440395,"2,407.34",Rullion Engineering Personnel Limit
Manchester City Council,Hospitality + Trading Services,Vehicle contract hire and leases,13.04.2011,5100440710,"8,750.00",S G Equipment Finance Ltd
Manchester City Council,Hospitality + Trading Services,Vehicle contract hire and leases,13.04.2011,5100440998,"-1,624.75",S G Equipment Finance Ltd
Manchester City Council,Housing Revenue Account,Grounds Maintenance,13.04.2011,5100440515,"1,350.00",Safe Estates Services Ltd
Manchester City Council,Chief Executives,Agency staff provision,13.04.2011,5100440883,932.40,Sanctuary Social Care
Manchester City Council,Chief Executives,Agency staff provision,13.04.2011,5100440883,932.40,Sanctuary Social Care
Manchester City Council,Childrens Services,Proffesional fees,13.04.2011,1902571320,"1,608.13",SCP Limited
Manchester City Council,Libraries and Theatres,Apportioned Expenses,13.04.2011,5100441003,"5,753.03",Serco Manchester (Manchester Commun
Manchester City Council,Hospitality + Trading Services,Refuse Collection,13.04.2011,5100441110,"1,755.00",Siemens Financial Services Ltd
Manchester City Council,Regeneration Finance,Legal Fees,13.04.2011,5100440466,"20,000.00",Slaughter & May
Manchester City Council,Hospitality + Trading Services,Internal Repairs and Maintenance for buildings,13.04.2011,5100441058,"1,780.00",Smart Control Systems Ltd
Manchester City Council,Childrens Services,Proffesional fees,13.04.2011,1902570599,"29,950.00",Social Finance Ltd
Manchester City Council,Regeneration Finance,Equipment,13.04.2011,5100440511,500.85,Solon Security Ltd
Manchester City Council,Hospitality + Trading Services,Payments to Sub-Contractors,13.04.2011,5100440683,552.50,Sovereign Fencing Ltd
Manchester City Council,Hospitality + Trading Services,Payments to Sub-Contractors,13.04.2011,5100440679,521.70,Sovereign Fencing Ltd
Manchester City Council,Hospitality + Trading Services,Payments to Sub-Contractors,13.04.2011,5100440737,"10,189.20",Sovereign Fencing Ltd
Manchester City Council,Hospitality + Trading Services,Payments to Sub-Contractors,13.04.2011,5100440737,563.70,Sovereign Fencing Ltd
Manchester City Council,Chief Executives,Building Works,13.04.2011,5100437856,"10,586.90",Space Kraft Limited
Manchester City Council,Hospitality + Trading Services,Vehicle Repairs,13.04.2011,5100440780,842.65,Specialist Vehicle rental
Manchester City Council,Chief Executives,Proffesional fees,13.04.2011,5100440416,"1,500.00",Sportcel Marketing Ltd
Manchester City Council,Chief Executives,Proffesional fees,13.04.2011,5100440491,"4,050.00",Sputnik Internet
Manchester City Council,Hospitality + Trading Services,ClothsUniformLaundry,13.04.2011,5100440946,"2,975.11",Stalbridge Linen Services Ltd
Manchester City Council,Hospitality + Trading Services,ClothsUniformLaundry,13.04.2011,5100440945,881.40,Stalbridge Linen Services Ltd
Manchester City Council,Hospitality + Trading Services,Security,13.04.2011,5100440348,633.79,T F S Systems Ltd
Manchester City Council,Libraries and Theatres,Proffesional fees,13.04.2011,5100440510,"1,250.00",The Agency
Manchester City Council,Chief Executives,Grant and subscriptions awarded,13.04.2011,5100440440,"2,500.00",The Chatterbox Project
Manchester City Council,Libraries and Theatres,Rents,13.04.2011,5100440987,"2,440.17",The East Manchester Academy
Manchester City Council,Childrens Services,Catering,13.04.2011,5100440985,"1,065.00",The East Manchester Academy
Manchester City Council,Childrens Services,Works and associated costs for Land and Buildings,13.04.2011,5100440881,"11,905.00",The Lord Group Ltd
Manchester City Council,Libraries and Theatres,Furniture,13.04.2011,5100440915,"1,064.00",thedesignconcept
Manchester City Council,Libraries and Theatres,Furniture,13.04.2011,5100440912,"1,010.00",thedesignconcept
Manchester City Council,Libraries and Theatres,Vehicle Plant Furniture and Equipment,13.04.2011,5100440910,"2,068.00",thedesignconcept
Manchester City Council,Regeneration Finance,Training and Development,13.04.2011,5100440514,510.00,Trinity College London
Manchester City Council,Regeneration Finance,Training and Development,13.04.2011,5100441078,"4,590.00",Trinity College London
Manchester City Council,Regeneration Finance,Training and Development,13.04.2011,5100441076,"2,040.00",Trinity College London
Manchester City Council,Regeneration Finance,Training and Development,13.04.2011,5100441071,510.00,Trinity College London
Manchester City Council,Hospitality + Trading Services,Heat Management,13.04.2011,5100441055,540.00,Triscan Systems Ltd
Manchester City Council,Chief Executives,Works and associated costs for Land and Buildings,13.04.2011,5100439999,"5,000.00",Turner & Townsend Cost
Manchester City Council,Adult Social Care,Water - Metered,13.04.2011,1902571323,500.69,United Utilities Water Plc
Manchester City Council,Corporate Services,Water - Metered,13.04.2011,1902571825,628.92,United Utilities Water Plc
Manchester City Council,Housing Revenue Account,Water - Metered,13.04.2011,1902571838,833.86,United Utilities Water Plc
Manchester City Council,Housing Revenue Account,Water - Unmetered,13.04.2011,1902571145,"9,132.92",United Utilities Water Plc
Manchester City Council,Chief Executives,Examination Fees,13.04.2011,5100441022,599.00,University Hospital of South Mcr
Manchester City Council,Chief Executives,Funeral and coroner related services,13.04.2011,5100441038,"3,240.00",University Hospital of South Mcr
Manchester City Council,Chief Executives,Grant and subscriptions awarded,13.04.2011,5100440455,"2,500.00",University Of Manchester
Manchester City Council,Chief Executives,Grant and subscriptions awarded,13.04.2011,5100440455,"4,619.66",University Of Manchester
Manchester City Council,Chief Executives,Grant and subscriptions awarded,13.04.2011,5100440455,"32,103.32",University Of Manchester
Manchester City Council,Regeneration Finance,Third party payments to other Local Authorities,13.04.2011,5100440516,"2,000.00",University Of Manchester
Manchester City Council,Regeneration Finance,Third party payments to other Local Authorities,13.04.2011,5100440517,"2,000.00",University Of Manchester
Manchester City Council,Regeneration Finance,Third party payments to other Local Authorities,13.04.2011,5100440518,"2,000.00",University Of Manchester
Manchester City Council,Hospitality + Trading Services,Building Materials for direct delivery,13.04.2011,5100440784,588.00,Viewprint
Manchester City Council,Environment and Operations,Vehicle Parts/Spares,13.04.2011,5100440700,"6,119.20",VIP-System Ltd
Manchester City Council,Chief Executives,Grant and subscriptions awarded,13.04.2011,1902562376,"1,000.00",West Didsbury Residents Association
Manchester City Council,Chief Executives,Grant and subscriptions awarded,13.04.2011,1902561895,"1,700.00",Whalley Range Youth Opp Assoc Celeb
Manchester City Council,Chief Executives,I T Provision,13.04.2011,5100440852,"1,200.00",Zipporah Ltd
Manchester City Council,Chief Executives,Payments for services,14.04.2011,5100441659,"3,290.00",Abbey Gisburne Park Hospital
Manchester City Council,Chief Executives,Payments for services,14.04.2011,5100441673,"3,290.00",Abbey Gisburne Park Hospital
Manchester City Council,Chief Executives,Payments for services,14.04.2011,5100441665,"1,880.00",Abbey Gisburne Park Hospital
Manchester City Council,Environment and Operations,Proffesional fees,14.04.2011,5100441401,"2,000.00",Action for Sustainable Living Ltd
Manchester City Council,Environment and Operations,Payments to Contractors,14.04.2011,5100441306,950.00,Animal Wardens Ltd
Manchester City Council,Chief Executives,Agency staff provision,14.04.2011,5100441735,779.09,Aptus Personnel Ltd t/a Jark
Manchester City Council,Environment and Operations,Payments to Sub-Contractors,14.04.2011,5100441238,800.00,Arboricultural Services Treework
Manchester City Council,Chief Executives,Agency staff provision,14.04.2011,5100441568,"5,387.15",Ashberry Recruitment Ltd
Manchester City Council,Regeneration Finance,Grounds Maintenance,14.04.2011,5100440471,"1,900.38",Ashlea Ltd
Manchester City Council,Chief Executives,I T Provision,14.04.2011,1902572122,"7,317.07",Avocent Software Ltd
Manchester City Council,Chief Executives,I T Provision,14.04.2011,1902581548,"1,131.73",Avocent Software Ltd
Manchester City Council,Adult Social Care,Courier Costs,14.04.2011,1902581163,510.00,Bicycle Messenger Service
Manchester City Council,Chief Executives,Grant and subscriptions awarded,14.04.2011,5100441309,"8,139.00",Blackburn With Darwen Borough Counc
Manchester City Council,Hospitality + Trading Services,Catering Provisions,14.04.2011,1902580897,563.46,Brake Bros Foodservice Ltd
Manchester City Council,Hospitality + Trading Services,Consultants Fees,14.04.2011,5100441576,"2,500.00",Brightcorp Ltd T/A The Retail Group
Manchester City Council,Chief Executives,Printing,14.04.2011,5100440426,"1,300.00",BTC Group
Manchester City Council,Chief Executives,Printing,14.04.2011,5100440421,680.00,BTC Group
Manchester City Council,Hospitality + Trading Services,Catering Provisions,14.04.2011,1902580805,506.22,Bunzl Catering Supplies
Manchester City Council,Hospitality + Trading Services,Catering Provisions,14.04.2011,1902580806,506.22,Bunzl Catering Supplies
Manchester City Council,Chief Executives,Agency staff provision,14.04.2011,5100441300,"10,188.40",Capita  Resourcing Ltd
Manchester City Council,Chief Executives,Agency staff provision,14.04.2011,5100441299,"9,186.21",Capita  Resourcing Ltd
Manchester City Council,Chief Executives,Agency staff provision,14.04.2011,5100441301,"8,176.52",Capita  Resourcing Ltd
Manchester City Council,Environment and Operations,Proffesional fees,14.04.2011,5100441002,"7,500.00",Carbon Saver Ltd
Manchester City Council,Adult Social Care,Training and Development,14.04.2011,5100441434,"1,150.00",Carers Uk
Manchester City Council,Childrens Services,Third party payments to other Local Authorities,14.04.2011,5100441493,"2,555.29",Cheshire West and Chester
Manchester City Council,Childrens Services,Third party payments to other Local Authorities,14.04.2011,5100441495,"2,015.44",Cheshire West and Chester
Manchester City Council,Hospitality + Trading Services,Security,14.04.2011,5100441701,"6,153.24",Chubb  Systems Limited
Manchester City Council,Childrens Services,Security,14.04.2011,5100441302,575.00,Chubb Systems Ltd
Manchester City Council,Regeneration Finance,Grant and subscriptions awarded,14.04.2011,5100441406,"15,453.00",Community Support Plus Ltd
Manchester City Council,Regeneration Finance,Grant and subscriptions awarded,14.04.2011,5100441400,"2,915.00",Community Support Plus Ltd
Manchester City Council,Childrens Services,Subsistence and Conference Expenses,14.04.2011,5100441751,750.00,Complete First Aid
Manchester City Council,Childrens Services,Subsistence and Conference Expenses,14.04.2011,5100441582,810.00,Complete First Aid
Manchester City Council,Corporate Services,IT Unit Recharges,14.04.2011,5100441143,729.68,Computerland Uk Ltd
Manchester City Council,Adult Social Care,Proffesional fees,14.04.2011,5100441754,"11,160.00",Connectup.Co.Uk
Manchester City Council,Adult Social Care,I T Provision,14.04.2011,5100441752,"108,173.72",Corelogic Limited
Manchester City Council,Adult Social Care,Gas,14.04.2011,1902581374,533.62,Corona Energy Ltd
Manchester City Council,Adult Social Care,Gas,14.04.2011,1902581356,587.87,Corona Energy Ltd
Manchester City Council,Adult Social Care,Gas,14.04.2011,1902581418,593.84,Corona Energy Ltd
Manchester City Council,Adult Social Care,Gas,14.04.2011,1902581398,705.53,Corona Energy Ltd
Manchester City Council,Adult Social Care,Gas,14.04.2011,1902581342,"1,016.32",Corona Energy Ltd
Manchester City Council,Adult Social Care,Gas,14.04.2011,1902581360,692.77,Corona Energy Ltd
Manchester City Council,Adult Social Care,Gas,14.04.2011,1902581343,826.65,Corona Energy Ltd
Manchester City Council,Adult Social Care,Gas,14.04.2011,1902581344,775.91,Corona Energy Ltd
Manchester City Council,Adult Social Care,Gas,14.04.2011,1902581337,"1,232.02",Corona Energy Ltd
Manchester City Council,Adult Social Care,Gas,14.04.2011,1902581359,564.83,Corona Energy Ltd
Manchester City Council,Adult Social Care,Gas,14.04.2011,1902581314,"1,622.22",Corona Energy Ltd
Manchester City Council,Chief Executives,Gas,14.04.2011,1902581306,"6,728.61",Corona Energy Ltd
Manchester City Council,Chief Executives,Gas,14.04.2011,1902581305,"5,099.61",Corona Energy Ltd
Manchester City Council,Chief Executives,Gas,14.04.2011,1902581331,"1,463.12",Corona Energy Ltd
Manchester City Council,Chief Executives,Gas,14.04.2011,1902581323,"1,392.99",Corona Energy Ltd
Manchester City Council,Chief Executives,Gas,14.04.2011,1902581321,"1,315.91",Corona Energy Ltd
Manchester City Council,Chief Executives,Gas,14.04.2011,1902581318,"1,210.88",Corona Energy Ltd
Manchester City Council,Chief Executives,Gas,14.04.2011,1902581316,"1,133.59",Corona Energy Ltd
Manchester City Council,Chief Executives,Gas,14.04.2011,1902581324,"1,041.16",Corona Energy Ltd
Manchester City Council,Chief Executives,Gas,14.04.2011,1902581320,"1,040.18",Corona Energy Ltd
Manchester City Council,Chief Executives,Gas,14.04.2011,1902581328,993.57,Corona Energy Ltd
Manchester City Council,Chief Executives,Gas,14.04.2011,1902581327,982.42,Corona Energy Ltd
Manchester City Council,Chief Executives,Gas,14.04.2011,1902581322,915.77,Corona Energy Ltd
Manchester City Council,Chief Executives,Gas,14.04.2011,1902581335,915.30,Corona Energy Ltd
Manchester City Council,Chief Executives,Gas,14.04.2011,1902581330,809.99,Corona Energy Ltd
Manchester City Council,Chief Executives,Gas,14.04.2011,1902581336,785.96,Corona Energy Ltd
Manchester City Council,Chief Executives,Gas,14.04.2011,1902581333,735.15,Corona Energy Ltd
Manchester City Council,Chief Executives,Gas,14.04.2011,1902581346,665.29,Corona Energy Ltd
Manchester City Council,Chief Executives,Gas,14.04.2011,1902581366,632.47,Corona Energy Ltd
Manchester City Council,Chief Executives,Gas,14.04.2011,1902581349,552.29,Corona Energy Ltd
Manchester City Council,Chief Executives,Gas,14.04.2011,1902581329,"1,519.95",Corona Energy Ltd
Manchester City Council,Chief Executives,Gas,14.04.2011,1902581307,"4,478.73",Corona Energy Ltd
Manchester City Council,Childrens Services,Gas,14.04.2011,1902581315,"1,508.76",Corona Energy Ltd
Manchester City Council,Childrens Services,Gas,14.04.2011,1902581385,614.16,Corona Energy Ltd
Manchester City Council,Childrens Services,Gas,14.04.2011,1902581332,"1,420.62",Corona Energy Ltd
Manchester City Council,Childrens Services,Gas,14.04.2011,1902581377,519.80,Corona Energy Ltd
Manchester City Council,Childrens Services,Gas,14.04.2011,1902581362,527.95,Corona Energy Ltd
Manchester City Council,Childrens Services,Gas,14.04.2011,1902581365,646.98,Corona Energy Ltd
Manchester City Council,Childrens Services,Gas,14.04.2011,1902581364,773.33,Corona Energy Ltd
Manchester City Council,Childrens Services,Gas,14.04.2011,1902581357,561.56,Corona Energy Ltd
Manchester City Council,Childrens Services,Gas,14.04.2011,1902581350,661.96,Corona Energy Ltd
Manchester City Council,Childrens Services,Gas,14.04.2011,1902581390,628.28,Corona Energy Ltd
Manchester City Council,Childrens Services,Gas,14.04.2011,1902581358,558.73,Corona Energy Ltd
Manchester City Council,Childrens Services,Gas,14.04.2011,1902581355,553.79,Corona Energy Ltd
Manchester City Council,Childrens Services,Gas,14.04.2011,1902581347,873.16,Corona Energy Ltd
Manchester City Council,Childrens Services,Gas,14.04.2011,1902581338,"1,250.34",Corona Energy Ltd
Manchester City Council,Corporate Services,Gas,14.04.2011,1902581399,"3,339.33",Corona Energy Ltd
Manchester City Council,Corporate Services,Gas,14.04.2011,1902581304,"8,708.05",Corona Energy Ltd
Manchester City Council,Corporate Services,Gas,14.04.2011,1902581309,"2,569.09",Corona Energy Ltd
Manchester City Council,Corporate Services,Gas,14.04.2011,1902581312,"1,892.90",Corona Energy Ltd
Manchester City Council,Corporate Services,Gas,14.04.2011,1902581310,"6,137.88",Corona Energy Ltd
Manchester City Council,Environment and Operations,Gas,14.04.2011,1902581325,"1,126.83",Corona Energy Ltd
Manchester City Council,Environment and Operations,Gas,14.04.2011,1902581303,"11,067.56",Corona Energy Ltd
Manchester City Council,Hospitality + Trading Services,Gas,14.04.2011,1902581311,"3,366.97",Corona Energy Ltd
Manchester City Council,Hospitality + Trading Services,Gas,14.04.2011,1902581372,500.01,Corona Energy Ltd
Manchester City Council,Housing Revenue Account,Gas,14.04.2011,1902581319,"1,438.10",Corona Energy Ltd
Manchester City Council,Housing Revenue Account,Gas,14.04.2011,1902581326,"1,034.72",Corona Energy Ltd
Manchester City Council,Housing Revenue Account,Gas,14.04.2011,1902581341,"1,074.35",Corona Energy Ltd
Manchester City Council,Housing Revenue Account,Gas,14.04.2011,1902581339,827.33,Corona Energy Ltd
Manchester City Council,Housing Revenue Account,Gas,14.04.2011,1902581334,797.59,Corona Energy Ltd
Manchester City Council,Libraries and Theatres,Gas,14.04.2011,1902581353,506.51,Corona Energy Ltd
Manchester City Council,Libraries and Theatres,Gas,14.04.2011,1902581368,571.85,Corona Energy Ltd
Manchester City Council,Libraries and Theatres,Gas,14.04.2011,1902581361,680.59,Corona Energy Ltd
Manchester City Council,Libraries and Theatres,Gas,14.04.2011,1902581340,"1,150.47",Corona Energy Ltd
Manchester City Council,Manchester Leisure,Gas,14.04.2011,1902581308,"4,447.29",Corona Energy Ltd
Manchester City Council,Manchester Leisure,Gas,14.04.2011,1902581317,"1,412.65",Corona Energy Ltd
Manchester City Council,Manchester Leisure,Gas,14.04.2011,1902581352,"1,152.86",Corona Energy Ltd
Manchester City Council,Manchester Leisure,Gas,14.04.2011,1902581345,693.70,Corona Energy Ltd
Manchester City Council,Regeneration Finance,Gas,14.04.2011,1902581313,"1,272.13",Corona Energy Ltd
Manchester City Council,Grtr Manchester Transport Unit,Payments to Sub-Contractors,14.04.2011,5100441475,"14,957.50",Count On Us Ltd
Manchester City Council,Grtr Manchester Transport Unit,Payments to Sub-Contractors,14.04.2011,5100441471,"16,477.50",Count On Us Ltd
Manchester City Council,Grtr Manchester Transport Unit,Payments to Sub-Contractors,14.04.2011,5100441331,913.50,Cranborne Data Count
Manchester City Council,Chief Executives,Communications,14.04.2011,5100441555,"5,484.00",Creative Concern
Manchester City Council,Chief Executives,Communications,14.04.2011,5100441532,"5,369.78",Creative Concern
Manchester City Council,Chief Executives,Communications,14.04.2011,5100441527,"1,965.00",Creative Concern
Manchester City Council,Chief Executives,Communications,14.04.2011,5100441507,"1,200.00",Creative Concern
Manchester City Council,Chief Executives,Communications,14.04.2011,5100441522,"1,095.00",Creative Concern
Manchester City Council,Chief Executives,Communications,14.04.2011,5100441512,690.00,Creative Concern
Manchester City Council,Chief Executives,Communications,14.04.2011,5100441509,675.00,Creative Concern
Manchester City Council,Chief Executives,Communications,14.04.2011,5100441553,555.00,Creative Concern
Manchester City Council,Hospitality + Trading Services,Vehicle Parts/Spares,14.04.2011,5100441395,"20,520.00",Crystal Ball Ltd
Manchester City Council,Corporate Services,Works and associated costs for Land and Buildings,14.04.2011,5100440450,"26,700.00",Davis Langdon
Manchester City Council,Corporate Services,Works and associated costs for Land and Buildings,14.04.2011,5100440450,"4,200.00",Davis Langdon
Manchester City Council,Regeneration Finance,Consultants Fees,14.04.2011,5100441592,"14,939.50",Deloitte & Touche Llp
Manchester City Council,Hospitality + Trading Services,Vehicle Parts/Spares,14.04.2011,5100441642,586.57,Dennis Eagle Ltd
Manchester City Council,Regeneration Finance,Proffesional fees,14.04.2011,1902566843,"3,795.00",Develpment & Construction Sol Ltd
Manchester City Council,Manchester Leisure,Payments for services,14.04.2011,5100441283,"5,250.00",DKC Consultants
Manchester City Council,Environment and Operations,Electricity,14.04.2011,1902581243,"4,993.67",E.on UK Plc
Manchester City Council,Environment and Operations,Electricity,14.04.2011,1700019948,"-2,703.49",E.on UK Plc
Manchester City Council,Environment and Operations,Electricity,14.04.2011,1700019949,"-6,931.47",E.on UK Plc
Manchester City Council,Environment and Operations,Electricity,14.04.2011,1902581247,"2,513.96",E.on UK Plc
Manchester City Council,Housing Revenue Account,Electricity,14.04.2011,1902581250,"3,118.94",E.on UK Plc
Manchester City Council,Chief Executives,Agency staff provision,14.04.2011,5100441496,"17,759.18",Eden Brown Ltd
Manchester City Council,Corporate Services,Works and associated costs for Land and Buildings,14.04.2011,5100441498,"77,591.17",Electricity North West Limited
Manchester City Council,Housing Revenue Account,Proffesional fees,14.04.2011,5100441297,582.00,Energy Assessments (Bolton) Ltd
Manchester City Council,Chief Executives,Agency staff provision,14.04.2011,5100441315,"1,483.30",Entrust Social Care
Manchester City Council,Highways Services,I T Provision,14.04.2011,5100441537,"29,463.00",Exor Corporation Ltd
Manchester City Council,Highways Services,I T Provision,14.04.2011,5100441323,"11,940.00",Exor Corporation Ltd
Manchester City Council,Highways Services,I T Provision,14.04.2011,5100441336,"6,366.00",Exor Corporation Ltd
Manchester City Council,Highways Services,I T Provision,14.04.2011,5100441330,"5,189.00",Exor Corporation Ltd
Manchester City Council,Highways Services,I T Provision,14.04.2011,5100441504,"1,097.00",Exor Corporation Ltd
Manchester City Council,Hospitality + Trading Services,Vehicle Parts/Spares,14.04.2011,5100441525,680.10,F T Factors
Manchester City Council,Hospitality + Trading Services,Payments to Sub-Contractors,14.04.2011,5100440027,"1,380.00",Frankland Tree Services Ltd
Manchester City Council,Childrens Services,Works and associated costs for Land and Buildings,14.04.2011,5100441423,"9,620.60",GB Building Solutions Ltd
Manchester City Council,Manchester Leisure,Works and associated costs for Land and Buildings,14.04.2011,5100441423,"9,620.40",GB Building Solutions Ltd
Manchester City Council,Manchester Leisure,Rents,14.04.2011,5100441646,585.00,Gorton Amateur Boxing Club
Manchester City Council,Adult Social Care,Rents,14.04.2011,5100441633,"9,236.43",Grail Property
Manchester City Council,Housing General Fund,Building Works,14.04.2011,5100441705,"-22,578.00","Groundwork Manchester, Salford"
Manchester City Council,Chief Executives,Grant and subscriptions awarded,14.04.2011,1902562388,"2,500.00",Guinness Northern Counties
Manchester City Council,Regeneration Finance,Grant and subscriptions awarded,14.04.2011,5100438812,"24,439.00",Healthy Ardwick
Manchester City Council,Childrens Services,Legal Fees,14.04.2011,1902581530,"2,470.00",HMCTS (Manchester County Court)
Manchester City Council,Childrens Services,Legal Fees,14.04.2011,1902581530,700.00,HMCTS (Manchester County Court)
Manchester City Council,Childrens Services,Legal Fees,14.04.2011,1902581530,"2,225.00",HMCTS (Manchester County Court)
Manchester City Council,Childrens Services,Legal Fees,14.04.2011,1902581530,"2,225.00",HMCTS (Manchester County Court)
Manchester City Council,Adult Social Care,NVQ qualifications,14.04.2011,5100441712,"2,480.00",Homecare Support
Manchester City Council,Housing Revenue Account,Compensation Payments,14.04.2011,1902564429,"2,000.00",Hugh Koch Associates
Manchester City Council,Adult Social Care,Hire of Equipment,14.04.2011,5100440381,"45,280.63",Huntleigh Healthcare Ltd
Manchester City Council,Hospitality + Trading Services,Building Materials for direct delivery,14.04.2011,5100441581,975.00,Icethaw Salt Supplies Ltd
Manchester City Council,Regeneration Finance,Grant and subscriptions awarded,14.04.2011,1902580191,"1,878.64",ICFF
Manchester City Council,Chief Executives,Payments for services,14.04.2011,5100441656,"18,870.00",Illy Computer Systems Ltd
Manchester City Council,Manchester Leisure,Works and associated costs for Land and Buildings,14.04.2011,5100439323,"3,273.59",Imagemakers Design & Consulting
Manchester City Council,Adult Social Care,Third party payments relating to Voluntary Organisations,14.04.2011,5100441749,"1,213.50",Inner Peace Reiki & Relaxation
Manchester City Council,Childrens Services,Proffesional fees,14.04.2011,5100441664,884.85,Jazzy J Urban Dance
Manchester City Council,Childrens Services,Transport Coach Hire,14.04.2011,5100439856,"1,258.00",Jeffries Cars & Minicoaches Ltd
Manchester City Council,Housing Revenue Account,Compensation Payments,14.04.2011,1902566975,"4,000.00",Kane Grimes Nuttal
Manchester City Council,Corporate Services,Proffesional fees,14.04.2011,5100441725,"2,500.00",L G Futures
Manchester City Council,Childrens Services,Works and associated costs for Land and Buildings,14.04.2011,5100438114,"488,350.03",Laing O'Rourke Construction Ltd
Manchester City Council,Childrens Services,Building Works,14.04.2011,5100438756,"324,601.58",Laing O'Rourke Construction Ltd
Manchester City Council,Hospitality + Trading Services,Recharge of Veh Hire,14.04.2011,5100441724,557.29,Langtree Group Plc
Manchester City Council,Insurance Fund,Insurance,14.04.2011,1902562382,"1,139.48",Legal Gateway Solicitors
Manchester City Council,Manchester Leisure,Compensation Payments,14.04.2011,1902562414,"10,652.50",Legal Gateway Solicitors
Manchester City Council,Corporate Services,Non Housing Rent Receipts,14.04.2011,1902554741,"21,271.23",Lloyds Pharmacy
Manchester City Council,Chief Executives,Training and Development,14.04.2011,1902564613,"3,000.00",Lorraine Bramwell Associates
Manchester City Council,Chief Executives,Grant and subscriptions awarded,14.04.2011,5100441459,"87,900.00",Manchester Alliance For
Manchester City Council,Manchester Leisure,Payments for services,14.04.2011,5100441337,"1,202.78",Manchester Athletics Development Gr
Manchester City Council,Childrens Services,Grant and subscriptions awarded,14.04.2011,1902580190,637.00,Manchester Young Lives
Manchester City Council,Chief Executives,Agency staff provision,14.04.2011,5100439025,"1,731.42",Manpower UK Ltd
Manchester City Council,Adult Social Care,Subsistence and Conference Expenses,14.04.2011,1902562477,550.00,McVey & Knowles Properties Ltd
Manchester City Council,Chief Executives,Proffesional fees,14.04.2011,1902571146,750.00,Media Addvantage
Manchester City Council,Highways Services,Compensation Payments,14.04.2011,1902562416,"7,250.00",Michael Lewin Solicitors Ltd
Manchester City Council,Adult Social Care,Supported Accommodation,14.04.2011,5100441271,"16,970.46",Mosscare Housing Ltd
Manchester City Council,Environment and Operations,I T Provision,14.04.2011,5100441630,729.40,Mouchel Limited
Manchester City Council,Environment and Operations,I T Provision,14.04.2011,5100441648,627.10,Mouchel Limited
Manchester City Council,Environment and Operations,I T Provision,14.04.2011,5100441632,574.00,Mouchel Limited
Manchester City Council,Hospitality + Trading Services,Compensation Payments,14.04.2011,1902564649,"1,373.28",National Grid Gas plc
Manchester City Council,Childrens Services,Proffesional fees,14.04.2011,5100441639,"19,392.73",NHS Manchester Primary Care Trust
Manchester City Council,Childrens Services,Proffesional fees,14.04.2011,5100441636,"13,634.28",NHS Manchester Primary Care Trust
Manchester City Council,Hospitality + Trading Services,Vehicle Parts/Spares,14.04.2011,5100441411,625.00,Northern Commercials (Mirfield) Ltd
Manchester City Council,Hospitality + Trading Services,Vehicle Parts/Spares,14.04.2011,5100441452,625.00,Northern Commercials (Mirfield) Ltd
Manchester City Council,Chief Executives,Building Works,14.04.2011,1902581542,"400,000.00",Northwest Development Agency
Manchester City Council,Adult Social Care,Equipment,14.04.2011,5100440696,"2,950.00",Nottingham Rehab Supplies
Manchester City Council,Environment and Operations,Training and Development,14.04.2011,5100441650,"1,050.00",NSL Ltd
Manchester City Council,Environment and Operations,Stationery,14.04.2011,5100441654,530.00,NSL Ltd
Manchester City Council,Hospitality + Trading Services,Purchase of stores for re-distribution,14.04.2011,5100441539,"4,944.00",Opalion Plastics Ltd
Manchester City Council,Chief Executives,Proffesional fees,14.04.2011,5100441696,"10,000.00",Ove Arup & Partners Ltd
Manchester City Council,Corporate Services,Compensation Payments,14.04.2011,5100441190,"-4,636.15",Pannone & Partners Solicitors
Manchester City Council,Grtr Manchester Urban Traffic,Payments to Sub-Contractors,14.04.2011,5100441559,"1,811.61",Peek Traffic Ltd
Manchester City Council,Grtr Manchester Urban Traffic,Payments to Sub-Contractors,14.04.2011,5100441545,523.20,Peek Traffic Ltd
Manchester City Council,Grtr Manchester Urban Traffic,Payments to Sub-Contractors,14.04.2011,5100441772,"21,414.18",Peek Traffic Ltd
Manchester City Council,Grtr Manchester Urban Traffic,Payments to Sub-Contractors,14.04.2011,5100441736,"11,706.89",Peek Traffic Ltd
Manchester City Council,Grtr Manchester Urban Traffic,Payments to Sub-Contractors,14.04.2011,5100441658,701.70,Peek Traffic Ltd
Manchester City Council,Grtr Manchester Urban Traffic,Payments to Sub-Contractors,14.04.2011,5100441649,612.37,Peek Traffic Ltd
Manchester City Council,Grtr Manchester Urban Traffic,Payments to Sub-Contractors,14.04.2011,5100441572,568.22,Peek Traffic Ltd
Manchester City Council,Grtr Manchester Urban Traffic,Payments to Sub-Contractors,14.04.2011,5100441762,528.58,Peek Traffic Ltd
Manchester City Council,Grtr Manchester Urban Traffic,Payments to Sub-Contractors,14.04.2011,5100441584,522.55,Peek Traffic Ltd
Manchester City Council,Grtr Manchester Urban Traffic,Payments to Sub-Contractors,14.04.2011,5100441643,"39,288.43",Peek Traffic Ltd
Manchester City Council,Grtr Manchester Urban Traffic,Payments to Sub-Contractors,14.04.2011,5100441644,"39,288.43",Peek Traffic Ltd
Manchester City Council,Grtr Manchester Urban Traffic,Payments to Sub-Contractors,14.04.2011,5100441610,"14,895.03",Peek Traffic Ltd
Manchester City Council,Grtr Manchester Urban Traffic,Payments to Sub-Contractors,14.04.2011,5100441615,"14,895.03",Peek Traffic Ltd
Manchester City Council,Grtr Manchester Urban Traffic,Payments to Sub-Contractors,14.04.2011,5100441563,"1,050.54",Peek Traffic Ltd
Manchester City Council,Grtr Manchester Urban Traffic,Payments to Sub-Contractors,14.04.2011,5100441572,714.54,Peek Traffic Ltd
Manchester City Council,Grtr Manchester Urban Traffic,Payments to Sub-Contractors,14.04.2011,5100441603,"2,066.77",Peek Traffic Ltd
Manchester City Council,Grtr Manchester Urban Traffic,Payments to Sub-Contractors,14.04.2011,5100441579,"1,305.02",Peek Traffic Ltd
Manchester City Council,Grtr Manchester Urban Traffic,Payments to Sub-Contractors,14.04.2011,5100441596,"1,150.51",Peek Traffic Ltd
